Workbook

Sheet Highstakes
A1: Futurity | B1: Der | C1: Age Inct. | D1: BBR | E1: Draw | F1: Rider Name | G1: Horse Name | H1: Time | I1: Placing | J1: Money Earned
E2: 1 | F2: Danyelle Campbell | G2: Famous Dungarees | H2: 15.726 | I2: 1D 1st | J2: 672
E3: 2 | F3: Molli Montgomery | G3: Legsgonewild | H3: 15.808
E4: 3 | F4: Sadie Weldon | G4: WB Runaway Pumpkin | H4: 16.148
E5: 4 | F5: Susan Agnew | G5: Splash Da Firewater | H5: 16.842 | I5: 2D 1st | J5: 288
E6: 5 | F6: Molli Montgomery | G6: Pandora | H6: 16.891
E7: 6 | F7: Lynn Brown | G7: This Guys No Angel | H7: nt16.118
E8: 7 | F8: Amy wilson | G8: KN No Moe Siss | H8: nt16.157
E9: 8 | F9: Susan Agnew | G9: Jet N Ta Fame | H9: nt16.475
E10: 9 | F10: Jade Crago | G10: Sophie So Sweet | H10: nt16.545
E11: 10 | F11: Molli Montgomery | G11: Makin Ya Famous | H11: nt19.809
E12: 11 | F12: Terry Vogel | G12: DarbyFrenchmengonblu | H12: nt28.541
E13: 12 | F13: Alexis Baratka | G13: Queen Red Cash | H13: nt43.323
E14: 14
E15: 15
E16: 16
E17: 17
E18: 18
E19: 17
E20: 2
E21: 8
E22: 24
E23: 15
E24: 26
E25: 5
E26: 13
E27: 4
E28: 19
E29: 21
E30: 28
E31: 29
E32: 30
E33: 31
E34: 32
E35: 33
E36: 34
E37: 35
E38: 36
E39: 37
E40: 38
E41: 39
E42: 40
E43: 41
E44: 42
E45: 43
E46: 44
E47: 45
E48: 46
E49: 47
E50: 48
E51: 49
E52: 50
E53: 51
E54: 52
E55: 53
E56: 54
E57: 55
E58: 56
E59: 57
E60: 58
E61: 59
E62: 60
E63: 61
E64: 62
E65: 63
E66: 64
E67: 65
E68: 66
E69: 67
E70: 68
E71: 69
E72: 70
E73: 71
E74: 72
E75: 73
E76: 74
E77: 75
E78: 76
E79: 77
E80: 78
E81: 79
E82: 80
E83: 81
E84: 82
E85: 83
E86: 84
E87: 85
E88: 86
E89: 87
E90: 88
E91: 89
E92: 90
E93: 91
E94: 92
E95: 93
E96: 94
E97: 95
E98: 96
E99: 97
E100: 98
E101: 99
E102: 100
E103: 101
E104: 102
E105: 103
E106: 104
E107: 105
E108: 106
E109: 107
E110: 108
E111: 109
E112: 110
E113: 111
E114: 112
E115: 113
E116: 114
E117: 115
E118: 116
E119: 117
E120: 118
E121: 119
E122: 120
E123: 121
E124: 122
E125: 123
E126: 124
E127: 125
E128: 126
E129: 127
E130: 128
E131: 129
E132: 130
E133: 131
E134: 132
E135: 133
E136: 134
E137: 135
E138: 136
E139: 137
E140: 138
E141: 139
E142: 140
E143: 141
E144: 142
E145: 143
E146: 144
E147: 145
E148: 146
E149: 147
E150: 148
E151: 149
E152: 150
E153: 151
E154: 152
E155: 153
E156: 154
E157: 155
E158: 156
E159: 157
E160: 158
E161: 159
E162: 160
E163: 161
E164: 162
E165: 163
E166: 164
E167: 165
E168: 166
E169: 167
E170: 168
E171: 169
E172: 170
E173: 171
E174: 172
E175: 173
E176: 174
E177: 175
E178: 176
E179: 177
E180: 178
E181: 179
E182: 180
E183: 181
E184: 182
E185: 183
E186: 184
E187: 185
E188: 186
E189: 187
E190: 188
E191: 189
E192: 190
E193: 191
E194: 192
E195: 193
E196: 194
E197: 195
E198: 196
E199: 197
E200: 198
... 102 more rows

Sheet Open
A2: Open
A3: Futurity | B3: 5 Yr Fut | C3: Der | D3: Age Inct. | E3: High Stakes | F3: 2018 Mem | G3: BBR | H3: WPRA | I3: Draw | J3: Rider Name | K3: Horse Name | L3: Pen | M3: Time | N3: Final Time | O3: Placing | P3: Money Earned | R3: D Placing | T3: Split
C4: X | I4: 236 | J4: Nisa Berry | K4: VF Look Im Back | M4: 15.593 | O4: 1D 1st | P4: 1053.36
E5: X | F5: yes | I5: 171 | J5: Danyelle Campbell | K5: Famous Dungarees | M5: 15.726 | O5: 1D 2nd | P5: 902.88
F6: yes | G6: 2870 | H6: 1115 | I6: 119 | J6: Molly Powell | K6: Shortcake | M6: 15.791 | O6: 1D 3rd | P6: 752.4
C7: X | D7: A | E7: X | I7: 76 | J7: Molli Montgomery | K7: Legsgonewild | M7: 15.808 | O7: 1D 4th | P7: 601.92
D8: A | G8: 4927 | H8: 23545 | I8: 319 | J8: Abby Pursifull | K8: Flippin Terrific | M8: 15.858 | O8: 1D 5th | P8: 451.44
I9: 273 | J9: Brittany Mayfield | K9: Jewels In My Rolex | M9: 15.862 | O9: 1D 6th | P9: 351.12
I10: 86 | J10: Wendy Suhn | K10: HLH Streakin A Fling | M10: 15.879 | O10: 1D 7th | P10: 300.96
C11: X | D11: A | I11: 170 | J11: Felecia Taylor | K11: AR Dash Ta Flame | M11: 15.887 | O11: 1D 8th | P11: 250.8
C12: X | D12: Y | I12: 137 | J12: Charli Snow | K12: Shinin For You | M12: 15.932 | O12: 1D 9th | P12: 200.64
I13: 279 | J13: Lisa Wernli | K13: Flashes Fine Effort | M13: 15.957 | O13: 1D 10th | P13: 150.48
D14: A | I14: 211 | J14: Felecia Taylor | K14: Makilts | M14: 15.966
I15: 324 | J15: Rachel Rule | K15: Happy | M15: 15.993
D16: S | G16: 6397 | H16: 4650 | I16: 53 | J16: Raylene Cox | K16: Ya Give Me Fever | M16: 15.997
I17: 286 | J17: Erin Reich | K17: Sallee | M17: 16.043
G18: 9026 | H18: 24294 | I18: 181 | J18: Tauna Bertsch | K18: Miss Handy Cool Pep | M18: 16.046
D19: S | G19: 8033 | I19: 368 | J19: Martha Smith | K19: Firewatermakemehappy | M19: 16.05
C20: X | D20: A | I20: 74 | J20: Whitney Godinez | K20: Happy Hour Special | M20: 16.065
C21: X | D21: Y | G21: 11930 | H21: j25312L | I21: 17 | J21: Riley Ross | K21: HP Rocket Ta Fame | M21: 16.074
C22: X | I22: 288 | J22: Lindsey Kruse | K22: Crown N Fame | M22: 16.078
H23: R25025H | I23: 309 | J23: Geneva Kelly | K23: Hickorys N Lik Flint | M23: 16.084
A24: X | I24: 311 | J24: Nisa Berry | K24: VF Famous Cowgirl | M24: 16.089
D25: S | F25: YES | G25: 10507 | I25: 161 | J25: Sidney Ryan | K25: Lyndis Sonny Lights | M25: 16.1 | O25: 2D 1st | P25: 877.8
I26: 266 | J26: Kim Schulze | K26: Holy Moly Im Famous | M26: 16.144 | O26: 2D 2nd | P26: 752.4
D27: S | I27: 264 | J27: Lynn Saunders | K27: Chumley | M27: 16.147 | O27: 2D 3rd | P27: 627
E28: X | G28: 2621 | I28: 156 | J28: Sadie Weldon | K28: WB Runaway Pumpkin | M28: 16.148 | O28: 2D 4th | P28: 501.6
C29: X | G29: 3224 | H29: 23280 | I29: 11 | J29: Hannah Forbes | K29: Ivory Candy | M29: 16.161 | O29: 2D 5th | P29: 376.2
I30: 315 | J30: Tessa Rueberg | K30: Bulls Little Lady Go | M30: 16.162 | O30: 2D 6th | P30: 292.6
A31: X | F31: yes | I31: 333 | J31: Davie King | K31: CR Tellemimfamous | M31: 16.18 | O31: 2D 7th | P31: 250.8
D32: S | G32: 274 | I32: 135 | J32: Lee Ann Brooks | K32: Tofast Ta View | M32: 16.186 | O32: 2D 8th/9th | P32: 188
D33: S | G33: 12574 | I33: 166 | J33: Connie Randolph | K33: Hot Rod Kitty Cat | M33: 16.186 | O33: 2D 8/9th | P33: 188
I34: 67 | J34: Jessica Dahl | K34: Peppy Wimpy Cutter | M34: 16.188 | O34: 2D 10th | P34: 125.4
A35: X | G35: 4773 | H35: 20401 | I35: 100 | J35: Ryann Pedone | K35: Coco Bongo | M35: 16.188
D36: Y | I36: 115 | J36: Shia Williams | K36: JF Frenchmans Rhythm | M36: 16.201
C37: X | G37: 10413 | H37: 21657 | I37: 365 | J37: Natalie Bland | K37: THC OK Fuel | M37: 16.216
G38: 8875 | I38: 257 | J38: Savannah Chaddick | K38: Seven Bars Ta Fame | M38: 16.225
C39: X | G39: 5416 | H39: R25148P | I39: 14 | J39: Lauren Whitmire | K39: WR Rebas Fling | M39: 16.229
A40: X | F40: yes | G40: 996 | H40: 4298 | I40: 32 | J40: Andrea Cline | K40: Fame Us First Lady | M40: 16.238
C41: X | H41: 22827 | I41: 235 | J41: Lacey Harmon | K41: Just The Way You Are | M41: 16.239
D42: S | I42: 221 | J42: Lynn Saunders | K42: Popcorn | M42: 16.254
I43: 304 | J43: Lisa Wernli | K43: Dash On Down Sue | M43: 16.262
G44: 14413 | H44: 4095 | I44: 238 | J44: Jill Crotta | K44: Lookin So Hot | M44: 16.27
D45: A | F45: yes | G45: 11985 | I45: 54 | J45: Carlos Renato | K45: Bon Jovi | M45: 16.275
D46: Y | I46: 332 | J46: Alex Stokes | K46: Reba | M46: 16.28
A47: X | I47: 292 | J47: Nisa Berry | K47: Jeepers Im Famous | M47: 16.29
H48: 22827 | I48: 206 | J48: Lacey Harmon | K48: It Is What It Is Guys | M48: 16.294
G49: 10942 | H49: 25517 | I49: 49 | J49: Becky Dillard | K49: Wow Shes Hot | M49: 16.297
I50: 318 | J50: Summer Kutchera | K50: FC Classic Sunday | M50: 16.297
D51: A | I51: 248 | J51: Rebba Wright | K51: CEO Kinda Sassy Gal | M51: 16.318
F52: YES | G52: 7314 | I52: 70 | J52: Lindsey Stevens | K52: JM I Got Faith | M52: 16.323
I53: 303 | J53: Kathy Warren | K53: WR Peponic Promise | M53: 16.33
C54: X | G54: 13123 | I54: 41 | J54: Jessica Haggerty | K54: Fame On Fire | M54: 16.341
C55: X | G55: 8262 | I55: 15 | J55: Laura Avery | K55: Letta Trouble Doit | M55: 16.35
G56: 14424 | I56: 243 | J56: Kathy Warren | K56: Gonnagetluckytonight | M56: 16.365
D57: Y | F57: yes | G57: 11999 | I57: 159 | J57: Amie Hennen | K57: UknowUNVMe | M57: 16.368
I58: 296 | J58: Lyndsey Broxton | K58: Dullys JP King | M58: 16.37
A59: X | I59: 173 | J59: Ali Anton | K59: Glamour Goddess | M59: 16.38
I60: 205 | J60: Brittany Fellows | K60: Le Jane | M60: 16.383
D61: S | G61: 9089 | H61: 2293 | I61: 366 | J61: Donna Tippen | K61: Lyla | M61: 16.385
I62: 92 | J62: Jeane Gibbs | K62: A Charming Doll | M62: 16.399
D63: S | H63: 24290 | I63: 178 | J63: Stacy Gates | K63: FR Firewater Request | M63: 16.407
A64: X | D64: Y | F64: yes | G64: 13029 | I64: 241 | J64: Maylee McCrary | K64: SK Easy Struttin Go | M64: 16.409
D65: S | F65: yes | G65: 4649 | I65: 6 | J65: Terry Vogel | K65: BB Boogyingfrenchman | M65: 16.421
D66: A | G66: 10030 | I66: 27 | J66: Timber Allenbrand | M66: 16.431
D67: A | I67: 112 | J67: Adelita Tyson | K67: Nickapop | M67: 16.431
D68: A | F68: yes | G68: 11985 | I68: 118 | J68: Carlos Renato | K68: Zero | M68: 16.441 | N68: =IF(OR(L68=5,L68=10, L68=15, L68="BP",L68="SCR"),"NT",M68) -> 16.441
D69: S | G69: 274 | I69: 208 | J69: Lee Ann Brooks | K69: Thedoctorsatthebar | M69: 16.446 | N69: =IF(OR(L69=5,L69=10, L69=15, L69="BP",L69="SCR"),"NT",M69) -> 16.446
D70: S | F70: YES | G70: 7789 | I70: 229 | J70: Jodi Stovall | K70: Miss French Drifter | M70: 16.459 | N70: =IF(OR(L70=5,L70=10, L70=15, L70="BP",L70="SCR"),"NT",M70) -> 16.459
D71: A | F71: yes | G71: 922 | I71: 140 | J71: Lorissa Jo Merritt | K71: Bully Bully Fame | M71: 16.466 | N71: =IF(OR(L71=5,L71=10, L71=15, L71="BP",L71="SCR"),"NT",M71) -> 16.466
I72: 204 | J72: Emily Mangione | K72: Rock Roll N Repete | M72: 16.481 | N72: =IF(OR(L72=5,L72=10, L72=15, L72="BP",L72="SCR"),"NT",M72) -> 16.481
A73: X | G73: 1017 | I73: 20 | J73: Chris Martin | K73: A Smooth Twister | M73: 16.488 | N73: =IF(OR(L73=5,L73=10, L73=15, L73="BP",L73="SCR"),"NT",M73) -> 16.488
F74: yes | I74: 10 | J74: Shannon Black | K74: Little Bit | M74: 16.502 | N74: =IF(OR(L74=5,L74=10, L74=15, L74="BP",L74="SCR"),"NT",M74) -> 16.502
G75: 533 | I75: 66 | J75: Stepheny Womack | K75: Pistol | M75: 16.506 | N75: =IF(OR(L75=5,L75=10, L75=15, L75="BP",L75="SCR"),"NT",M75) -> 16.506
D76: S | G76: 8033 | I76: 325 | J76: Martha Smith | K76: Victory Blue Moon | M76: 16.507 | N76: =IF(OR(L76=5,L76=10, L76=15, L76="BP",L76="SCR"),"NT",M76) -> 16.507
D77: A | H77: 26213 | I77: 121 | J77: Shea Durfey | K77: Betty | M77: 16.508 | N77: =IF(OR(L77=5,L77=10, L77=15, L77="BP",L77="SCR"),"NT",M77) -> 16.508
D78: A | I78: 270 | J78: Sheyenne Knox | K78: BRS Peplano | M78: 16.513 | N78: =IF(OR(L78=5,L78=10, L78=15, L78="BP",L78="SCR"),"NT",M78) -> 16.513
F79: yes | G79: 2621 | I79: 114 | J79: Sadie Weldon | K79: Boots Classy Perks | M79: 16.515 | N79: =IF(OR(L79=5,L79=10, L79=15, L79="BP",L79="SCR"),"NT",M79) -> 16.515
I80: 7 | J80: Natasha Gray | K80: Ima Fly Guy | M80: 16.525 | N80: =IF(OR(L80=5,L80=10, L80=15, L80="BP",L80="SCR"),"NT",M80) -> 16.525
I81: 146 | J81: Shannon Pearson | K81: Reds Roany Pony | M81: 16.528 | N81: =IF(OR(L81=5,L81=10, L81=15, L81="BP",L81="SCR"),"NT",M81) -> 16.528
D82: Y | I82: 175 | J82: Charli Snow | K82: Scootin Lil Chic | M82: 16.531 | N82: =IF(OR(L82=5,L82=10, L82=15, L82="BP",L82="SCR"),"NT",M82) -> 16.531
I83: 134 | J83: Wendy Suhn | K83: She B Astreakin | M83: 16.54 | N83: =IF(OR(L83=5,L83=10, L83=15, L83="BP",L83="SCR"),"NT",M83) -> 16.54
D84: S | H84: 24290 | I84: 145 | J84: Stacy Gates | K84: PH Firewaters Payday | M84: 16.547 | N84: =IF(OR(L84=5,L84=10, L84=15, L84="BP",L84="SCR"),"NT",M84) -> 16.547
A85: X | G85: 4773 | H85: 20401 | I85: 62 | J85: Ryann Pedone | K85: NNN Sixums Firewater | M85: 16.553 | N85: =IF(OR(L85=5,L85=10, L85=15, L85="BP",L85="SCR"),"NT",M85) -> 16.553
D86: S | H86: w2345L | I86: 89 | J86: Bridget Thomas | K86: BT Buddy Stinson | M86: 16.571 | N86: =IF(OR(L86=5,L86=10, L86=15, L86="BP",L86="SCR"),"NT",M86) -> 16.571
D87: A | F87: yes | I87: 113 | J87: Denny Ralls | K87: Sweet Movin Firewater | M87: 16.591 | N87: =IF(OR(L87=5,L87=10, L87=15, L87="BP",L87="SCR"),"NT",M87) -> 16.591
I88: 164 | J88: Susan Campbell | K88: Bills Irish Whiskey | M88: 16.591 | N88: =IF(OR(L88=5,L88=10, L88=15, L88="BP",L88="SCR"),"NT",M88) -> 16.591
G89: 7315 | I89: 180 | J89: Victoria Alexander | K89: Frostbite | M89: 16.598 | N89: =IF(OR(L89=5,L89=10, L89=15, L89="BP",L89="SCR"),"NT",M89) -> 16.598 | O89: 3D 1st | P89: 702.24
I90: 294 | J90: Danielle Carie | K90: Beeping Back Cash | M90: 16.601 | N90: =IF(OR(L90=5,L90=10, L90=15, L90="BP",L90="SCR"),"NT",M90) -> 16.601 | O90: 3D 2nd | P90: 601.92
F91: yes | I91: 268 | J91: Davie King | K91: Gilded wagon | M91: 16.602 | N91: =IF(OR(L91=5,L91=10, L91=15, L91="BP",L91="SCR"),"NT",M91) -> 16.602 | O91: 3D 3rd | P91: 501.6
F92: yes | I92: 301 | J92: Davie King | K92: Thaydeen | M92: 16.606 | N92: =IF(OR(L92=5,L92=10, L92=15, L92="BP",L92="SCR"),"NT",M92) -> 16.606 | O92: 3D 4th | P92: 401.28
F93: Yes | I93: 83 | J93: Alisha Todd | K93: Sheza Amarillo Doc | M93: 16.611 | N93: =IF(OR(L93=5,L93=10, L93=15, L93="BP",L93="SCR"),"NT",M93) -> 16.611 | O93: 3D 5th/6th | P93: 267
I94: 246 | J94: Tessa Rueberg | K94: Shinning Notoriously | M94: 16.611 | N94: =IF(OR(L94=5,L94=10, L94=15, L94="BP",L94="SCR"),"NT",M94) -> 16.611 | O94: 3D 5th/6th | P94: 267
D95: Y | G95: 11323 | I95: 247 | J95: Mollie Lane | K95: Sunup Starbert | M95: 16.613 | N95: =IF(OR(L95=5,L95=10, L95=15, L95="BP",L95="SCR"),"NT",M95) -> 16.613 | O95: 3D 7th | P95: 200.64
I96: 12 | J96: Gretchen Goedecken | K96: Fine Whatever | M96: 16.614 | N96: =IF(OR(L96=5,L96=10, L96=15, L96="BP",L96="SCR"),"NT",M96) -> 16.614 | O96: 3D 8th | P96: 167.2
I97: 278 | J97: Madison Reich | K97: Kit | M97: 16.616 | N97: =IF(OR(L97=5,L97=10, L97=15, L97="BP",L97="SCR"),"NT",M97) -> 16.616 | O97: 3D 9th | P97: 133.76
G98: 13743 | I98: 111 | J98: Presleigh Akers | K98: Short NitaLena | M98: 16.622 | N98: =IF(OR(L98=5,L98=10, L98=15, L98="BP",L98="SCR"),"NT",M98) -> 16.622 | O98: 3D 10th | P98: 100.32
D99: S | F99: yes | H99: 4031 | I99: 212 | J99: Tammy Rokus | K99: Flaming Oakey | M99: 16.623 | N99: =IF(OR(L99=5,L99=10, L99=15, L99="BP",L99="SCR"),"NT",M99) -> 16.623
F100: YES | G100: 7314 | I100: 21 | J100: Lindsey Stevens | K100: Wadafire | M100: 16.625 | N100: =IF(OR(L100=5,L100=10, L100=15, L100="BP",L100="SCR"),"NT",M100) -> 16.625
I101: 80 | J101: Lisa Ogden | K101: Flyin Wide Open | M101: 16.625 | N101: =IF(OR(L101=5,L101=10, L101=15, L101="BP",L101="SCR"),"NT",M101) -> 16.625
F102: yes | I102: 234 | J102: Tracy Lambert | K102: Rita | M102: 16.626 | N102: =IF(OR(L102=5,L102=10, L102=15, L102="BP",L102="SCR"),"NT",M102) -> 16.626
C103: X | H103: 24985 | I103: 157 | J103: Kelsey Gordon | K103: Prada | M103: 16.63 | N103: =IF(OR(L103=5,L103=10, L103=15, L103="BP",L103="SCR"),"NT",M103) -> 16.63
A104: X | I104: 284 | J104: Mindy Holloway | K104: Bicardi | M104: 16.633 | N104: =IF(OR(L104=5,L104=10, L104=15, L104="BP",L104="SCR"),"NT",M104) -> 16.633
D105: S | F105: yes | G105: 661 | H105: 15602 | I105: 128 | J105: Lisa Cotter | K105: Outlaw John Dillinger | M105: 16.638 | N105: =IF(OR(L105=5,L105=10, L105=15, L105="BP",L105="SCR"),"NT",M105) -> 16.638
G106: 12804 | H106: W161L | I106: 259 | J106: Pattie Mackie | K106: Dunnits Genuine 007 | M106: 16.644 | N106: =IF(OR(L106=5,L106=10, L106=15, L106="BP",L106="SCR"),"NT",M106) -> 16.644
I107: 274 | J107: Maci Berry | K107: Firewater Rime | M107: 16.648 | N107: =IF(OR(L107=5,L107=10, L107=15, L107="BP",L107="SCR"),"NT",M107) -> 16.648
I108: 293 | J108: Bethany Fontenot Owen | K108: Clyde | M108: 16.663 | N108: =IF(OR(L108=5,L108=10, L108=15, L108="BP",L108="SCR"),"NT",M108) -> 16.663
F109: yes | G109: 922 | I109: 9 | J109: Lorissa Jo Merritt | K109: Shiner Bach | M109: 16.67 | N109: =IF(OR(L109=5,L109=10, L109=15, L109="BP",L109="SCR"),"NT",M109) -> 16.67
I110: 260 | J110: Augie Nobile | K110: Ristos Devious Play | M110: 16.674 | N110: =IF(OR(L110=5,L110=10, L110=15, L110="BP",L110="SCR"),"NT",M110) -> 16.674
I111: 344 | J111: Donna Ramsey | K111: BB's Royal Dream | M111: 16.675 | N111: =IF(OR(L111=5,L111=10, L111=15, L111="BP",L111="SCR"),"NT",M111) -> 16.675
I112: 249 | J112: Chelsie Stodghill | K112: Foxy | M112: 16.692 | N112: =IF(OR(L112=5,L112=10, L112=15, L112="BP",L112="SCR"),"NT",M112) -> 16.692
I113: 150 | J113: Brittany Mayfield | K113: Chrome | M113: 16.701 | N113: =IF(OR(L113=5,L113=10, L113=15, L113="BP",L113="SCR"),"NT",M113) -> 16.701
D114: Y | G114: 11930 | H114: j25312L | I114: 55 | J114: Riley Ross | K114: Perks Alive N 75 | M114: 16.702 | N114: =IF(OR(L114=5,L114=10, L114=15, L114="BP",L114="SCR"),"NT",M114) -> 16.702
D115: A | I115: 45 | J115: Charlie Cole | K115: Eli | M115: 16.705 | N115: =IF(OR(L115=5,L115=10, L115=15, L115="BP",L115="SCR"),"NT",M115) -> 16.705
D116: S | I116: 47 | J116: Lisa Corey | K116: Bogies French Gamble | M116: 16.706 | N116: =IF(OR(L116=5,L116=10, L116=15, L116="BP",L116="SCR"),"NT",M116) -> 16.706
D117: A | F117: yes | G117: 13320 | I117: 40 | J117: Brooke Ezell | K117: Nickie Cash | M117: 16.71 | N117: =IF(OR(L117=5,L117=10, L117=15, L117="BP",L117="SCR"),"NT",M117) -> 16.71
A118: X | D118: A | I118: 102 | J118: Whitney Godinez | K118: So Gals Got Fire | M118: 16.712 | N118: =IF(OR(L118=5,L118=10, L118=15, L118="BP",L118="SCR"),"NT",M118) -> 16.712
I119: 339 | J119: Annabelle Martin | K119: Swayzie | M119: 16.713 | N119: =IF(OR(L119=5,L119=10, L119=15, L119="BP",L119="SCR"),"NT",M119) -> 16.713
I120: 190 | J120: David Thomas | K120: William | M120: 16.723 | N120: =IF(OR(L120=5,L120=10, L120=15, L120="BP",L120="SCR"),"NT",M120) -> 16.723
G121: 13776 | I121: 218 | J121: Salem Brooks | K121: Diva | M121: 16.723 | N121: =IF(OR(L121=5,L121=10, L121=15, L121="BP",L121="SCR"),"NT",M121) -> 16.723
I122: 312 | J122: Lyndsey Broxton | K122: Little French Gatita | M122: 16.734 | N122: =IF(OR(L122=5,L122=10, L122=15, L122="BP",L122="SCR"),"NT",M122) -> 16.734
I123: 117 | J123: John Sharp | K123: Sangria | M123: 16.745 | N123: =IF(OR(L123=5,L123=10, L123=15, L123="BP",L123="SCR"),"NT",M123) -> 16.745
G124: 2510 | H124: 4246 | I124: 209 | J124: Brandee Hawkins | K124: Bingos Rocket Man | M124: 16.754 | N124: =IF(OR(L124=5,L124=10, L124=15, L124="BP",L124="SCR"),"NT",M124) -> 16.754
I125: 291 | J125: Elma Sanford | K125: A One Shadow | M125: 16.758 | N125: =IF(OR(L125=5,L125=10, L125=15, L125="BP",L125="SCR"),"NT",M125) -> 16.758
D126: A | I126: 132 | J126: Caylee Carney | K126: Foxy Poco Cuffs | M126: 16.763 | N126: =IF(OR(L126=5,L126=10, L126=15, L126="BP",L126="SCR"),"NT",M126) -> 16.763
I127: 91 | J127: Rande Goetz | K127: Flits Lil Scooter | M127: 16.766 | N127: =IF(OR(L127=5,L127=10, L127=15, L127="BP",L127="SCR"),"NT",M127) -> 16.766
I128: 136 | J128: Tori Volk | K128: StompinOutTheFire | M128: 16.768 | N128: =IF(OR(L128=5,L128=10, L128=15, L128="BP",L128="SCR"),"NT",M128) -> 16.768
I129: 202 | J129: Deborah MacLeod | K129: A Woodsy Cat | M129: 16.769 | N129: =IF(OR(L129=5,L129=10, L129=15, L129="BP",L129="SCR"),"NT",M129) -> 16.769
G130: 3224 | H130: 23280 | I130: 60 | J130: Hannah Forbes | K130: Eye Jess Zoomed Bye | M130: 16.776 | N130: =IF(OR(L130=5,L130=10, L130=15, L130="BP",L130="SCR"),"NT",M130) -> 16.776
D131: Y | G131: 8705 | I131: 176 | J131: Mikayla Cox | K131: KN Sheza Redneck | M131: 16.78 | N131: =IF(OR(L131=5,L131=10, L131=15, L131="BP",L131="SCR"),"NT",M131) -> 16.78
I132: 329 | J132: Cindy Stone | K132: Super Sonic Corona | M132: 16.781 | N132: =IF(OR(L132=5,L132=10, L132=15, L132="BP",L132="SCR"),"NT",M132) -> 16.781
G133: 13776 | I133: 179 | J133: Salem Brooks | K133: Sugar Smooth Duke | M133: 16.786 | N133: =IF(OR(L133=5,L133=10, L133=15, L133="BP",L133="SCR"),"NT",M133) -> 16.786
C134: X | I134: 144 | J134: Reenie Wahlert | K134: Famous Little Pistol | M134: 16.789 | N134: =IF(OR(L134=5,L134=10, L134=15, L134="BP",L134="SCR"),"NT",M134) -> 16.789
I135: 308 | J135: Samantha Moulding | K135: Captain | M135: 16.794 | N135: =IF(OR(L135=5,L135=10, L135=15, L135="BP",L135="SCR"),"NT",M135) -> 16.794
I136: 72 | J136: Sarah Fizer | K136: Sweet Day To Fly | M136: 16.797 | N136: =IF(OR(L136=5,L136=10, L136=15, L136="BP",L136="SCR"),"NT",M136) -> 16.797
D137: Y | I137: 314 | J137: Kristina Osborn | K137: Jesse | M137: 16.801 | N137: =IF(OR(L137=5,L137=10, L137=15, L137="BP",L137="SCR"),"NT",M137) -> 16.801
D138: A | I138: 94 | J138: Tristan Mounts | K138: Junior | M138: 16.813 | N138: =IF(OR(L138=5,L138=10, L138=15, L138="BP",L138="SCR"),"NT",M138) -> 16.813
F139: yes | I139: 358 | J139: Sadie Holloway | K139: Yasny | M139: 16.814 | N139: =IF(OR(L139=5,L139=10, L139=15, L139="BP",L139="SCR"),"NT",M139) -> 16.814
I140: 277 | J140: Amanda Ortega | K140: Smokin Dun Gun | M140: 16.815 | N140: =IF(OR(L140=5,L140=10, L140=15, L140="BP",L140="SCR"),"NT",M140) -> 16.815
D141: S | I141: 103 | J141: Laura Creel | K141: Frenchmans Docs RX | M141: 16.816 | N141: =IF(OR(L141=5,L141=10, L141=15, L141="BP",L141="SCR"),"NT",M141) -> 16.816
D142: A | I142: 343 | J142: Kaylyn Smith | K142: Pokahawkish | M142: 16.819 | N142: =IF(OR(L142=5,L142=10, L142=15, L142="BP",L142="SCR"),"NT",M142) -> 16.819
D143: A | I143: 99 | J143: Kylena Hager | K143: Bar B Firewatersteel | M143: 16.825 | N143: =IF(OR(L143=5,L143=10, L143=15, L143="BP",L143="SCR"),"NT",M143) -> 16.825
G144: 1017 | I144: 96 | J144: Chris Martin | K144: Riot | M144: 16.828 | N144: =IF(OR(L144=5,L144=10, L144=15, L144="BP",L144="SCR"),"NT",M144) -> 16.828
G145: 9006 | I145: 197 | J145: Nicole Martin | K145: Layla Olena | M145: 16.828 | N145: =IF(OR(L145=5,L145=10, L145=15, L145="BP",L145="SCR"),"NT",M145) -> 16.828
I146: 353 | J146: Ashley Martinkus | K146: Callie Cartel | M146: 16.832 | N146: =IF(OR(L146=5,L146=10, L146=15, L146="BP",L146="SCR"),"NT",M146) -> 16.832
I147: 225 | J147: Suade Furr | K147: CJ | M147: 16.836 | N147: =IF(OR(L147=5,L147=10, L147=15, L147="BP",L147="SCR"),"NT",M147) -> 16.836
I148: 250 | J148: Riley Chown | K148: Slate | M148: 16.838 | N148: =IF(OR(L148=5,L148=10, L148=15, L148="BP",L148="SCR"),"NT",M148) -> 16.838
A149: X | D149: A | E149: X | F149: yes | G149: 7477 | H149: 26660 | I149: 81 | J149: Susan Agnew | K149: Splash Da Firewater | M149: 16.842 | N149: =IF(OR(L149=5,L149=10, L149=15, L149="BP",L149="SCR"),"NT",M149) -> 16.842
D150: A | I150: 348 | J150: Sissy Penninton | K150: Ciscos Lena Bug | M150: 16.853 | N150: =IF(OR(L150=5,L150=10, L150=15, L150="BP",L150="SCR"),"NT",M150) -> 16.853
A151: X | F151: yes | G151: 922 | I151: 42 | J151: Lorissa Jo Merritt | K151: HB Blazin Fire | M151: 16.855 | N151: =IF(OR(L151=5,L151=10, L151=15, L151="BP",L151="SCR"),"NT",M151) -> 16.855
I152: 254 | J152: Shylah Love | K152: Hayday Lady Bug | M152: 16.856 | N152: =IF(OR(L152=5,L152=10, L152=15, L152="BP",L152="SCR"),"NT",M152) -> 16.856
I153: 255 | J153: Lindsey Kruse | K153: Frenchie | M153: 16.865 | N153: =IF(OR(L153=5,L153=10, L153=15, L153="BP",L153="SCR"),"NT",M153) -> 16.865
I154: 357 | J154: Nisa Berry | K154: Smarty | M154: 16.869 | N154: =IF(OR(L154=5,L154=10, L154=15, L154="BP",L154="SCR"),"NT",M154) -> 16.869
I155: 310 | J155: Janee' Ornelas | K155: Benelli | M155: 16.872 | N155: =IF(OR(L155=5,L155=10, L155=15, L155="BP",L155="SCR"),"NT",M155) -> 16.872
D156: Y | F156: yes | I156: 169 | J156: Rebekah McQueen | K156: Leo Peppy San Belle | M156: 16.873 | N156: =IF(OR(L156=5,L156=10, L156=15, L156="BP",L156="SCR"),"NT",M156) -> 16.873
A157: X | F157: yes | I157: 122 | J157: Emilie Veillette | K157: Bar B Kiss N Boogie | M157: 16.874 | N157: =IF(OR(L157=5,L157=10, L157=15, L157="BP",L157="SCR"),"NT",M157) -> 16.874
D158: Y | I158: 194 | J158: Tripp Taylor | K158: Smalls | M158: 16.884 | N158: =IF(OR(L158=5,L158=10, L158=15, L158="BP",L158="SCR"),"NT",M158) -> 16.884
C159: X | D159: A | E159: X | I159: 58 | J159: Molli Montgomery | K159: Pandora | M159: 16.891 | N159: =IF(OR(L159=5,L159=10, L159=15, L159="BP",L159="SCR"),"NT",M159) -> 16.891
D160: S | H160: 343 | I160: 43 | J160: Deb Frasier | K160: FR Famusfrenchstokngs | M160: 16.904 | N160: =IF(OR(L160=5,L160=10, L160=15, L160="BP",L160="SCR"),"NT",M160) -> 16.904
I161: 346 | J161: Lauren Thomas | K161: Fancy | M161: 16.912 | N161: =IF(OR(L161=5,L161=10, L161=15, L161="BP",L161="SCR"),"NT",M161) -> 16.912
F162: yes | I162: 155 | J162: Emilie Veillette | K162: Lil Yella Draw | M162: 16.914 | N162: =IF(OR(L162=5,L162=10, L162=15, L162="BP",L162="SCR"),"NT",M162) -> 16.914
I163: 356 | J163: Misty Peek | K163: Amos | M163: 16.948 | N163: =IF(OR(L163=5,L163=10, L163=15, L163="BP",L163="SCR"),"NT",M163) -> 16.948
A164: X | I164: 22 | J164: Lisa Ogden | K164: Eyesa Stoli Dream | M164: 16.951 | N164: =IF(OR(L164=5,L164=10, L164=15, L164="BP",L164="SCR"),"NT",M164) -> 16.951
I165: 283 | J165: Riley Chown | K165: Lady Frost Te | M165: 16.953 | N165: =IF(OR(L165=5,L165=10, L165=15, L165="BP",L165="SCR"),"NT",M165) -> 16.953
D166: S | I166: 207 | J166: Rose Bonham | K166: Bug N Up The Charts | M166: 16.96 | N166: =IF(OR(L166=5,L166=10, L166=15, L166="BP",L166="SCR"),"NT",M166) -> 16.96
A167: X | H167: 22827 | I167: 263 | J167: Lacey Harmon | K167: Guys Got Fire | M167: 16.965 | N167: =IF(OR(L167=5,L167=10, L167=15, L167="BP",L167="SCR"),"NT",M167) -> 16.965
F168: YES | I168: 129 | J168: Chelsie Petty | K168: Jade | M168: 16.98 | N168: =IF(OR(L168=5,L168=10, L168=15, L168="BP",L168="SCR"),"NT",M168) -> 16.98
G169: 13759 | I169: 68 | J169: Brittany Pierson | K169: Fancy Stylish Babe | M169: 16.985 | N169: =IF(OR(L169=5,L169=10, L169=15, L169="BP",L169="SCR"),"NT",M169) -> 16.985
D170: S | G170: 10478 | I170: 163 | J170: Diana Cory | K170: JC Swift Sunfrost | M170: 16.988 | N170: =IF(OR(L170=5,L170=10, L170=15, L170="BP",L170="SCR"),"NT",M170) -> 16.988
D171: A | I171: 323 | J171: Jennifer Abbott | K171: Wendell Jackson | M171: 16.998 | N171: =IF(OR(L171=5,L171=10, L171=15, L171="BP",L171="SCR"),"NT",M171) -> 16.998
I172: 302 | J172: Maci Berry | K172: SCR Peptos Lil Cat | M172: 17.003 | N172: =IF(OR(L172=5,L172=10, L172=15, L172="BP",L172="SCR"),"NT",M172) -> 17.003
F173: yes | G173: 13320 | I173: 82 | J173: Brooke Ezell | K173: LF CR Ryonsfamousdoc | M173: 17.017 | N173: =IF(OR(L173=5,L173=10, L173=15, L173="BP",L173="SCR"),"NT",M173) -> 17.017
D174: A | H174: 21980 | I174: 154 | J174: Casey Hammons | K174: Trip Ta Fame | M174: 17.022 | N174: =IF(OR(L174=5,L174=10, L174=15, L174="BP",L174="SCR"),"NT",M174) -> 17.022
G175: 13160 | I175: 139 | J175: Gayle Burie | K175: Silverbridge | M175: 17.023 | N175: =IF(OR(L175=5,L175=10, L175=15, L175="BP",L175="SCR"),"NT",M175) -> 17.023
I176: 253 | J176: Mandy Neff | K176: Rooster | M176: 17.024 | N176: =IF(OR(L176=5,L176=10, L176=15, L176="BP",L176="SCR"),"NT",M176) -> 17.024
I177: 38 | J177: Lana Pate | K177: French Mark Holly | M177: 17.026 | N177: =IF(OR(L177=5,L177=10, L177=15, L177="BP",L177="SCR"),"NT",M177) -> 17.026
I178: 59 | J178: Joanna Kysar | K178: Max | M178: 17.034 | N178: =IF(OR(L178=5,L178=10, L178=15, L178="BP",L178="SCR"),"NT",M178) -> 17.034
D179: S | F179: yes | G179: 11878 | I179: 142 | J179: Simone Elmore | K179: Badger A Conchadrift | M179: 17.035 | N179: =IF(OR(L179=5,L179=10, L179=15, L179="BP",L179="SCR"),"NT",M179) -> 17.035
I180: 65 | J180: Rande Goetz | K180: Go Rene Go | M180: 17.042 | N180: =IF(OR(L180=5,L180=10, L180=15, L180="BP",L180="SCR"),"NT",M180) -> 17.042
D181: A | G181: 14413 | H181: 4095 | I181: 200 | J181: Jill Crotta | K181: Brady's Mountain Boy | M181: 17.042 | N181: =IF(OR(L181=5,L181=10, L181=15, L181="BP",L181="SCR"),"NT",M181) -> 17.042
D182: Y | I182: 349 | J182: Spring Pennington | K182: JJ Light My Fire | M182: 17.057 | N182: =IF(OR(L182=5,L182=10, L182=15, L182="BP",L182="SCR"),"NT",M182) -> 17.057
I183: 46 | J183: Charlotte Edwards | K183: Tjo Fire Six Rounds | M183: 17.061 | N183: =IF(OR(L183=5,L183=10, L183=15, L183="BP",L183="SCR"),"NT",M183) -> 17.061
D184: S | I184: 195 | J184: Cheryl Chown | K184: Shesa Short Cake | M184: 17.071 | N184: =IF(OR(L184=5,L184=10, L184=15, L184="BP",L184="SCR"),"NT",M184) -> 17.071
D185: Y | G185: 8705 | I185: 220 | J185: Mikayla Cox | K185: Royal Quick Runaway | M185: 17.113 | N185: =IF(OR(L185=5,L185=10, L185=15, L185="BP",L185="SCR"),"NT",M185) -> 17.113 | O185: 4D 1st | P185: 526.68
I186: 261 | J186: Kelsey Ornelas | K186: Frosty | M186: 17.115 | N186: =IF(OR(L186=5,L186=10, L186=15, L186="BP",L186="SCR"),"NT",M186) -> 17.115 | O186: 4D 2nd | P186: 451.44
D187: S | F187: YES | I187: 244 | J187: Katy Holloway | K187: Namgis D 18 | M187: 17.127 | N187: =IF(OR(L187=5,L187=10, L187=15, L187="BP",L187="SCR"),"NT",M187) -> 17.127 | O187: 4D 3rd | P187: 376.2
I188: 153 | J188: Janee' Ornelas | K188: Candy | M188: 17.139 | N188: =IF(OR(L188=5,L188=10, L188=15, L188="BP",L188="SCR"),"NT",M188) -> 17.139 | O188: 4D 4th | P188: 300.96
D189: S | G189: 6818 | H189: W2137M | I189: 230 | J189: Roxie Tew | K189: Bestcreditmyfeathers | M189: 17.146 | N189: =IF(OR(L189=5,L189=10, L189=15, L189="BP",L189="SCR"),"NT",M189) -> 17.146 | O189: 4D 5th | P189: 225.72
I190: 267 | J190: Grace Ornelas | M190: 17.152 | O190: 4D 6th | P190: 175
D191: A | F191: yes | G191: 12006 | I191: 130 | J191: Dee Dee Jordan | K191: First Rappin Judge | M191: 17.161 | O191: 4D 7th | P191: 150
D192: S | I192: 108 | J192: Laura Combs | K192: Leos Poco Princess | M192: 17.163 | O192: 4D 8th | P192: 125
I193: 174 | J193: Christine Dias | K193: Freckles N Cowboys | M193: 17.166 | O193: 4D 9th | P193: 100
D194: A | F194: yes | I194: 16 | J194: Kim Eisen | K194: Dollar | M194: 17.175 | O194: 4D 10th | P194: 75
D195: S | F195: yes | I195: 1 | J195: Kathy Minteer | K195: Lil Bit | M195: 17.182
D196: A | I196: 149 | J196: Marka Genz | K196: Snuffys Poco Dee | M196: 17.194
I197: 34 | J197: Lylan Corey | K197: Honey Boon Lilly | M197: 17.195
F198: yes | G198: 8922 | I198: 71 | J198: Lisa Jo Velliquette | K198: Namgis D 44 | M198: 17.201
D199: A | I199: 341 | J199: Cayla Cory | K199: Final Little Saint | M199: 17.206
D200: S | I200: 138 | J200: Renee Douglas | K200: Beamer | M200: 17.221
D201: A | G201: 12390 | I201: 226 | J201: Brittany Mayfield | K201: Bay Area Barbara | M201: 17.225
... 170 more rows

Sheet Senior
A1: Futurity | B1: Der | C1: Age Inct. | D1: BBR | E1: Draw | F1: Rider Name | G1: Horse Name | H1: Time | I1: Placing | J1: Money Earned
E2: 8 | F2: Raylene Cox | G2: Ya Give Me Fever | H2: 15.997 | I2: 1D st | J2: 189
E3: 45 | F3: Martha Smith | G3: Firewatermakemehappy | H3: 16.05 | I3: 1D 2nd | J3: 126
E4: 20 | F4: Sidney Ryan | G4: Lyndis Sonny Lights | H4: 16.1
E5: 38 | F5: Lynn Saunders | G5: Chumley | H5: 16.147
E6: 15 | F6: Lee Ann Brooks | G6: Tofast Ta View | H6: 16.186
E7: 24 | F7: Connie Randolph | G7: Hot Rod Kitty Cat | H7: 16.186
E8: 33 | F8: Lynn Saunders | G8: Popcorn | H8: 16.254
E9: 43 | F9: Donna Tippen | G9: Lyla | H9: 16.385
E10: 26 | F10: Stacy Gates | G10: FR Firewater Request | H10: 16.407
E11: 3 | F11: Terry Vogel | G11: BB Boogyingfrenchman | H11: 16.421
E12: 30 | F12: Lee Ann Brooks | G12: Thedoctorsatthebar | H12: 16.446
E13: 35 | F13: Jodi Stovall | G13: Miss French Drifter | H13: 16.459
E14: 41 | F14: Martha Smith | G14: Victory Blue Moon | H14: 16.507 | I14: 2D 1st | J14: 162
E15: 18 | F15: Stacy Gates | G15: PH Firewaters Payday | H15: 16.547 | I15: 2D 2nd | J15: 108
E16: 9 | F16: Bridget Thomas | G16: BT Buddy Stinson | H16: 16.571
E17: 31 | F17: Tammy Rokus | G17: Flaming Oakey | H17: 16.623
E18: 14 | F18: Lisa Cotter | G18: Outlaw John Dillinger | H18: 16.638
E19: 7 | F19: Lisa Corey | G19: Bogies French Gamble | H19: 16.706
E20: 10 | F20: Laura Creel | G20: Frenchmans Docs RX | H20: 16.816
E21: 5 | F21: Deb Frasier | G21: FR Famusfrenchstokngs | H21: 16.904
E22: 29 | F22: Rose Bonham | G22: Bug N Up The Charts | H22: 16.96
E23: 22 | F23: Diana Cory | G23: JC Swift Sunfrost | H23: 16.988
E24: 17 | F24: Simone Elmore | G24: Badger A Conchadrift | H24: 17.035 | I24: 3D 1st | J24: 108
E25: 28 | F25: Cheryl Chown | G25: Shesa Short Cake | H25: 17.071 | I25: 3D 2nd | J25: 72
E26: 37 | F26: Katy Holloway | G26: Namgis D 18 | H26: 17.127
E27: 36 | F27: Roxie Tew | G27: Bestcreditmyfeathers | H27: 17.146
E28: 11 | F28: Laura Combs | G28: Leos Poco Princess | H28: 17.163
E29: 1 | F29: Kathy Minteer | G29: Lil Bit | H29: 17.182
E30: 16 | F30: Renee Douglas | G30: Beamer | H30: 17.221
E31: 2 | F31: Suzanne Overton | G31: Color Me Summer | H31: 17.478
E32: 27 | F32: Charlie Colella | G32: Dashin Red Charger | H32: 17.629 | I32: 4D 1st | J32: 81
E33: 4 | F33: Stephanie Johnson | G33: Fired By Playboy | H33: 17.816 | I33: 4D 2nd | J33: 54
E34: 6 | F34: Debbie Bloxom | G34: Shake The Flame | H34: 18.103
E35: 23 | F35: Rose Bonham | G35: A Firey Bet | H35: 18.29
E36: 44 | F36: Tracie Schoenthal | G36: Badger | H36: 18.583
E37: 13 | F37: Melanie Self | G37: Ole Mans Aloha | H37: 18.701
E38: 40 | F38: Kathy Fields | G38: Regarding Numbers | H38: nt15.565
E39: 25 | F39: Martha Wright | G39: JLFourTaFame | H39: nt15.862
E40: 19 | F40: Mary Carter | G40: Aspecial Firewater | H40: nt16.307
E41: 32 | F41: Stacy Gates | G41: Born Ta Fame | H41: nt16.407
E42: 42 | F42: Gena Franklin | G42: SS Tellerimfamous | H42: nt16.831
E43: 21 | F43: Valerie Rudibaugh | G43: Blazin Houdini | H43: nt18.227
E44: 12 | F44: Starla Fitzgerald | G44: Just Flitme | H44: nt18.249
E45: 34 | F45: Cheryl Chown | G45: PC Vanilla Ice | H45: nt18.805
E46: 39 | F46: Valerie Rudibaugh | G46: Boo | H46: nt39.286
E47: 46
E48: 47
E49: 48
E50: 49
E51: 50
E52: 51
E53: 52
E54: 53
E55: 54
E56: 55
E57: 56
E58: 57
E59: 58
E60: 59
E61: 60
E62: 61
E63: 62
E64: 63
E65: 64
E66: 65
E67: 66
E68: 67
E69: 68
E70: 69
E71: 70
E72: 71
E73: 72
E74: 73
E75: 74
E76: 75
E77: 76
E78: 77
E79: 78
E80: 79
E81: 80
E82: 81
E83: 82
E84: 83
E85: 84
E86: 85
E87: 86
E88: 87
E89: 88
E90: 89
E91: 90
E92: 91
E93: 92
E94: 93
E95: 94
E96: 95
E97: 96
E98: 97
E99: 98
E100: 99
E101: 100
E102: 101
E103: 102
E104: 103
E105: 104
E106: 105
E107: 106
E108: 107
E109: 108
E110: 109
E111: 110
E112: 111
E113: 112
E114: 113
E115: 114
E116: 115
E117: 116
E118: 117
E119: 118
E120: 119
E121: 120
E122: 121
E123: 122
E124: 123
E125: 124
E126: 125
E127: 126
E128: 127
E129: 128
E130: 129
E131: 130
E132: 131
E133: 132
E134: 133
E135: 134
E136: 135
E137: 136
E138: 137
E139: 138
E140: 139
E141: 140
E142: 141
E143: 142
E144: 143
E145: 144
E146: 145
E147: 146
E148: 147
E149: 148
E150: 149
E151: 150
E152: 151
E153: 152
E154: 153
E155: 154
E156: 155
E157: 156
E158: 157
E159: 158
E160: 159
E161: 160
E162: 161
E163: 162
E164: 163
E165: 164
E166: 165
E167: 166
E168: 167
E169: 168
E170: 169
E171: 170
E172: 171
E173: 172
E174: 173
E175: 174
E176: 175
E177: 176
E178: 177
E179: 178
E180: 179
E181: 180
E182: 181
E183: 182
E184: 183
E185: 184
E186: 185
E187: 186
E188: 187
E189: 188
E190: 189
E191: 190
E192: 191
E193: 192
E194: 193
E195: 194
E196: 195
E197: 196
E198: 197
E199: 198
E200: 199
... 101 more rows

Sheet Adult
A1: Futurity | B1: Der | C1: Age Inct. | D1: BBR | E1: Draw | F1: Rider Name | G1: Horse Name | H1: Pen | I1: Time | J1: Placing | K1: Money Earned
E2: 13 | F2: Molli Montgomery | G2: Legsgonewild | I2: 15.808 | J2: 1D 1st | K2: 221
E3: 52 | F3: Abby Pursifull | G3: Flippin Terrific | I3: 15.858 | J3: 1D 2nd | K3: 132
E4: 36 | F4: Felecia Taylor | G4: AR Dash Ta Flame | I4: 15.887 | J4: 1D 3rd | K4: 88
E5: 41 | F5: Felecia Taylor | G5: Makilts | I5: 15.966
E6: 11 | F6: Whitney Godinez | G6: Happy Hour Special | I6: 16.065
E7: 9 | F7: Carlos Renato | G7: Bon Jovi | I7: 16.275
E8: 46 | F8: Rebba Wright | G8: CEO Kinda Sassy Gal | I8: 16.318 | J8: 2D 1st | K8: 189
E9: 3 | F9: Timber Allenbrand | I9: 16.431 | J9: 2D 2nd | K9: 113
E10: 26 | F10: Adelita Tyson | G10: Nickapop | I10: 16.431 | J10: 2D 3rd | K10: 76
E11: 28 | F11: Carlos Renato | G11: Zero | I11: 16.441
E12: 32 | F12: Lorissa Jo Merritt | G12: Bully Bully Fame | I12: 16.466
E13: 29 | F13: Shea Durfey | G13: Betty | I13: 16.508
E14: 48 | F14: Sheyenne Knox | G14: BRS Peplano | I14: 16.513
E15: 27 | F15: Denny Ralls | G15: Sweet Movin Firewater | I15: 16.591
E16: 8 | F16: Charlie Cole | G16: Eli | I16: 16.705
E17: 7 | F17: Brooke Ezell | G17: Nickie Cash | I17: 16.71
E18: 22 | F18: Whitney Godinez | G18: So Gals Got Fire | I18: 16.712
E19: 31 | F19: Caylee Carney | G19: Foxy Poco Cuffs | I19: 16.763
E20: 19 | F20: Tristan Mounts | G20: Junior | I20: 16.813 | J20: 3D 1st | K20: 126
E21: 60 | F21: Kaylyn Smith | G21: Pokahawkish | I21: 16.819 | J21: 3D 2nd | K21: 76
E22: 21 | F22: Kylena Hager | G22: Bar B Firewatersteel | I22: 16.825 | J22: 3D 3rd | K22: 50
E23: 15 | F23: Susan Agnew | G23: Splash Da Firewater | I23: 16.842
E24: 61 | F24: Sissy Penninton | G24: Ciscos Lena Bug | I24: 16.853
E25: 10 | F25: Molli Montgomery | G25: Pandora | I25: 16.891
E26: 53 | F26: Jennifer Abbott | G26: Wendell Jackson | I26: 16.998
E27: 34 | F27: Casey Hammons | G27: Trip Ta Fame | I27: 17.022
E28: 39 | F28: Jill Crotta | G28: Brady's Mountain Boy | I28: 17.042
E29: 30 | F29: Dee Dee Jordan | G29: First Rappin Judge | I29: 17.161
E30: 1 | F30: Kim Eisen | G30: Dollar | I30: 17.175
E31: 33 | F31: Marka Genz | G31: Snuffys Poco Dee | I31: 17.194
E32: 58 | F32: Cayla Cory | G32: Final Little Saint | I32: 17.206
E33: 43 | F33: Brittany Mayfield | G33: Bay Area Barbara | I33: 17.225
E34: 49 | F34: Cheyenne Douthit | G34: JF Whisper Rock | I34: 17.278
E35: 59 | F35: Tara Lee Woodall | G35: Sixes Eyesa | I35: 17.282
E36: 55 | F36: Claudia Kirk | G36: Bean | I36: 17.283
E37: 51 | F37: Cody Hornbuckle | G37: Mountain of Fame | I37: 17.3
E38: 35 | F38: Dee Dee Jordan | G38: Firewood Frost | I38: 17.382 | J38: 4D 1st | K38: 95
E39: 25 | F39: Mystie Killion | G39: Bugzgimmiethewillies | I39: 17.47 | J39: 4D 2nd | K39: 57
E40: 40 | F40: Dee Dee Jordan | G40: Blazing Corona Cutie | I40: 17.581 | J40: 4D 3rd | K40: 38
E41: 63 | F41: Jennifer Abbott | G41: Hadley | I41: 17.846
E42: 24 | F42: Sky Thornburg | G42: Imma Duelin Pepto | I42: 17.944
E43: 14 | F43: Heather Quate | G43: Hick Town Charlie | I43: 18.142
E44: 45 | F44: Lorinda Van Newkirk | G44: Skeeter | I44: 18.972
E45: 44 | F45: Madison Sullivan | G45: Smokin Fire Dance | I45: 19.913
E46: 42 | F46: Malaika Tully | G46: Olympic Fame | I46: 20.069
E47: 23 | F47: Steven Trujillo | G47: QT's Nu Jewel | I47: 22.117
E48: 5 | F48: Brandi Williams | G48: Cha Cha Shorty | I48: 23.115
E49: 57 | F49: Abby Pursifull | G49: Pearl Snappin | I49: nt15.721
E50: 62 | F50: Abby Pursifull | G50: Rivons Blazing Jetty | I50: nt16.025
E51: 37 | F51: Amy wilson | G51: KN No Moe Siss | I51: nt16.157
E52: 20 | F52: Molli Montgomery | G52: Strawflin the Gold | I52: nt16.212
E53: 17 | F53: Carlos Renato | G53: DTF Confirmed In Luv | I53: nt16.246
E54: 56 | F54: Ashleigh Williams | G54: Heza Heavenly Streak | I54: nt16.282
E55: 54 | F55: Kaylyn Smith | G55: Classic Royal Star | I55: nt16.464
E56: 4 | F56: Susan Agnew | G56: Jet N Ta Fame | I56: nt16.475
E57: 2 | F57: Jade Crago | G57: Sophie So Sweet | I57: nt16.545
E58: 16 | F58: Brandi Williams | G58: Frosted Mini Chex | I58: nt16.827
E59: 47 | F59: Malaika Tully | G59: Stoli My Diamonds | I59: nt16.889
E60: 50 | F60: Cheyenne Douthit | G60: Graysie | I60: nt17.092
E61: 12 | F61: Holly Fenolgio | G61: Flame Of Fame | I61: nt17.734
E62: 18 | F62: Molli Montgomery | G62: Makin Ya Famous | I62: nt19.809
E63: 6 | F63: Terry Vogel | G63: DarbyFrenchmengonblu | I63: nt28.541
E64: 38 | F64: Alexis Baratka | G64: Queen Red Cash | I64: nt43.323
E65: 64
E66: 65
E67: 66
E68: 67
E69: 68
E70: 69
E71: 70
E72: 71
E73: 72
E74: 73
E75: 74
E76: 75
E77: 76
E78: 77
E79: 78
E80: 79
E81: 80
E82: 81
E83: 82
E84: 83
E85: 84
E86: 85
E87: 86
E88: 87
E89: 88
E90: 89
E91: 90
E92: 91
E93: 92
E94: 93
E95: 94
E96: 95
E97: 96
E98: 97
E99: 98
E100: 99
E101: 100
E102: 101
E103: 102
E104: 103
E105: 104
E106: 105
E107: 106
E108: 107
E109: 108
E110: 109
E111: 110
E112: 111
E113: 112
E114: 113
E115: 114
E116: 115
E117: 116
E118: 117
E119: 118
E120: 119
E121: 120
E122: 121
E123: 122
E124: 123
E125: 124
E126: 125
E127: 126
E128: 127
E129: 128
E130: 129
E131: 130
E132: 131
E133: 132
E134: 133
E135: 134
E136: 135
E137: 136
E138: 137
E139: 138
E140: 139
E141: 140
E142: 141
E143: 142
E144: 143
E145: 144
E146: 145
E147: 146
E148: 147
E149: 148
E150: 149
E151: 150
E152: 151
E153: 152
E154: 153
E155: 154
E156: 155
E157: 156
E158: 157
E159: 158
E160: 159
E161: 160
E162: 161
E163: 162
E164: 163
E165: 164
E166: 165
E167: 166
E168: 167
E169: 168
E170: 169
E171: 170
E172: 171
E173: 172
E174: 173
E175: 174
E176: 175
E177: 176
E178: 177
E179: 178
E180: 179
E181: 180
E182: 181
E183: 182
E184: 183
E185: 184
E186: 185
E187: 186
E188: 187
E189: 188
E190: 189
E191: 190
E192: 191
E193: 192
E194: 193
E195: 194
E196: 195
E197: 196
E198: 197
E199: 198
E200: 199
... 101 more rows

Sheet Youth
A1: Futurity | B1: Der | C1: Age Inct. | D1: BBR | E1: Draw | F1: Rider Name | G1: Horse Name | H1: Pen | I1: Time | J1: Placing | K1: Money Earned
E2: 7 | F2: Charli Snow | G2: Shinin For You | I2: 15.932 | J2: 1D 1st | K2: 189
E3: 1 | F3: Riley Ross | G3: HP Rocket Ta Fame | I3: 16.074 | J3: 1D 2nd | K3: 126
E4: 6 | F4: Shia Williams | G4: JF Frenchmans Rhythm | I4: 16.201
E5: 25 | F5: Alex Stokes | G5: Reba | I5: 16.28
E6: 9 | F6: Amie Hennen | G6: UknowUNVMe | I6: 16.368
E7: 18 | F7: Maylee McCrary | G7: SK Easy Struttin Go | I7: 16.409
E8: 11 | F8: Charli Snow | G8: Scootin Lil Chic | I8: 16.531 | J8: 2D 1st | K8: 162
E9: 20 | F9: Mollie Lane | G9: Sunup Starbert | I9: 16.613 | J9: 2D 2nd | K9: 108
E10: 3 | F10: Riley Ross | G10: Perks Alive N 75 | I10: 16.702
E11: 12 | F11: Mikayla Cox | G11: KN Sheza Redneck | I11: 16.78
E12: 22 | F12: Kristina Osborn | G12: Jesse | I12: 16.801
E13: 10 | F13: Rebekah McQueen | G13: Leo Peppy San Belle | I13: 16.873
E14: 14 | F14: Tripp Taylor | G14: Smalls | I14: 16.884
E15: 27 | F15: Spring Pennington | G15: JJ Light My Fire | I15: 17.057 | J15: 3D 1st | K15: 108
E16: 16 | F16: Mikayla Cox | G16: Royal Quick Runaway | I16: 17.113 | J16: 3D 2nd | K16: 72
E17: 23 | F17: Tyley Sears | G17: Indie | I17: 17.463 | J17: 4D 1st | K17: 81
E18: 17 | F18: Gabby Ruffini | G18: Diamond | I18: 17.523 | J18: 4D 2nd | K18: 54
E19: 2 | F19: Mikayla Cearley | G19: Docs Part Bueno Bar | I19: 17.944
E20: 8 | F20: Kirstyn Hand | G20: Royal Moon Charger | I20: 17.952
E21: 24 | F21: Jesse Harris | G21: Runnin for Honors | I21: nt16.442
E22: 15 | F22: Kaitlyn Anderson | G22: Livin For happy Hour | I22: nt16.706
E23: 26 | F23: Journie Long | G23: Yawl Watch Me Shine | I23: nt16.709
E24: 5 | F24: Tomi Womack | G24: Lady | I24: nt16.729
E25: 13 | F25: Amie Hennen | G25: texas War Jet | I25: nt16.814
E26: 4 | F26: Riley Ross | G26: EMW Famous Presley | I26: nt17.007
E27: 19 | F27: Stormi Branch | G27: Demon | I27: nt17.209
E28: 21 | F28: Alex Stokes | G28: Mia | I28: nt17.567
E29: 28
E30: 29
E31: 30
E32: 31
E33: 32
E34: 33
E35: 34
E36: 35
E37: 36
E38: 37
E39: 38
E40: 39
E41: 40
E42: 41
E43: 42
E44: 43
E45: 44
E46: 45
E47: 46
E48: 47
E49: 48
E50: 49
E51: 50
E52: 51
E53: 52
E54: 53
E55: 54
E56: 55
E57: 56
E58: 57
E59: 58
E60: 59
E61: 60
E62: 61
E63: 62
E64: 63
E65: 64
E66: 65
E67: 66
E68: 67
E69: 68
E70: 69
E71: 70
E72: 71
E73: 72
E74: 73
E75: 74
E76: 75
E77: 76
E78: 77
E79: 78
E80: 79
E81: 80
E82: 81
E83: 82
E84: 83
E85: 84
E86: 85
E87: 86
E88: 87
E89: 88
E90: 89
E91: 90
E92: 91
E93: 92
E94: 93
E95: 94
E96: 95
E97: 96
E98: 97
E99: 98
E100: 99
E101: 100
E102: 101
E103: 102
E104: 103
E105: 104
E106: 105
E107: 106
E108: 107
E109: 108
E110: 109
E111: 110
E112: 111
E113: 112
E114: 113
E115: 114
E116: 115
E117: 116
E118: 117
E119: 118
E120: 119
E121: 120
E122: 121
E123: 122
E124: 123
E125: 124
E126: 125
E127: 126
E128: 127
E129: 128
E130: 129
E131: 130
E132: 131
E133: 132
E134: 133
E135: 134
E136: 135
E137: 136
E138: 137
E139: 138
E140: 139
E141: 140
E142: 141
E143: 142
E144: 143
E145: 144
E146: 145
E147: 146
E148: 147
E149: 148
E150: 149
E151: 150
E152: 151
E153: 152
E154: 153
E155: 154
E156: 155
E157: 156
E158: 157
E159: 158
E160: 159
E161: 160
E162: 161
E163: 162
E164: 163
E165: 164
E166: 165
E167: 166
E168: 167
E169: 168
E170: 169
E171: 170
E172: 171
E173: 172
E174: 173
E175: 174
E176: 175
E177: 176
E178: 177
E179: 178
E180: 179
E181: 180
E182: 181
E183: 182
E184: 183
E185: 184
E186: 185
E187: 186
E188: 187
E189: 188
E190: 189
E191: 190
E192: 191
E193: 192
E194: 193
E195: 194
E196: 195
E197: 196
E198: 197
E199: 198
E200: 199
... 101 more rows

Sheet Derby
A1: Futurity | B1: Der | C1: Age Inct. | D1: BBR | E1: Draw | F1: Rider Name | G1: Horse Name | H1: Final Time | I1: Placing | J1: Money Earned
E2: 24 | F2: Nisa Berry | G2: VF Look Im Back | H2: 15.593 | I2: 1D 1st | J2: 227
E3: 14 | F3: Molli Montgomery | G3: Legsgonewild | H3: 15.808 | I3: 1D 2nd | J3: 151
E4: 20 | F4: Felecia Taylor | G4: AR Dash Ta Flame | H4: 15.887
E5: 17 | F5: Charli Snow | G5: Shinin For You | H5: 15.932
E6: 13 | F6: Whitney Godinez | G6: Happy Hour Special | H6: 16.065
E7: 4 | F7: Riley Ross | G7: HP Rocket Ta Fame | H7: 16.074
E8: 25 | F8: Lindsey Kruse | G8: Crown N Fame | H8: 16.078
E9: 1 | F9: Hannah Forbes | G9: Ivory Candy | H9: 16.161
E10: 27 | F10: Natalie Bland | G10: THC OK Fuel | H10: 16.216
E11: 2 | F11: Lauren Whitmire | G11: WR Rebas Fling | H11: 16.229
E12: 23 | F12: Lacey Harmon | G12: Just The Way You Are | H12: 16.239
E13: 8 | F13: Jessica Haggerty | G13: Fame On Fire | H13: 16.341
E14: 3 | F14: Laura Avery | G14: Letta Trouble Doit | H14: 16.35
E15: 19 | F15: Kelsey Gordon | G15: Prada | H15: 16.63 | I15: 2D 1st | J15: 97
E16: 18 | F16: Reenie Wahlert | G16: Famous Little Pistol | H16: 16.789 | I16: 2D 2nd | J16: 65
E17: 10 | F17: Molli Montgomery | G17: Pandora | H17: 16.891
E18: 9 | F18: Debbie Bloxom | G18: Shake The Flame | H18: 18.103
E19: 21 | F19: Brittany Fellows | G19: Mary Jane | H19: 18.542
E20: 26 | F20: Schelli Creacy | G20: Nico | H20: nt15.737
E21: 22 | F21: Martha Wright | G21: JLFourTaFame | H21: nt15.862
E22: 11 | F22: Andrea Cline | G22: Raising Fame | H22: nt16.362
E23: 16 | F23: Ryann Pedone | G23: Streakin Queenie | H23: nt16.459
E24: 12 | F24: Lorissa Jo Merritt | G24: Marthas Dr Flit Bar | H24: nt16.471
E25: 6 | F25: Susan Agnew | G25: Jet N Ta Fame | H25: nt16.475
E26: 5 | F26: Brittany Pierson | G26: Gay Jay Olena | H26: nt16.639
E27: 15 | F27: Molli Montgomery | G27: Makin Ya Famous | H27: nt19.809
E28: 7 | F28: Terry Vogel | G28: DarbyFrenchmengonblu | H28: nt28.541
E29: 28 | H29: =IF(OR(#REF!=5,#REF!=10,#REF!= 15,#REF!= "BP",#REF!="SCR"),"NT",#REF!) -> 
E30: 29 | H30: =IF(OR(#REF!=5,#REF!=10,#REF!= 15,#REF!= "BP",#REF!="SCR"),"NT",#REF!) -> 
E31: 30 | H31: =IF(OR(#REF!=5,#REF!=10,#REF!= 15,#REF!= "BP",#REF!="SCR"),"NT",#REF!) -> 
E32: 31 | H32: =IF(OR(#REF!=5,#REF!=10,#REF!= 15,#REF!= "BP",#REF!="SCR"),"NT",#REF!) -> 
E33: 32 | H33: =IF(OR(#REF!=5,#REF!=10,#REF!= 15,#REF!= "BP",#REF!="SCR"),"NT",#REF!) -> 
E34: 33 | H34: =IF(OR(#REF!=5,#REF!=10,#REF!= 15,#REF!= "BP",#REF!="SCR"),"NT",#REF!) -> 
E35: 34 | H35: =IF(OR(#REF!=5,#REF!=10,#REF!= 15,#REF!= "BP",#REF!="SCR"),"NT",#REF!) -> 
E36: 35 | H36: =IF(OR(#REF!=5,#REF!=10,#REF!= 15,#REF!= "BP",#REF!="SCR"),"NT",#REF!) -> 
E37: 36 | H37: =IF(OR(#REF!=5,#REF!=10,#REF!= 15,#REF!= "BP",#REF!="SCR"),"NT",#REF!) -> 
E38: 37 | H38: =IF(OR(#REF!=5,#REF!=10,#REF!= 15,#REF!= "BP",#REF!="SCR"),"NT",#REF!) -> 
E39: 38 | H39: =IF(OR(#REF!=5,#REF!=10,#REF!= 15,#REF!= "BP",#REF!="SCR"),"NT",#REF!) -> 
E40: 39 | H40: =IF(OR(#REF!=5,#REF!=10,#REF!= 15,#REF!= "BP",#REF!="SCR"),"NT",#REF!) -> 
E41: 40 | H41: =IF(OR(#REF!=5,#REF!=10,#REF!= 15,#REF!= "BP",#REF!="SCR"),"NT",#REF!) -> 
E42: 41 | H42: =IF(OR(#REF!=5,#REF!=10,#REF!= 15,#REF!= "BP",#REF!="SCR"),"NT",#REF!) -> 
E43: 42 | H43: =IF(OR(#REF!=5,#REF!=10,#REF!= 15,#REF!= "BP",#REF!="SCR"),"NT",#REF!) -> 
E44: 43 | H44: =IF(OR(#REF!=5,#REF!=10,#REF!= 15,#REF!= "BP",#REF!="SCR"),"NT",#REF!) -> 
E45: 44 | H45: =IF(OR(#REF!=5,#REF!=10,#REF!= 15,#REF!= "BP",#REF!="SCR"),"NT",#REF!) -> 
E46: 45 | H46: =IF(OR(#REF!=5,#REF!=10,#REF!= 15,#REF!= "BP",#REF!="SCR"),"NT",#REF!) -> 
E47: 46 | H47: =IF(OR(#REF!=5,#REF!=10,#REF!= 15,#REF!= "BP",#REF!="SCR"),"NT",#REF!) -> 
E48: 47 | H48: =IF(OR(#REF!=5,#REF!=10,#REF!= 15,#REF!= "BP",#REF!="SCR"),"NT",#REF!) -> 
E49: 48 | H49: =IF(OR(#REF!=5,#REF!=10,#REF!= 15,#REF!= "BP",#REF!="SCR"),"NT",#REF!) -> 
E50: 49 | H50: =IF(OR(#REF!=5,#REF!=10,#REF!= 15,#REF!= "BP",#REF!="SCR"),"NT",#REF!) -> 
E51: 50 | H51: =IF(OR(#REF!=5,#REF!=10,#REF!= 15,#REF!= "BP",#REF!="SCR"),"NT",#REF!) -> 
E52: 51 | H52: =IF(OR(#REF!=5,#REF!=10,#REF!= 15,#REF!= "BP",#REF!="SCR"),"NT",#REF!) -> 
E53: 52 | H53: =IF(OR(#REF!=5,#REF!=10,#REF!= 15,#REF!= "BP",#REF!="SCR"),"NT",#REF!) -> 
E54: 53 | H54: =IF(OR(#REF!=5,#REF!=10,#REF!= 15,#REF!= "BP",#REF!="SCR"),"NT",#REF!) -> 
E55: 54 | H55: =IF(OR(#REF!=5,#REF!=10,#REF!= 15,#REF!= "BP",#REF!="SCR"),"NT",#REF!) -> 
E56: 55 | H56: =IF(OR(#REF!=5,#REF!=10,#REF!= 15,#REF!= "BP",#REF!="SCR"),"NT",#REF!) -> 
E57: 56 | H57: =IF(OR(#REF!=5,#REF!=10,#REF!= 15,#REF!= "BP",#REF!="SCR"),"NT",#REF!) -> 
E58: 57 | H58: =IF(OR(#REF!=5,#REF!=10,#REF!= 15,#REF!= "BP",#REF!="SCR"),"NT",#REF!) -> 
E59: 58 | H59: =IF(OR(#REF!=5,#REF!=10,#REF!= 15,#REF!= "BP",#REF!="SCR"),"NT",#REF!) -> 
E60: 59 | H60: =IF(OR(#REF!=5,#REF!=10,#REF!= 15,#REF!= "BP",#REF!="SCR"),"NT",#REF!) -> 
E61: 60 | H61: =IF(OR(#REF!=5,#REF!=10,#REF!= 15,#REF!= "BP",#REF!="SCR"),"NT",#REF!) -> 
E62: 61 | H62: =IF(OR(#REF!=5,#REF!=10,#REF!= 15,#REF!= "BP",#REF!="SCR"),"NT",#REF!) -> 
E63: 62 | H63: =IF(OR(#REF!=5,#REF!=10,#REF!= 15,#REF!= "BP",#REF!="SCR"),"NT",#REF!) -> 
E64: 63 | H64: =IF(OR(#REF!=5,#REF!=10,#REF!= 15,#REF!= "BP",#REF!="SCR"),"NT",#REF!) -> 
E65: 64 | H65: =IF(OR(#REF!=5,#REF!=10,#REF!= 15,#REF!= "BP",#REF!="SCR"),"NT",#REF!) -> 
E66: 65 | H66: =IF(OR(#REF!=5,#REF!=10,#REF!= 15,#REF!= "BP",#REF!="SCR"),"NT",#REF!) -> 
E67: 66 | H67: =IF(OR(#REF!=5,#REF!=10,#REF!= 15,#REF!= "BP",#REF!="SCR"),"NT",#REF!) -> 
E68: 67 | H68: =IF(OR(#REF!=5,#REF!=10,#REF!= 15,#REF!= "BP",#REF!="SCR"),"NT",#REF!) -> 
E69: 68 | H69: =IF(OR(#REF!=5,#REF!=10,#REF!= 15,#REF!= "BP",#REF!="SCR"),"NT",#REF!) -> 
E70: 69 | H70: =IF(OR(#REF!=5,#REF!=10,#REF!= 15,#REF!= "BP",#REF!="SCR"),"NT",#REF!) -> 
E71: 70 | H71: =IF(OR(#REF!=5,#REF!=10,#REF!= 15,#REF!= "BP",#REF!="SCR"),"NT",#REF!) -> 
E72: 71 | H72: =IF(OR(#REF!=5,#REF!=10,#REF!= 15,#REF!= "BP",#REF!="SCR"),"NT",#REF!) -> 
E73: 72 | H73: =IF(OR(#REF!=5,#REF!=10,#REF!= 15,#REF!= "BP",#REF!="SCR"),"NT",#REF!) -> 
E74: 73 | H74: =IF(OR(#REF!=5,#REF!=10,#REF!= 15,#REF!= "BP",#REF!="SCR"),"NT",#REF!) -> 
E75: 74 | H75: =IF(OR(#REF!=5,#REF!=10,#REF!= 15,#REF!= "BP",#REF!="SCR"),"NT",#REF!) -> 
E76: 75 | H76: =IF(OR(#REF!=5,#REF!=10,#REF!= 15,#REF!= "BP",#REF!="SCR"),"NT",#REF!) -> 
E77: 76 | H77: =IF(OR(#REF!=5,#REF!=10,#REF!= 15,#REF!= "BP",#REF!="SCR"),"NT",#REF!) -> 
E78: 77 | H78: =IF(OR(#REF!=5,#REF!=10,#REF!= 15,#REF!= "BP",#REF!="SCR"),"NT",#REF!) -> 
E79: 78 | H79: =IF(OR(#REF!=5,#REF!=10,#REF!= 15,#REF!= "BP",#REF!="SCR"),"NT",#REF!) -> 
E80: 79 | H80: =IF(OR(#REF!=5,#REF!=10,#REF!= 15,#REF!= "BP",#REF!="SCR"),"NT",#REF!) -> 
E81: 80 | H81: =IF(OR(#REF!=5,#REF!=10,#REF!= 15,#REF!= "BP",#REF!="SCR"),"NT",#REF!) -> 
E82: 81 | H82: =IF(OR(#REF!=5,#REF!=10,#REF!= 15,#REF!= "BP",#REF!="SCR"),"NT",#REF!) -> 
E83: 82 | H83: =IF(OR(#REF!=5,#REF!=10,#REF!= 15,#REF!= "BP",#REF!="SCR"),"NT",#REF!) -> 
E84: 83 | H84: =IF(OR(#REF!=5,#REF!=10,#REF!= 15,#REF!= "BP",#REF!="SCR"),"NT",#REF!) -> 
E85: 84 | H85: =IF(OR(#REF!=5,#REF!=10,#REF!= 15,#REF!= "BP",#REF!="SCR"),"NT",#REF!) -> 
E86: 85 | H86: =IF(OR(#REF!=5,#REF!=10,#REF!= 15,#REF!= "BP",#REF!="SCR"),"NT",#REF!) -> 
E87: 86 | H87: =IF(OR(#REF!=5,#REF!=10,#REF!= 15,#REF!= "BP",#REF!="SCR"),"NT",#REF!) -> 
E88: 87 | H88: =IF(OR(#REF!=5,#REF!=10,#REF!= 15,#REF!= "BP",#REF!="SCR"),"NT",#REF!) -> 
E89: 88 | H89: =IF(OR(#REF!=5,#REF!=10,#REF!= 15,#REF!= "BP",#REF!="SCR"),"NT",#REF!) -> 
E90: 89 | H90: =IF(OR(#REF!=5,#REF!=10,#REF!= 15,#REF!= "BP",#REF!="SCR"),"NT",#REF!) -> 
E91: 90 | H91: =IF(OR(#REF!=5,#REF!=10,#REF!= 15,#REF!= "BP",#REF!="SCR"),"NT",#REF!) -> 
E92: 91 | H92: =IF(OR(#REF!=5,#REF!=10,#REF!= 15,#REF!= "BP",#REF!="SCR"),"NT",#REF!) -> 
E93: 92 | H93: =IF(OR(#REF!=5,#REF!=10,#REF!= 15,#REF!= "BP",#REF!="SCR"),"NT",#REF!) -> 
E94: 93 | H94: =IF(OR(#REF!=5,#REF!=10,#REF!= 15,#REF!= "BP",#REF!="SCR"),"NT",#REF!) -> 
E95: 94 | H95: =IF(OR(#REF!=5,#REF!=10,#REF!= 15,#REF!= "BP",#REF!="SCR"),"NT",#REF!) -> 
E96: 95 | H96: =IF(OR(#REF!=5,#REF!=10,#REF!= 15,#REF!= "BP",#REF!="SCR"),"NT",#REF!) -> 
E97: 96 | H97: =IF(OR(#REF!=5,#REF!=10,#REF!= 15,#REF!= "BP",#REF!="SCR"),"NT",#REF!) -> 
E98: 97 | H98: =IF(OR(#REF!=5,#REF!=10,#REF!= 15,#REF!= "BP",#REF!="SCR"),"NT",#REF!) -> 
E99: 98 | H99: =IF(OR(#REF!=5,#REF!=10,#REF!= 15,#REF!= "BP",#REF!="SCR"),"NT",#REF!) -> 
E100: 99 | H100: =IF(OR(#REF!=5,#REF!=10,#REF!= 15,#REF!= "BP",#REF!="SCR"),"NT",#REF!) -> 
E101: 100 | H101: =IF(OR(#REF!=5,#REF!=10,#REF!= 15,#REF!= "BP",#REF!="SCR"),"NT",#REF!) -> 
E102: 101 | H102: =IF(OR(#REF!=5,#REF!=10,#REF!= 15,#REF!= "BP",#REF!="SCR"),"NT",#REF!) -> 
E103: 102 | H103: =IF(OR(#REF!=5,#REF!=10,#REF!= 15,#REF!= "BP",#REF!="SCR"),"NT",#REF!) -> 
E104: 103 | H104: =IF(OR(#REF!=5,#REF!=10,#REF!= 15,#REF!= "BP",#REF!="SCR"),"NT",#REF!) -> 
E105: 104 | H105: =IF(OR(#REF!=5,#REF!=10,#REF!= 15,#REF!= "BP",#REF!="SCR"),"NT",#REF!) -> 
E106: 105 | H106: =IF(OR(#REF!=5,#REF!=10,#REF!= 15,#REF!= "BP",#REF!="SCR"),"NT",#REF!) -> 
E107: 106 | H107: =IF(OR(#REF!=5,#REF!=10,#REF!= 15,#REF!= "BP",#REF!="SCR"),"NT",#REF!) -> 
E108: 107 | H108: =IF(OR(#REF!=5,#REF!=10,#REF!= 15,#REF!= "BP",#REF!="SCR"),"NT",#REF!) -> 
E109: 108 | H109: =IF(OR(#REF!=5,#REF!=10,#REF!= 15,#REF!= "BP",#REF!="SCR"),"NT",#REF!) -> 
E110: 109 | H110: =IF(OR(#REF!=5,#REF!=10,#REF!= 15,#REF!= "BP",#REF!="SCR"),"NT",#REF!) -> 
E111: 110 | H111: =IF(OR(#REF!=5,#REF!=10,#REF!= 15,#REF!= "BP",#REF!="SCR"),"NT",#REF!) -> 
E112: 111 | H112: =IF(OR(#REF!=5,#REF!=10,#REF!= 15,#REF!= "BP",#REF!="SCR"),"NT",#REF!) -> 
E113: 112 | H113: =IF(OR(#REF!=5,#REF!=10,#REF!= 15,#REF!= "BP",#REF!="SCR"),"NT",#REF!) -> 
E114: 113 | H114: =IF(OR(#REF!=5,#REF!=10,#REF!= 15,#REF!= "BP",#REF!="SCR"),"NT",#REF!) -> 
E115: 114 | H115: =IF(OR(#REF!=5,#REF!=10,#REF!= 15,#REF!= "BP",#REF!="SCR"),"NT",#REF!) -> 
E116: 115 | H116: =IF(OR(#REF!=5,#REF!=10,#REF!= 15,#REF!= "BP",#REF!="SCR"),"NT",#REF!) -> 
E117: 116 | H117: =IF(OR(#REF!=5,#REF!=10,#REF!= 15,#REF!= "BP",#REF!="SCR"),"NT",#REF!) -> 
E118: 117 | H118: =IF(OR(#REF!=5,#REF!=10,#REF!= 15,#REF!= "BP",#REF!="SCR"),"NT",#REF!) -> 
E119: 118 | H119: =IF(OR(#REF!=5,#REF!=10,#REF!= 15,#REF!= "BP",#REF!="SCR"),"NT",#REF!) -> 
E120: 119 | H120: =IF(OR(#REF!=5,#REF!=10,#REF!= 15,#REF!= "BP",#REF!="SCR"),"NT",#REF!) -> 
E121: 120 | H121: =IF(OR(#REF!=5,#REF!=10,#REF!= 15,#REF!= "BP",#REF!="SCR"),"NT",#REF!) -> 
E122: 121 | H122: =IF(OR(#REF!=5,#REF!=10,#REF!= 15,#REF!= "BP",#REF!="SCR"),"NT",#REF!) -> 
E123: 122 | H123: =IF(OR(#REF!=5,#REF!=10,#REF!= 15,#REF!= "BP",#REF!="SCR"),"NT",#REF!) -> 
E124: 123 | H124: =IF(OR(#REF!=5,#REF!=10,#REF!= 15,#REF!= "BP",#REF!="SCR"),"NT",#REF!) -> 
E125: 124 | H125: =IF(OR(#REF!=5,#REF!=10,#REF!= 15,#REF!= "BP",#REF!="SCR"),"NT",#REF!) -> 
E126: 125 | H126: =IF(OR(#REF!=5,#REF!=10,#REF!= 15,#REF!= "BP",#REF!="SCR"),"NT",#REF!) -> 
E127: 126 | H127: =IF(OR(#REF!=5,#REF!=10,#REF!= 15,#REF!= "BP",#REF!="SCR"),"NT",#REF!) -> 
E128: 127 | H128: =IF(OR(#REF!=5,#REF!=10,#REF!= 15,#REF!= "BP",#REF!="SCR"),"NT",#REF!) -> 
E129: 128 | H129: =IF(OR(#REF!=5,#REF!=10,#REF!= 15,#REF!= "BP",#REF!="SCR"),"NT",#REF!) -> 
E130: 129 | H130: =IF(OR(#REF!=5,#REF!=10,#REF!= 15,#REF!= "BP",#REF!="SCR"),"NT",#REF!) -> 
E131: 130 | H131: =IF(OR(#REF!=5,#REF!=10,#REF!= 15,#REF!= "BP",#REF!="SCR"),"NT",#REF!) -> 
E132: 131 | H132: =IF(OR(#REF!=5,#REF!=10,#REF!= 15,#REF!= "BP",#REF!="SCR"),"NT",#REF!) -> 
E133: 132 | H133: =IF(OR(#REF!=5,#REF!=10,#REF!= 15,#REF!= "BP",#REF!="SCR"),"NT",#REF!) -> 
E134: 133 | H134: =IF(OR(#REF!=5,#REF!=10,#REF!= 15,#REF!= "BP",#REF!="SCR"),"NT",#REF!) -> 
E135: 134 | H135: =IF(OR(#REF!=5,#REF!=10,#REF!= 15,#REF!= "BP",#REF!="SCR"),"NT",#REF!) -> 
E136: 135 | H136: =IF(OR(#REF!=5,#REF!=10,#REF!= 15,#REF!= "BP",#REF!="SCR"),"NT",#REF!) -> 
E137: 136 | H137: =IF(OR(#REF!=5,#REF!=10,#REF!= 15,#REF!= "BP",#REF!="SCR"),"NT",#REF!) -> 
E138: 137 | H138: =IF(OR(#REF!=5,#REF!=10,#REF!= 15,#REF!= "BP",#REF!="SCR"),"NT",#REF!) -> 
E139: 138 | H139: =IF(OR(#REF!=5,#REF!=10,#REF!= 15,#REF!= "BP",#REF!="SCR"),"NT",#REF!) -> 
E140: 139 | H140: =IF(OR(#REF!=5,#REF!=10,#REF!= 15,#REF!= "BP",#REF!="SCR"),"NT",#REF!) -> 
E141: 140 | H141: =IF(OR(#REF!=5,#REF!=10,#REF!= 15,#REF!= "BP",#REF!="SCR"),"NT",#REF!) -> 
E142: 141 | H142: =IF(OR(#REF!=5,#REF!=10,#REF!= 15,#REF!= "BP",#REF!="SCR"),"NT",#REF!) -> 
E143: 142 | H143: =IF(OR(#REF!=5,#REF!=10,#REF!= 15,#REF!= "BP",#REF!="SCR"),"NT",#REF!) -> 
E144: 143 | H144: =IF(OR(#REF!=5,#REF!=10,#REF!= 15,#REF!= "BP",#REF!="SCR"),"NT",#REF!) -> 
E145: 144 | H145: =IF(OR(#REF!=5,#REF!=10,#REF!= 15,#REF!= "BP",#REF!="SCR"),"NT",#REF!) -> 
E146: 145 | H146: =IF(OR(#REF!=5,#REF!=10,#REF!= 15,#REF!= "BP",#REF!="SCR"),"NT",#REF!) -> 
E147: 146 | H147: =IF(OR(#REF!=5,#REF!=10,#REF!= 15,#REF!= "BP",#REF!="SCR"),"NT",#REF!) -> 
E148: 147 | H148: =IF(OR(#REF!=5,#REF!=10,#REF!= 15,#REF!= "BP",#REF!="SCR"),"NT",#REF!) -> 
E149: 148 | H149: =IF(OR(#REF!=5,#REF!=10,#REF!= 15,#REF!= "BP",#REF!="SCR"),"NT",#REF!) -> 
E150: 149 | H150: =IF(OR(#REF!=5,#REF!=10,#REF!= 15,#REF!= "BP",#REF!="SCR"),"NT",#REF!) -> 
E151: 150 | H151: =IF(OR(#REF!=5,#REF!=10,#REF!= 15,#REF!= "BP",#REF!="SCR"),"NT",#REF!) -> 
E152: 151 | H152: =IF(OR(#REF!=5,#REF!=10,#REF!= 15,#REF!= "BP",#REF!="SCR"),"NT",#REF!) -> 
E153: 152 | H153: =IF(OR(#REF!=5,#REF!=10,#REF!= 15,#REF!= "BP",#REF!="SCR"),"NT",#REF!) -> 
E154: 153 | H154: =IF(OR(#REF!=5,#REF!=10,#REF!= 15,#REF!= "BP",#REF!="SCR"),"NT",#REF!) -> 
E155: 154 | H155: =IF(OR(#REF!=5,#REF!=10,#REF!= 15,#REF!= "BP",#REF!="SCR"),"NT",#REF!) -> 
E156: 155 | H156: =IF(OR(#REF!=5,#REF!=10,#REF!= 15,#REF!= "BP",#REF!="SCR"),"NT",#REF!) -> 
E157: 156 | H157: =IF(OR(#REF!=5,#REF!=10,#REF!= 15,#REF!= "BP",#REF!="SCR"),"NT",#REF!) -> 
E158: 157 | H158: =IF(OR(#REF!=5,#REF!=10,#REF!= 15,#REF!= "BP",#REF!="SCR"),"NT",#REF!) -> 
E159: 158 | H159: =IF(OR(#REF!=5,#REF!=10,#REF!= 15,#REF!= "BP",#REF!="SCR"),"NT",#REF!) -> 
E160: 159 | H160: =IF(OR(#REF!=5,#REF!=10,#REF!= 15,#REF!= "BP",#REF!="SCR"),"NT",#REF!) -> 
E161: 160 | H161: =IF(OR(#REF!=5,#REF!=10,#REF!= 15,#REF!= "BP",#REF!="SCR"),"NT",#REF!) -> 
E162: 161 | H162: =IF(OR(#REF!=5,#REF!=10,#REF!= 15,#REF!= "BP",#REF!="SCR"),"NT",#REF!) -> 
E163: 162 | H163: =IF(OR(#REF!=5,#REF!=10,#REF!= 15,#REF!= "BP",#REF!="SCR"),"NT",#REF!) -> 
E164: 163 | H164: =IF(OR(#REF!=5,#REF!=10,#REF!= 15,#REF!= "BP",#REF!="SCR"),"NT",#REF!) -> 
E165: 164 | H165: =IF(OR(#REF!=5,#REF!=10,#REF!= 15,#REF!= "BP",#REF!="SCR"),"NT",#REF!) -> 
E166: 165 | H166: =IF(OR(#REF!=5,#REF!=10,#REF!= 15,#REF!= "BP",#REF!="SCR"),"NT",#REF!) -> 
E167: 166 | H167: =IF(OR(#REF!=5,#REF!=10,#REF!= 15,#REF!= "BP",#REF!="SCR"),"NT",#REF!) -> 
E168: 167 | H168: =IF(OR(#REF!=5,#REF!=10,#REF!= 15,#REF!= "BP",#REF!="SCR"),"NT",#REF!) -> 
E169: 168 | H169: =IF(OR(#REF!=5,#REF!=10,#REF!= 15,#REF!= "BP",#REF!="SCR"),"NT",#REF!) -> 
E170: 169 | H170: =IF(OR(#REF!=5,#REF!=10,#REF!= 15,#REF!= "BP",#REF!="SCR"),"NT",#REF!) -> 
E171: 170 | H171: =IF(OR(#REF!=5,#REF!=10,#REF!= 15,#REF!= "BP",#REF!="SCR"),"NT",#REF!) -> 
E172: 171 | H172: =IF(OR(#REF!=5,#REF!=10,#REF!= 15,#REF!= "BP",#REF!="SCR"),"NT",#REF!) -> 
E173: 172 | H173: =IF(OR(#REF!=5,#REF!=10,#REF!= 15,#REF!= "BP",#REF!="SCR"),"NT",#REF!) -> 
E174: 173 | H174: =IF(OR(#REF!=5,#REF!=10,#REF!= 15,#REF!= "BP",#REF!="SCR"),"NT",#REF!) -> 
E175: 174 | H175: =IF(OR(#REF!=5,#REF!=10,#REF!= 15,#REF!= "BP",#REF!="SCR"),"NT",#REF!) -> 
E176: 175 | H176: =IF(OR(#REF!=5,#REF!=10,#REF!= 15,#REF!= "BP",#REF!="SCR"),"NT",#REF!) -> 
E177: 176 | H177: =IF(OR(#REF!=5,#REF!=10,#REF!= 15,#REF!= "BP",#REF!="SCR"),"NT",#REF!) -> 
E178: 177 | H178: =IF(OR(#REF!=5,#REF!=10,#REF!= 15,#REF!= "BP",#REF!="SCR"),"NT",#REF!) -> 
E179: 178 | H179: =IF(OR(#REF!=5,#REF!=10,#REF!= 15,#REF!= "BP",#REF!="SCR"),"NT",#REF!) -> 
E180: 179 | H180: =IF(OR(#REF!=5,#REF!=10,#REF!= 15,#REF!= "BP",#REF!="SCR"),"NT",#REF!) -> 
E181: 180 | H181: =IF(OR(#REF!=5,#REF!=10,#REF!= 15,#REF!= "BP",#REF!="SCR"),"NT",#REF!) -> 
E182: 181 | H182: =IF(OR(#REF!=5,#REF!=10,#REF!= 15,#REF!= "BP",#REF!="SCR"),"NT",#REF!) -> 
E183: 182 | H183: =IF(OR(#REF!=5,#REF!=10,#REF!= 15,#REF!= "BP",#REF!="SCR"),"NT",#REF!) -> 
E184: 183 | H184: =IF(OR(#REF!=5,#REF!=10,#REF!= 15,#REF!= "BP",#REF!="SCR"),"NT",#REF!) -> 
E185: 184 | H185: =IF(OR(#REF!=5,#REF!=10,#REF!= 15,#REF!= "BP",#REF!="SCR"),"NT",#REF!) -> 
E186: 185 | H186: =IF(OR(#REF!=5,#REF!=10,#REF!= 15,#REF!= "BP",#REF!="SCR"),"NT",#REF!) -> 
E187: 186 | H187: =IF(OR(#REF!=5,#REF!=10,#REF!= 15,#REF!= "BP",#REF!="SCR"),"NT",#REF!) -> 
E188: 187 | H188: =IF(OR(#REF!=5,#REF!=10,#REF!= 15,#REF!= "BP",#REF!="SCR"),"NT",#REF!) -> 
E189: 188 | H189: =IF(OR(#REF!=5,#REF!=10,#REF!= 15,#REF!= "BP",#REF!="SCR"),"NT",#REF!) -> 
E190: 189 | H190: =IF(OR(#REF!=5,#REF!=10,#REF!= 15,#REF!= "BP",#REF!="SCR"),"NT",#REF!) -> 
E191: 190 | H191: =IF(OR(#REF!=5,#REF!=10,#REF!= 15,#REF!= "BP",#REF!="SCR"),"NT",#REF!) -> 
E192: 191 | H192: =IF(OR(#REF!=5,#REF!=10,#REF!= 15,#REF!= "BP",#REF!="SCR"),"NT",#REF!) -> 
E193: 192 | H193: =IF(OR(#REF!=5,#REF!=10,#REF!= 15,#REF!= "BP",#REF!="SCR"),"NT",#REF!) -> 
E194: 193 | H194: =IF(OR(#REF!=5,#REF!=10,#REF!= 15,#REF!= "BP",#REF!="SCR"),"NT",#REF!) -> 
E195: 194 | H195: =IF(OR(#REF!=5,#REF!=10,#REF!= 15,#REF!= "BP",#REF!="SCR"),"NT",#REF!) -> 
E196: 195 | H196: =IF(OR(#REF!=5,#REF!=10,#REF!= 15,#REF!= "BP",#REF!="SCR"),"NT",#REF!) -> 
E197: 196 | H197: =IF(OR(#REF!=5,#REF!=10,#REF!= 15,#REF!= "BP",#REF!="SCR"),"NT",#REF!) -> 
E198: 197 | H198: =IF(OR(#REF!=5,#REF!=10,#REF!= 15,#REF!= "BP",#REF!="SCR"),"NT",#REF!) -> 
E199: 198 | H199: =IF(OR(#REF!=5,#REF!=10,#REF!= 15,#REF!= "BP",#REF!="SCR"),"NT",#REF!) -> 
E200: 199 | H200: =IF(OR(#REF!=5,#REF!=10,#REF!= 15,#REF!= "BP",#REF!="SCR"),"NT",#REF!) -> 
... 101 more rows

Sheet Futurity
A1: Futurity | B1: Der | C1: Age Inct. | D1: BBR | E1: Draw | F1: Rider Name | G1: Horse Name | H1: Time | I1: Placing | J1: Money Earned
E2: 34 | F2: Nisa Berry | G2: VF Famous Cowgirl | H2: 16.089 | I2: 1D 1st | J2: 238
E3: 32 | F3: Davie King | G3: CR Tellerimfamous | H3: 16.18 | I3: 1D 2nd | J3: 143
E4: 19 | F4: Ryann Pedone | G4: Coco Bongo | H4: 16.188 | I4: 1D 3rd | J4: 95
E5: 6 | F5: Andrea Cline | G5: Fame Us First Lady | H5: 16.238
E6: 31 | F6: Nisa Berry | G6: Jeepers Im Famous | H6: 16.29
E7: 24 | F7: Ali Anton | G7: Glamour Goddess | H7: 16.38
E8: 28 | F8: Maylee McCrary | G8: SK Easy Struttin Go | H8: 16.409
E9: 2 | F9: Chris Martin | G9: A Smooth Twister | H9: 16.488
E10: 14 | F10: Ryann Pedone | G10: NNN Sixums Firewater | H10: 16.553
E11: 30 | F11: Mindy Holloway | G11: Bicardi | H11: 16.633
E12: 21 | F12: Whitney Godinez | G12: So Gals Got Fire | H12: 16.712
E13: 15 | F13: Susan Agnew | G13: Splash Da Firewater | H13: 16.842
E14: 10 | F14: Lorissa Jo Merritt | G14: HB Blazin Fire | H14: 16.855
E15: 23 | F15: Emilie Veillette | G15: Bar B Kiss N Boogie | H15: 16.874
E16: 3 | F16: Lisa Ogden | G16: Eyesa Stoli Dream | H16: 16.951
E17: 29 | F17: Lacey Harmon | G17: Guys Got Fire | H17: 16.965
E18: 26 | F18: Emma Wildeisen | G18: Dashin Ta Kill | H18: 17.286 | I18: 2D 1st | J18: 102
E19: 7 | F19: Stephanie Johnson | G19: Fired By Playboy | H19: 17.816 | I19: 2D 2nd | J19: 61.2
E20: 20 | F20: Lorissa Jo Merritt | G20: Perks Packin Iron | H20: 18.074 | I20: 2D 3rd | J20: 40.8
E21: 8 | F21: Laurel Anthony | G21: Widows Reydioactive | H21: 18.5
E22: 17 | F22: Nicoletta Bean | G22: Confederetta | H22: 18.74
E23: 9 | F23: Kylena Hager | G23: Tulio Jones | H23: 19.555
E24: 22 | F24: Steven Trujillo | G24: QT's Nu Jewel | H24: 22.117
E25: 18 | F25: Molli Montgomery | G25: Strawflin the Gold | H25: nt16.212
E26: 16 | F26: Carlos Renato | G26: DTF Confirmed In Luv | H26: nt16.246
E27: 4 | F27: Jade Crago | G27: Sophie So Sweet | H27: nt16.545
E28: 11 | F28: Terry Vogel | G28: Super Frosted Bug | H28: nt16.575
E29: 12 | F29: Chris Martin | G29: Frenchie | H29: nt16.664
E30: 33 | F30: Mindy Holloway | G30: Bull | H30: nt16.812
E31: 1 | F31: Charlotte Edwards | G31: VF Temptations | H31: nt16.976
E32: 5 | F32: Ryann Pedone | G32: Streakingivemeawink | H32: nt17.284
E33: 27 | F33: Danyelle Campbell | G33: JL Tularosa | H33: nt17.399
E34: 25 | F34: Suade Furr | G34: KR Tarzan | H34: nt24.594
E35: 13 | F35: Laura Avery | G35: A Flashy Frenchman | H35: nt28.941
E36: 35
E37: 36
E38: 37
E39: 38
E40: 39
E41: 40
E42: 41
E43: 42
E44: 43
E45: 44
E46: 45
E47: 46
E48: 47
E49: 48
E50: 49
E51: 50
E52: 51
E53: 52
E54: 53
E55: 54
E56: 55
E57: 56
E58: 57
E59: 58
E60: 59
E61: 60
E62: 61
E63: 62
E64: 63
E65: 64
E66: 65
E67: 66
E68: 67
E69: 68
E70: 69
E71: 70
E72: 71
E73: 72
E74: 73
E75: 74
E76: 75
E77: 76
E78: 77
E79: 78
E80: 79
E81: 80
E82: 81
E83: 82
E84: 83
E85: 84
E86: 85
E87: 86
E88: 87
E89: 88
E90: 89
E91: 90
E92: 91
E93: 92
E94: 93
E95: 94
E96: 95
E97: 96
E98: 97
E99: 98
E100: 99
E101: 100
E102: 101
E103: 102
E104: 103
E105: 104
E106: 105
E107: 106
E108: 107
E109: 108
E110: 109
E111: 110
E112: 111
E113: 112
E114: 113
E115: 114
E116: 115
E117: 116
E118: 117
E119: 118
E120: 119
E121: 120
E122: 121
E123: 122
E124: 123
E125: 124
E126: 125
E127: 126
E128: 127
E129: 128
E130: 129
E131: 130
E132: 131
E133: 132
E134: 133
E135: 134
E136: 135
E137: 136
E138: 137
E139: 138
E140: 139
E141: 140
E142: 141
E143: 142
E144: 143
E145: 144
E146: 145
E147: 146
E148: 147
E149: 148
E150: 149
E151: 150
E152: 151
E153: 152
E154: 153
E155: 154
E156: 155
E157: 156
E158: 157
E159: 158
E160: 159
E161: 160
E162: 161
E163: 162
E164: 163
E165: 164
E166: 165
E167: 166
E168: 167
E169: 168
E170: 169
E171: 170
E172: 171
E173: 172
E174: 173
E175: 174
E176: 175
E177: 176
E178: 177
E179: 178
E180: 179
E181: 180
E182: 181
E183: 182
E184: 183
E185: 184
E186: 185
E187: 186
E188: 187
E189: 188
E190: 189
E191: 190
E192: 191
E193: 192
E194: 193
E195: 194
E196: 195
E197: 196
E198: 197
E199: 198
E200: 199
... 101 more rows

Sheet 12 & Under (hidden)
A1: Futurity | B1: Der | C1: Age Inct. | D1: R/O | E1: Draw | F1: Rider Name | G1: Horse Name | H1: Time | I1: Final Time | J1: Placing | K1: Money Earned
E33: 32
E34: 33
E35: 34
E36: 35
E37: 36
E38: 37
E39: 38
E40: 39
E41: 40
E42: 41
E43: 42
E44: 43
E45: 44
E46: 45
E47: 46
E48: 47
E49: 48
E50: 49
E51: 50
E52: 51
E53: 52
E54: 53
E55: 54
E56: 55
E57: 56
E58: 57
E59: 58
E60: 59
E61: 60
E62: 61
E63: 62
E64: 63
E65: 64
E66: 65
E67: 66
E68: 67
E69: 68
E70: 69
E71: 70
E72: 71
E73: 72
E74: 73
E75: 74
E76: 75
E77: 76
E78: 77
E79: 78
E80: 79
E81: 80
E82: 81
E83: 82
E84: 83
E85: 84
E86: 85
E87: 86
E88: 87
E89: 88
E90: 89
E91: 90
E92: 91
E93: 92
E94: 93
E95: 94
E96: 95
E97: 96
E98: 97
E99: 98
E100: 99
E101: 100
E102: 101
E103: 102
E104: 103
E105: 104
E106: 105
E107: 106
E108: 107
E109: 108
E110: 109
E111: 110
E112: 111
E113: 112
E114: 113
E115: 114
E116: 115
E117: 116
E118: 117
E119: 118
E120: 119
E121: 120
E122: 121
E123: 122
E124: 123
E125: 124
E126: 125
E127: 126
E128: 127
E129: 128
E130: 129
E131: 130
E132: 131
E133: 132
E134: 133
E135: 134
E136: 135
E137: 136
E138: 137
E139: 138
E140: 139
E141: 140
E142: 141
E143: 142
E144: 143
E145: 144
E146: 145
E147: 146
E148: 147
E149: 148
E150: 149
E151: 150
E152: 151
E153: 152
E154: 153
E155: 154
E156: 155
E157: 156
E158: 157
E159: 158
E160: 159
E161: 160
E162: 161
E163: 162
E164: 163
E165: 164
E166: 165
E167: 166
E168: 167
E169: 168
E170: 169
E171: 170
E172: 171
E173: 172
E174: 173
E175: 174
E176: 175
E177: 176
E178: 177
E179: 178
E180: 179
E181: 180
E182: 181
E183: 182
E184: 183
E185: 184
E186: 185
E187: 186
E188: 187
E189: 188
E190: 189
E191: 190
E192: 191
E193: 192
E194: 193
E195: 194
E196: 195
E197: 196
E198: 197
E199: 198
E200: 199
E201: 200
E202: 201
E203: 202
E204: 203
E205: 204
E206: 205
E207: 206
E208: 207
E209: 208
E210: 209
E211: 210
E212: 211
E213: 212
E214: 213
E215: 214
E216: 215
E217: 216
E218: 217
E219: 218
E220: 219
E221: 220
E222: 221
E223: 222
E224: 223
E225: 224
E226: 225
E227: 226
E228: 227
E229: 228
E230: 229
E231: 230
... 70 more rows

Sheet 8&under
A1: Draw | B1: Rider Name | C1: Horse Name | D1: Pen | E1: Time | F1: Final Time | G1: Placing | H1: Money Earned
A2: 1 | B2: Whitney Godinez kiddos name
A3: 2 | B3: Shannon Black kiddos name
A4: 3
A5: 4 | F5: =IF(OR(D5=5,D5=10, D5=15, D5="BP",D5="SCR"),"NT",E5) -> 0
A6: 5 | F6: 0
A7: 6 | F7: 0
A8: 7 | F8: 0
A9: 8 | F9: 0
A10: 9 | F10: 0
A11: 10 | F11: 0
A12: 11 | F12: 0
A13: 12 | F13: 0
A14: 13 | F14: 0
A15: 14 | F15: 0
A16: 15 | F16: 0
A17: 16 | F17: 0
A18: 17 | F18: 0
A19: 18 | F19: 0
A20: 19 | F20: 0
A21: 20 | F21: 0

Sheet Average
A1: Parker County Arena
A2: Open
A3: 4 Yr Fut | B3: 5 Yr Fut | C3: Der | D3: Age Inct. | E3: Am | F3: Carry | G3: T/C | H3: F/F | I3: Mem | J3: Nom | K3: Av | L3: BBR | M3: WPRA | N3: Draw | O3: Owner Name | P3: Rider Name | Q3: Horse Name | R3: Pen | S3: Time 1 | T3: Final Time 1 | U3: Pen | V3: Time 2 | W3: Final Time 2 | X3: Total Time | Y3: Average Time | Z3: Placing | AA3: Money Earned | AC3: D Placing | AE3: Split
N4: 1 | T4: =IF(OR(R4=5,R4=10, R4=15, R4="BP",R4="SCR"),"NT",S4) -> 0 | W4: =IF(OR(U4=5,U4=10, U4=15, U4="BP",U4="SCR"),"NT",V4) -> 0 | X4: =(T4+W4) -> 0 | Y4: =(T4+W4)/2 -> 0 | AC4: 1D
N5: 2 | T5: 0 | W5: 0 | X5: 0 | Y5: 0 | AC5: 2D | AD5: =$AD$4+$AE$5 -> 0.5 | AE5: 0.5
N6: 3 | T6: 0 | W6: 0 | X6: 0 | Y6: 0 | AC6: 3D | AD6: =$AD$5+$AE$6 -> 1 | AE6: 0.5
N7: 4 | T7: 0 | W7: 0 | X7: 0 | Y7: 0 | AC7: 4D | AD7: =$AD$6+$AE$7 -> 1.5 | AE7: 0.5
N8: 5 | T8: 0 | W8: 0 | X8: 0 | Y8: 0 | AC8: 5D | AD8: =$AD$7+$AE$8 -> 2 | AE8: 0.5
N9: 6 | T9: 0 | W9: 0 | X9: 0 | Y9: 0
N10: 7 | T10: 0 | W10: 0 | X10: 0 | Y10: 0 | AC10: # Entered
N11: 8 | T11: 0 | W11: 0 | X11: 0 | Y11: 0 | AC11: =COUNTA(P4:P503) -> 0
N12: 9 | T12: 0 | W12: 0 | X12: 0 | Y12: 0
N13: 10 | T13: 0 | W13: 0 | X13: 0 | Y13: 0
N14: 11 | T14: 0 | W14: 0 | X14: 0 | Y14: 0
N15: 12 | T15: 0 | W15: 0 | X15: 0 | Y15: 0
N16: 13 | T16: 0 | W16: 0 | X16: 0 | Y16: 0
N17: 14 | T17: =IF(OR(R17=5,R17=10, R17=15, R17="BP",R17="SCR"),"NT",S17) -> 0 | W17: =IF(OR(U17=5,U17=10, U17=15, U17="BP",U17="SCR"),"NT",V17) -> 0 | X17: =(T17+W17) -> 0 | Y17: =(T17+W17)/2 -> 0
N18: 15 | T18: 0 | W18: 0 | X18: 0 | Y18: 0
N19: 16 | T19: 0 | W19: 0 | X19: 0 | Y19: 0
N20: 17 | T20: 0 | W20: 0 | X20: 0 | Y20: 0
N21: 18 | T21: 0 | W21: 0 | X21: 0 | Y21: 0
N22: 19 | T22: 0 | W22: 0 | X22: 0 | Y22: 0
N23: 20 | T23: 0 | W23: 0 | X23: 0 | Y23: 0
N24: 21 | T24: 0 | W24: 0 | X24: 0 | Y24: 0
N25: 22 | T25: 0 | W25: 0 | X25: 0 | Y25: 0
N26: 23 | T26: 0 | W26: 0 | X26: 0 | Y26: 0
N27: 24 | T27: 0 | W27: 0 | X27: 0 | Y27: 0
N28: 25 | T28: 0 | W28: 0 | X28: 0 | Y28: 0
N29: 26 | T29: 0 | W29: 0 | X29: 0 | Y29: 0
N30: 27 | T30: 0 | W30: 0 | X30: 0 | Y30: 0
N31: 28 | T31: 0 | W31: 0 | X31: 0 | Y31: 0
N32: 29 | T32: 0 | W32: 0 | X32: 0 | Y32: 0
N33: 30 | T33: 0 | W33: 0 | X33: 0 | Y33: 0
N34: 31 | T34: 0 | W34: 0 | X34: 0 | Y34: 0
N35: 32 | T35: 0 | W35: 0 | X35: 0 | Y35: 0
N36: 33 | T36: 0 | W36: 0 | X36: 0 | Y36: 0
N37: 34 | T37: 0 | W37: 0 | X37: 0 | Y37: 0
N38: 35 | T38: 0 | W38: 0 | X38: 0 | Y38: 0
N39: 36 | T39: 0 | W39: 0 | X39: 0 | Y39: 0
N40: 37 | T40: 0 | W40: 0 | X40: 0 | Y40: 0
N41: 38 | T41: 0 | W41: 0 | X41: 0 | Y41: 0
N42: 39 | T42: 0 | W42: 0 | X42: 0 | Y42: 0
N43: 40 | T43: 0 | W43: 0 | X43: 0 | Y43: 0
N44: 41 | T44: 0 | W44: 0 | X44: 0 | Y44: 0
N45: 42 | T45: 0 | W45: 0 | X45: 0 | Y45: 0
N46: 43 | T46: 0 | W46: 0 | X46: 0 | Y46: 0
N47: 44 | T47: 0 | W47: 0 | X47: 0 | Y47: 0
N48: 45 | T48: 0 | W48: 0 | X48: 0 | Y48: 0
N49: 46 | T49: 0 | W49: 0 | X49: 0 | Y49: 0
N50: 47 | T50: 0 | W50: 0 | X50: 0 | Y50: 0
N51: 48 | T51: 0 | W51: 0 | X51: 0 | Y51: 0
N52: 49 | T52: 0 | W52: 0 | X52: 0 | Y52: 0
N53: 50 | T53: 0 | W53: 0 | X53: 0 | Y53: 0
N54: 51 | T54: 0 | W54: 0 | X54: 0 | Y54: 0
N55: 52 | T55: 0 | W55: 0 | X55: 0 | Y55: 0
N56: 53 | T56: 0 | W56: 0 | X56: 0 | Y56: 0
N57: 54 | T57: 0 | W57: 0 | X57: 0 | Y57: 0
N58: 55 | T58: 0 | W58: 0 | X58: 0 | Y58: 0
N59: 56 | T59: 0 | W59: 0 | X59: 0 | Y59: 0
N60: 57 | T60: 0 | W60: 0 | X60: 0 | Y60: 0
N61: 58 | T61: 0 | W61: 0 | X61: 0 | Y61: 0
N62: 59 | T62: 0 | W62: 0 | X62: 0 | Y62: 0
N63: 60 | T63: 0 | W63: 0 | X63: 0 | Y63: 0
N64: 61 | T64: 0 | W64: 0 | X64: 0 | Y64: 0
N65: 62 | T65: 0 | W65: 0 | X65: 0 | Y65: 0
N66: 63 | T66: 0 | W66: 0 | X66: 0 | Y66: 0
N67: 64 | T67: 0 | W67: 0 | X67: 0 | Y67: 0
N68: 65 | T68: 0 | W68: 0 | X68: 0 | Y68: 0
N69: 66 | T69: =IF(OR(R69=5,R69=10, R69=15, R69="BP",R69="SCR"),"NT",S69) -> 0 | W69: =IF(OR(U69=5,U69=10, U69=15, U69="BP",U69="SCR"),"NT",V69) -> 0 | X69: =(T69+W69) -> 0 | Y69: =(T69+W69)/2 -> 0
N70: 67 | T70: 0 | W70: 0 | X70: 0 | Y70: 0
N71: 68 | T71: 0 | W71: 0 | X71: 0 | Y71: 0
N72: 69 | T72: 0 | W72: 0 | X72: 0 | Y72: 0
N73: 70 | T73: 0 | W73: 0 | X73: 0 | Y73: 0
N74: 71 | T74: 0 | W74: 0 | X74: 0 | Y74: 0
N75: 72 | T75: 0 | W75: 0 | X75: 0 | Y75: 0
N76: 73 | T76: 0 | W76: 0 | X76: 0 | Y76: 0
N77: 74 | T77: 0 | W77: 0 | X77: 0 | Y77: 0
N78: 75 | T78: 0 | W78: 0 | X78: 0 | Y78: 0
N79: 76 | T79: 0 | W79: 0 | X79: 0 | Y79: 0
N80: 77 | T80: 0 | W80: 0 | X80: 0 | Y80: 0
N81: 78 | T81: 0 | W81: 0 | X81: 0 | Y81: 0
N82: 79 | T82: 0 | W82: 0 | X82: 0 | Y82: 0
N83: 80 | T83: 0 | W83: 0 | X83: 0 | Y83: 0
N84: 81 | T84: 0 | W84: 0 | X84: 0 | Y84: 0
N85: 82 | T85: 0 | W85: 0 | X85: 0 | Y85: 0
N86: 83 | T86: 0 | W86: 0 | X86: 0 | Y86: 0
N87: 84 | T87: 0 | W87: 0 | X87: 0 | Y87: 0
N88: 85 | T88: 0 | W88: 0 | X88: 0 | Y88: 0
N89: 86 | T89: 0 | W89: 0 | X89: 0 | Y89: 0
N90: 87 | T90: 0 | W90: 0 | X90: 0 | Y90: 0
N91: 88 | T91: 0 | W91: 0 | X91: 0 | Y91: 0
N92: 89 | T92: 0 | W92: 0 | X92: 0 | Y92: 0
N93: 90 | T93: 0 | W93: 0 | X93: 0 | Y93: 0
N94: 91 | T94: 0 | W94: 0 | X94: 0 | Y94: 0
N95: 92 | T95: 0 | W95: 0 | X95: 0 | Y95: 0
N96: 93 | T96: 0 | W96: 0 | X96: 0 | Y96: 0
N97: 94 | T97: 0 | W97: 0 | X97: 0 | Y97: 0
N98: 95 | T98: 0 | W98: 0 | X98: 0 | Y98: 0
N99: 96 | T99: 0 | W99: 0 | X99: 0 | Y99: 0
N100: 97 | T100: 0 | W100: 0 | X100: 0 | Y100: 0
N101: 98 | T101: 0 | W101: 0 | X101: 0 | Y101: 0
N102: 99 | T102: 0 | W102: 0 | X102: 0 | Y102: 0
N103: 100 | T103: 0 | W103: 0 | X103: 0 | Y103: 0
N104: 101 | T104: 0 | W104: 0 | X104: 0 | Y104: 0
N105: 102 | T105: 0 | W105: 0 | X105: 0 | Y105: 0
N106: 103 | T106: 0 | W106: 0 | X106: 0 | Y106: 0
N107: 104 | T107: 0 | W107: 0 | X107: 0 | Y107: 0
N108: 105 | T108: 0 | W108: 0 | X108: 0 | Y108: 0
N109: 106 | T109: 0 | W109: 0 | X109: 0 | Y109: 0
N110: 107 | T110: 0 | W110: 0 | X110: 0 | Y110: 0
N111: 108 | T111: 0 | W111: 0 | X111: 0 | Y111: 0
N112: 109 | T112: 0 | W112: 0 | X112: 0 | Y112: 0
N113: 110 | T113: 0 | W113: 0 | X113: 0 | Y113: 0
N114: 111 | T114: 0 | W114: 0 | X114: 0 | Y114: 0
N115: 112 | T115: 0 | W115: 0 | X115: 0 | Y115: 0
N116: 113 | T116: 0 | W116: 0 | X116: 0 | Y116: 0
N117: 114 | T117: 0 | W117: 0 | X117: 0 | Y117: 0
N118: 115 | T118: 0 | W118: 0 | X118: 0 | Y118: 0
N119: 116 | T119: 0 | W119: 0 | X119: 0 | Y119: 0
N120: 117 | T120: 0 | W120: 0 | X120: 0 | Y120: 0
N121: 118 | T121: 0 | W121: 0 | X121: 0 | Y121: 0
N122: 119 | T122: 0 | W122: 0 | X122: 0 | Y122: 0
N123: 120 | T123: 0 | W123: 0 | X123: 0 | Y123: 0
N124: 121 | T124: 0 | W124: 0 | X124: 0 | Y124: 0
N125: 122 | T125: 0 | W125: 0 | X125: 0 | Y125: 0
N126: 123 | T126: 0 | W126: 0 | X126: 0 | Y126: 0
N127: 124 | T127: 0 | W127: 0 | X127: 0 | Y127: 0
N128: 125 | T128: 0 | W128: 0 | X128: 0 | Y128: 0
N129: 126 | T129: 0 | W129: 0 | X129: 0 | Y129: 0
N130: 127 | T130: 0 | W130: 0 | X130: 0 | Y130: 0
N131: 128 | T131: 0 | W131: 0 | X131: 0 | Y131: 0
N132: 129 | T132: 0 | W132: 0 | X132: 0 | Y132: 0
N133: 130 | T133: =IF(OR(R133=5,R133=10, R133=15, R133="BP",R133="SCR"),"NT",S133) -> 0 | W133: =IF(OR(U133=5,U133=10, U133=15, U133="BP",U133="SCR"),"NT",V133) -> 0 | X133: =(T133+W133) -> 0 | Y133: =(T133+W133)/2 -> 0
N134: 131 | T134: 0 | W134: 0 | X134: 0 | Y134: 0
N135: 132 | T135: 0 | W135: 0 | X135: 0 | Y135: 0
N136: 133 | T136: 0 | W136: 0 | X136: 0 | Y136: 0
N137: 134 | T137: 0 | W137: 0 | X137: 0 | Y137: 0
N138: 135 | T138: 0 | W138: 0 | X138: 0 | Y138: 0
N139: 136 | T139: 0 | W139: 0 | X139: 0 | Y139: 0
N140: 137 | T140: 0 | W140: 0 | X140: 0 | Y140: 0
N141: 138 | T141: 0 | W141: 0 | X141: 0 | Y141: 0
N142: 139 | T142: 0 | W142: 0 | X142: 0 | Y142: 0
N143: 140 | T143: 0 | W143: 0 | X143: 0 | Y143: 0
N144: 141 | T144: 0 | W144: 0 | X144: 0 | Y144: 0
N145: 142 | T145: 0 | W145: 0 | X145: 0 | Y145: 0
N146: 143 | T146: 0 | W146: 0 | X146: 0 | Y146: 0
N147: 144 | T147: 0 | W147: 0 | X147: 0 | Y147: 0
N148: 145 | T148: 0 | W148: 0 | X148: 0 | Y148: 0
N149: 146 | T149: 0 | W149: 0 | X149: 0 | Y149: 0
N150: 147 | T150: 0 | W150: 0 | X150: 0 | Y150: 0
N151: 148 | T151: 0 | W151: 0 | X151: 0 | Y151: 0
N152: 149 | T152: 0 | W152: 0 | X152: 0 | Y152: 0
N153: 150 | T153: 0 | W153: 0 | X153: 0 | Y153: 0
N154: 151 | T154: 0 | W154: 0 | X154: 0 | Y154: 0
N155: 152 | T155: 0 | W155: 0 | X155: 0 | Y155: 0
N156: 153 | T156: 0 | W156: 0 | X156: 0 | Y156: 0
N157: 154 | T157: 0 | W157: 0 | X157: 0 | Y157: 0
N158: 155 | T158: 0 | W158: 0 | X158: 0 | Y158: 0
N159: 156 | T159: 0 | W159: 0 | X159: 0 | Y159: 0
N160: 157 | T160: 0 | W160: 0 | X160: 0 | Y160: 0
N161: 158 | T161: 0 | W161: 0 | X161: 0 | Y161: 0
N162: 159 | T162: 0 | W162: 0 | X162: 0 | Y162: 0
N163: 160 | T163: 0 | W163: 0 | X163: 0 | Y163: 0
N164: 161 | T164: 0 | W164: 0 | X164: 0 | Y164: 0
N165: 162 | T165: 0 | W165: 0 | X165: 0 | Y165: 0
N166: 163 | T166: 0 | W166: 0 | X166: 0 | Y166: 0
N167: 164 | T167: 0 | W167: 0 | X167: 0 | Y167: 0
N168: 165 | T168: 0 | W168: 0 | X168: 0 | Y168: 0
N169: 166 | T169: 0 | W169: 0 | X169: 0 | Y169: 0
N170: 167 | T170: 0 | W170: 0 | X170: 0 | Y170: 0
N171: 168 | T171: 0 | W171: 0 | X171: 0 | Y171: 0
N172: 169 | T172: 0 | W172: 0 | X172: 0 | Y172: 0
N173: 170 | T173: 0 | W173: 0 | X173: 0 | Y173: 0
N174: 171 | T174: 0 | W174: 0 | X174: 0 | Y174: 0
N175: 172 | T175: 0 | W175: 0 | X175: 0 | Y175: 0
N176: 173 | T176: 0 | W176: 0 | X176: 0 | Y176: 0
N177: 174 | T177: 0 | W177: 0 | X177: 0 | Y177: 0
N178: 175 | T178: 0 | W178: 0 | X178: 0 | Y178: 0
N179: 176 | T179: 0 | W179: 0 | X179: 0 | Y179: 0
N180: 177 | T180: 0 | W180: 0 | X180: 0 | Y180: 0
N181: 178 | T181: 0 | W181: 0 | X181: 0 | Y181: 0
N182: 179 | T182: 0 | W182: 0 | X182: 0 | Y182: 0
N183: 180 | T183: 0 | W183: 0 | X183: 0 | Y183: 0
N184: 181 | T184: 0 | W184: 0 | X184: 0 | Y184: 0
N185: 182 | T185: 0 | W185: 0 | X185: 0 | Y185: 0
N186: 183 | T186: 0 | W186: 0 | X186: 0 | Y186: 0
N187: 184 | T187: 0 | W187: 0 | X187: 0 | Y187: 0
N188: 185 | T188: 0 | W188: 0 | X188: 0 | Y188: 0
N189: 186 | T189: 0 | W189: 0 | X189: 0 | Y189: 0
N190: 187 | T190: 0 | W190: 0 | X190: 0 | Y190: 0
N191: 188 | T191: 0 | W191: 0 | X191: 0 | Y191: 0
N192: 189 | T192: 0 | W192: 0 | X192: 0 | Y192: 0
N193: 190 | T193: 0 | W193: 0 | X193: 0 | Y193: 0
N194: 191 | T194: 0 | W194: 0 | X194: 0 | Y194: 0
N195: 192 | T195: 0 | W195: 0 | X195: 0 | Y195: 0
N196: 193 | T196: 0 | W196: 0 | X196: 0 | Y196: 0
N197: 194 | T197: =IF(OR(R197=5,R197=10, R197=15, R197="BP",R197="SCR"),"NT",S197) -> 0 | W197: =IF(OR(U197=5,U197=10, U197=15, U197="BP",U197="SCR"),"NT",V197) -> 0 | X197: =(T197+W197) -> 0 | Y197: =(T197+W197)/2 -> 0
N198: 195 | T198: 0 | W198: 0 | X198: 0 | Y198: 0
N199: 196 | T199: 0 | W199: 0 | X199: 0 | Y199: 0
N200: 197 | T200: 0 | W200: 0 | X200: 0 | Y200: 0
... 303 more rows

Sheet BFA 2D Payout (hidden)
A1: BFA 2D Payout
A2: Entry Fee | B2: # Entries | C2: % Payback | D2: Added $ | E2: Total Payout | F2: Each Go
A3: 25 | B3: 19 | C3: 0.8 | D3: 200 | E3: =(A3*$C$3)*B3+D3 -> 580 | F3: 0.3
F4: =$E$3*$F$3 -> 174
A5: $5,000-7,500 Pays 5 Places 4 to 1D 1 to 2D
A6: Placings | B6: 1D | D6: 2D
A7: 1st | B7: =($F$4*$C$7) -> 57.42 | C7: 0.33 | D7: =$F$4*$E$7 -> 12.18 | E7: 0.07
A8: 2nd | B8: =$F$4*$C$8 -> 46.98 | C8: 0.27
A9: 3rd | B9: =$F$4*$C$9 -> 34.8 | C9: 0.2
A10: 4th | B10: =$F$4*$C$10 -> 22.62 | C10: 0.13
A11: Totals | B11: =SUM(B7:B10) -> 161.82 | D11: =SUM(D7:D10) -> 12.18 | E11: =(C7+C8+C9+C10+E7+E8) -> 1
A12: =B11+D11 -> 174
A13: $7,501 - 10,000 Pays 6 Places 4 to 1D, 2 to 2D
A14: Placings | B14: 1D | D14: 2D
A15: 1st | B15: =$F$4*$C$15 -> 50.46 | C15: 0.29 | D15: =$F$4*$E$15 -> 15.66 | E15: 0.09
A16: 2nd | B16: =+$F$4*$C$16 -> 41.76 | C16: 0.24 | D16: =F4*E16 -> 8.7 | E16: 0.05
A17: 3rd | B17: =$F$4*$C$17 -> 33.06 | C17: 0.19
A18: 4th | B18: =$F$4*$C$18 -> 24.36 | C18: 0.14
A19: Totals | B19: =SUM(B15:B18) -> 149.64 | D19: =D16+D15 -> 24.36 | E19: =SUM(C15+C16+C17+C18+E15+E16) -> 1
A20: =D19+B19 -> 174
A21: $10,001 - $15,000 Payes 8 Places 5 to 1D, 3 to 2D
A22: Placings | B22: 1D | D22: 2D
A23: 1st | B23: =F4*C23 -> 41.76 | C23: 0.24 | D23: =F4*E23 -> 12.18 | E23: 0.07
A24: 2nd | B24: =F4*C24 -> 34.8 | C24: 0.2 | D24: =F4*E24 -> 8.7 | E24: 0.05
A25: 3rd | B25: =F4*C25 -> 29.58 | C25: 0.17 | D25: =F4*E25 -> 6.96 | E25: 0.04
A26: 4th | B26: =F4*C26 -> 22.62 | C26: 0.13
A27: 5th | B27: =F4*C27 -> 17.4 | C27: 0.1
A28: Totals | B28: =SUM(B23:B27) -> 146.16 | D28: =SUM(D23:D27) -> 27.84 | E28: =C23+C24+C25+C26+C27+E23+E24+E25 -> 1
A29: =B28+D28 -> 174
A30: $15,001 - $25,000 Payes 11 Places 7 to 1D, 4 to 2D
A31: Placings | B31: 1D | D31: 2D
A32: 1st | B32: =$F$4*C32 -> 36.54 | C32: 0.21 | D32: =$F$4*E32 -> 8.7 | E32: 0.05
A33: 2nd | B33: =$F$4*C33 -> 31.32 | C33: 0.18 | D33: =$F$4*E33 -> 6.96 | E33: 0.04
A34: 3rd | B34: 26.1 | C34: 0.15 | D34: 5.22 | E34: 0.03
A35: 4th | B35: 19.14 | C35: 0.11 | D35: 3.48 | E35: 0.02
A36: 5th | B36: 13.92 | C36: 0.08
A37: 6th | B37: 12.18 | C37: 0.07
A38: 7th | B38: 10.44 | C38: 0.06
A39: Totals | B39: =SUM(B32:B38) -> 149.64 | D39: =SUM(D32:D38) -> 24.36 | E39: =C32+C33+C34+C35+C36+C37+C38+E32+E33+E34+E35 -> 1
A40: =SUM(B39+D39) -> 174
A41: $25,001 - $35,000 Payes 12 Places 8 to 1D, 4 to 2D
A42: Placings | B42: 1D | D42: 2D
A43: 1st | B43: =$F$4*C43 -> 33.06 | C43: 0.19 | D43: =$F$4*E43 -> 8.7 | E43: 0.05
A44: 2nd | B44: =$F$4*C44 -> 26.1 | C44: 0.15 | D44: =$F$4*E44 -> 6.96 | E44: 0.04
A45: 3rd | B45: 20.88 | C45: 0.12 | D45: 5.22 | E45: 0.03
A46: 4th | B46: 17.4 | C46: 0.1 | D46: 3.48 | E46: 0.02
A47: 5th | B47: 15.66 | C47: 0.09
A48: 6th | B48: 13.92 | C48: 0.08
A49: 7th | B49: 12.18 | C49: 0.07
A50: 8th | B50: 10.44 | C50: 0.06
A51: Totals | B51: =SUM(B43:B50) -> 149.64 | D51: =SUM(D43:D46) -> 24.36 | E51: =C43+C44+C45+C46+C47+C48+C49+C50+E43+E44+E45+E46 -> 1
A52: =D51+B51 -> 174

Sheet 2D Payout
A1: 2D Payout
A2: Entry Fee | B2: # Entries | C2: % Payback | D2: Added $ | E2: Total Payout
A3: 100 | B3: 12 | C3: 0.8 | D3: 0 | E3: =(A3*$C$3)*B3+D3 -> 960
A5: % in each D | B5: 0.7 | C5: 0.3 | D5: Total % = | E5: =SUM(B5:C5) -> 1
B6: 1D | C6: 2D
B7: =(($A$3*$B$3*$C$3*$B$5)+($D$3*$B$5)) -> 672 | C7: =(($A$3*$B$3*$C$3*$C$5)+($D$3*$C$5)) -> 288
A8: Totals | B8: =SUM(B7) -> 672 | C8: =SUM(C7) -> 288 | D8: =SUM(B8:C8) -> 960
A10: For 1-7 riders 1 place
A11: Placings | B11: 1D | C11: 2D
A12: 1st | B12: =$B$7*$E$12 -> 672 | C12: =$C$7*$E$5 -> 288 | D12: è | E12: 1
A13: Totals | B13: =SUM(B12:B12) -> 672 | C13: =SUM(C12:C12) -> 288 | D13: =SUM(B13:C13) -> 960 | E13: =SUM(E12) -> 1
A15: For 8-11 riders 2 places
A16: Placings | B16: 1D | C16: 2D
A17: 1st | B17: =$B$7*$E$17 -> 403.2 | C17: =$C$7*$E$17 -> 172.8 | D17: è | E17: 0.6
A18: 2nd | B18: =$B$7*$E$18 -> 268.8 | C18: =$C$7*$E$18 -> 115.2 | D18: è | E18: 0.4
A19: Totals | B19: =SUM(B17:B18) -> 672 | C19: =SUM(C17:C18) -> 288 | D19: =SUM(B19:C19) -> 960 | E19: =SUM(E17:E18) -> 1
A21: For 12-15 riders 3 places
A22: Placings | B22: 1D | C22: 2D
A23: 1st | B23: =$B$7*$E$23 -> 336 | C23: =$C$7*$E$23 -> 144 | D23: è | E23: 0.5
A24: 2nd | B24: =$B$7*$E$24 -> 201.6 | C24: =$C$7*$E$24 -> 86.4 | D24: è | E24: 0.3
A25: 3rd | B25: =$B$7*$E$25 -> 134.4 | C25: =$C$7*$E$25 -> 57.6 | D25: è | E25: 0.2
A26: Totals | B26: =SUM(B23:B25) -> 672 | C26: =SUM(C23:C25) -> 288 | D26: =SUM(B26:C26) -> 960 | E26: =SUM(E23:E25) -> 1
A28: For 16-19 riders 4 places
A29: Placings | B29: 1D | C29: 2D
A30: 1st | B30: =$B$7*$E$30 -> 268.8 | C30: =$C$7*$E$30 -> 115.2 | D30: è | E30: 0.4
A31: 2nd | B31: =$B$7*$E$31 -> 201.6 | C31: =$C$7*$E$31 -> 86.4 | D31: è | E31: 0.3
A32: 3rd | B32: =$B$7*$E$32 -> 134.4 | C32: =$C$7*$E$32 -> 57.6 | D32: è | E32: 0.2
A33: 4th | B33: =$B$7*$E$33 -> 67.2 | C33: =$C$7*$E$33 -> 28.8 | D33: è | E33: 0.1
A34: Totals | B34: =SUM(B30:B33) -> 672 | C34: =SUM(C30:C33) -> 288 | D34: =SUM(B34:C34) -> 960 | E34: =SUM(E30:E33) -> 1
A36: For 20-23 riders 5 places
A37: Placings | B37: 1D | C37: 2D
A38: 1st | B38: =$B$7*$E$38 -> 201.6 | C38: =$C$7*$E$38 -> 86.4 | D38: è | E38: 0.3
A39: 2nd | B39: =$B$7*$E$39 -> 168 | C39: =$C$7*$E$39 -> 72 | D39: è | E39: 0.25
A40: 3rd | B40: =$B$7*$E$40 -> 134.4 | C40: =$C$7*$E$40 -> 57.6 | D40: è | E40: 0.2
A41: 4th | B41: =$B$7*$E$41 -> 100.8 | C41: =$C$7*$E$41 -> 43.2 | D41: è | E41: 0.15
A42: 5th | B42: =$B$7*$E$42 -> 67.2 | C42: =$C$7*$E$42 -> 28.8 | D42: è | E42: 0.1
A43: Totals | B43: =SUM(B38:B42) -> 672 | C43: =SUM(C38:C42) -> 288 | D43: =SUM(B43:C43) -> 960 | E43: =SUM(E38:E42) -> 1
A45: For 24-27 riders 6 places
A46: Placings | B46: 1D | C46: 2D
A47: 1st | B47: =$B$7*$E$47 -> 168 | C47: =$C$7*$E$47 -> 72 | D47: è | E47: 0.25
A48: 2nd | B48: =$B$7*$E$48 -> 134.4 | C48: =$C$7*$E$48 -> 57.6 | D48: è | E48: 0.2
A49: 3rd | B49: =$B$7*$E$49 -> 120.96 | C49: =$C$7*$E$49 -> 51.84 | D49: è | E49: 0.18
A50: 4th | B50: =$B$7*$E$50 -> 100.8 | C50: =$C$7*$E$50 -> 43.2 | D50: è | E50: 0.15
A51: 5th | B51: =$B$7*$E$51 -> 80.64 | C51: =$C$7*$E$51 -> 34.56 | D51: è | E51: 0.12
A52: 6th | B52: =$B$7*$E$52 -> 67.2 | C52: =$C$7*$E$52 -> 28.8 | D52: è | E52: 0.1
A53: Totals | B53: =SUM(B47:B52) -> 672 | C53: =SUM(C47:C52) -> 288 | D53: =SUM(B53:C53) -> 960 | E53: =SUM(E47:E52) -> 1
A55: For 28-31 riders 7 places
A56: Placings | B56: 1D | C56: 2D
A57: 1st | B57: =$B$7*$E$57 -> 147.84 | C57: =$C$7*$E$57 -> 63.36 | D57: è | E57: 0.22
A58: 2nd | B58: =$B$7*$E$58 -> 120.96 | C58: =$C$7*$E$58 -> 51.84 | D58: è | E58: 0.18
A59: 3rd | B59: =$B$7*$E$59 -> 107.52 | C59: =$C$7*$E$59 -> 46.08 | D59: è | E59: 0.16
A60: 4th | B60: =$B$7*$E$60 -> 94.08 | C60: =$C$7*$E$60 -> 40.32 | D60: è | E60: 0.14
A61: 5th | B61: =$B$7*$E$61 -> 80.64 | C61: =$C$7*$E$61 -> 34.56 | D61: è | E61: 0.12
A62: 6th | B62: =$B$7*$E$62 -> 67.2 | C62: =$C$7*$E$62 -> 28.8 | D62: è | E62: 0.1
A63: 7th | B63: =$B$7*$E$63 -> 53.76 | C63: =$C$7*$E$63 -> 23.04 | D63: è | E63: 0.08
A64: Totals | B64: =SUM(B57:B63) -> 672 | C64: =SUM(C57:C63) -> 288 | D64: =SUM(B64:C64) -> 960 | E64: =SUM(E57:E63) -> 1
A66: For 32 or more riders 8 places
A67: Placings | B67: 1D | C67: 2D
A68: 1st | B68: =$B$7*$E$68 -> 154.56 | C68: =$C$7*$E$68 -> 66.24 | D68: è | E68: 0.23
A69: 2nd | B69: =$B$7*$E$69 -> 134.4 | C69: =$C$7*$E$69 -> 57.6 | D69: è | E69: 0.2
A70: 3rd | B70: =$B$7*$E$70 -> 114.24 | C70: =$C$7*$E$70 -> 48.96 | D70: è | E70: 0.17
A71: 4th | B71: =$B$7*$E$71 -> 94.08 | C71: =$C$7*$E$71 -> 40.32 | D71: è | E71: 0.14
A72: 5th | B72: =$B$7*$E$72 -> 73.92 | C72: =$C$7*$E$72 -> 31.68 | D72: è | E72: 0.11
A73: 6th | B73: =$B$7*$E$73 -> 53.76 | C73: =$C$7*$E$73 -> 23.04 | D73: è | E73: 0.08
A74: 7th | B74: =$B$7*$E$74 -> 33.6 | C74: =$C$7*$E$74 -> 14.4 | D74: è | E74: 0.05
A75: 8th | B75: =$B$7*$E$75 -> 13.44 | C75: =$C$7*$E$75 -> 5.76 | D75: è | E75: 0.02
A76: Totals | B76: =SUM(B68:B75) -> 672 | C76: =SUM(C68:C75) -> 288 | D76: =SUM(B76:C76) -> 960 | E76: =SUM(E68:E75) -> 1

Sheet 3D Payout (hidden)
A1: 3D Payout
A2: Entry Fee | B2: # Entries | C2: % Payback | D2: $ From Entry | E2: Added $ | F2: Total Payout
A3: 10 | B3: 3 | C3: 0.8 | D3: =$A$3*$C$3*$B$3 -> 24 | F3: =$D$3+$E$3 -> 24
A5: % in each D | B5: 0.5 | C5: 0.3 | D5: 0.2 | E5: Total % = | F5: =SUM(B5:D5) -> 1
B6: 1D | C6: 2D | D6: 3D
B7: =(($A$3*$B$3*$C$3*$B$5)+($E$3*$B$5)) -> 12 | C7: =(($A$3*$B$3*$C$3*$C$5)+($E$3*$C$5)) -> 7.2 | D7: =(($A$3*$B$3*$C$3*$D$5)+($E$3*$D$5)) -> 4.8
A8: Totals | B8: =SUM(B7) -> 12 | C8: =SUM(C7) -> 7.2 | D8: 4.8 | E8: =SUM(B8:D8) -> 24
A10: For 1-10 riders 1 place
A11: Placings | B11: 1D | C11: 2D | D11: 3D
A12: 1st | B12: =$B$7*$F$12 -> 12 | C12: =$C$7*$F$12 -> 7.2 | D12: =$D$7*$F$12 -> 4.8 | E12: è | F12: 1
A13: Totals | B13: =SUM(B12:B12) -> 12 | C13: =SUM(C12:C12) -> 7.2 | D13: =SUM(D12:D12) -> 4.8 | E13: =SUM(B13:D13) -> 24 | F13: =SUM(F12) -> 1
A15: For 11-15 riders 2 places
A16: Placings | B16: 1D | C16: 2D | D16: 3D
A17: 1st | B17: =$B$7*$F$17 -> 7.2 | C17: =$C$7*$F$17 -> 4.32 | D17: =$D$7*$F$17 -> 2.88 | E17: è | F17: 0.6
A18: 2nd | B18: =$B$7*$F$18 -> 4.8 | C18: =$C$7*$F$18 -> 2.88 | D18: =$D$7*$F$18 -> 1.92 | E18: è | F18: 0.4
A19: Totals | B19: =SUM(B17:B18) -> 12 | C19: =SUM(C17:C18) -> 7.2 | D19: =SUM(D17:D18) -> 4.8 | E19: =SUM(B19:D19) -> 24 | F19: =SUM(F17:F18) -> 1
A21: For 16-30 riders 3 places
A22: Placings | B22: 1D | C22: 2D | D22: 3D
A23: 1st | B23: =$B$7*$F$23 -> 6 | C23: =$C$7*$F$23 -> 3.6 | D23: =$D$7*$F$23 -> 2.4 | E23: è | F23: 0.5
A24: 2nd | B24: =$B$7*$F$24 -> 3.6 | C24: =$C$7*$F$24 -> 2.16 | D24: =$D$7*$F$24 -> 1.44 | E24: è | F24: 0.3
A25: 3rd | B25: =$B$7*$F$25 -> 2.4 | C25: =$C$7*$F$25 -> 1.44 | D25: =$D$7*$F$25 -> 0.96 | E25: è | F25: 0.2
A26: Totals | B26: =SUM(B23:B25) -> 12 | C26: =SUM(C23:C25) -> 7.2 | D26: =SUM(D22:D25) -> 4.8 | E26: =SUM(B26:D26) -> 24 | F26: =SUM(F23:F25) -> 1
A28: For 31-60 riders 4 places
A29: Placings | B29: 1D | C29: 2D | D29: 3D
A30: 1st | B30: =$B$7*$F$30 -> 5.04 | C30: =$C$7*$F$30 -> 3.024 | D30: =$D$7*$F$30 -> 2.016 | E30: è | F30: 0.42
A31: 2nd | B31: =$B$7*$F$31 -> 3.48 | C31: =$C$7*$F$31 -> 2.088 | D31: =$D$7*$F$31 -> 1.392 | E31: è | F31: 0.29
A32: 3rd | B32: =$B$7*$F$32 -> 2.28 | C32: =$C$7*$F$32 -> 1.368 | D32: =$D$7*$F$32 -> 0.912 | E32: è | F32: 0.19
A33: 4th | B33: =$B$7*$F$33 -> 1.2 | C33: =$C$7*$F$33 -> 0.72 | D33: =$D$7*$F$33 -> 0.48 | E33: è | F33: 0.1
A34: Totals | B34: =SUM(B30:B33) -> 12 | C34: =SUM(C30:C33) -> 7.2 | D34: =SUM(D30:D33) -> 4.8 | E34: =SUM(B34:D34) -> 24 | F34: =SUM(F30:F33) -> 1
A36: For 61-90 riders 5 places
A37: Placings | B37: 1D | C37: 2D | D37: 3D
A38: 1st | B38: =$B$7*$F$38 -> 4.56 | C38: =$C$7*$F$38 -> 2.736 | D38: =$D$7*$F$38 -> 1.824 | E38: è | F38: 0.38
A39: 2nd | B39: =$B$7*$F$39 -> 3.36 | C39: =$C$7*$F$39 -> 2.016 | D39: =$D$7*$F$39 -> 1.344 | E39: è | F39: 0.28
A40: 3rd | B40: =$B$7*$F$40 -> 2.16 | C40: =$C$7*$F$40 -> 1.296 | D40: =$D$7*$F$40 -> 0.864 | E40: è | F40: 0.18
A41: 4th | B41: =$B$7*$F$41 -> 1.2 | C41: =$C$7*$F$41 -> 0.72 | D41: =$D$7*$F$41 -> 0.48 | E41: è | F41: 0.1
A42: 5th | B42: =$B$7*$F$42 -> 0.72 | C42: =$C$7*$F$42 -> 0.432 | D42: =$D$7*$F$42 -> 0.288 | E42: è | F42: 0.06
A43: Totals | B43: =SUM(B38:B42) -> 12 | C43: =SUM(C38:C42) -> 7.2 | D43: =SUM(D38:D42) -> 4.8 | E43: =SUM(B43:D43) -> 24 | F43: =SUM(F38:F42) -> 1
A45: For 91-120 riders 6 places
A46: Placings | B46: 1D | C46: 2D | D46: 3D
A47: 1st | B47: =$B$7*$F$47 -> 4.32 | C47: =$C$7*$F$47 -> 2.592 | D47: =$D$7*$F$47 -> 1.728 | E47: è | F47: 0.36
A48: 2nd | B48: =$B$7*$F$48 -> 3.12 | C48: =$C$7*$F$48 -> 1.872 | D48: =$D$7*$F$48 -> 1.248 | E48: è | F48: 0.26
A49: 3rd | B49: =$B$7*$F$49 -> 1.92 | C49: =$C$7*$F$49 -> 1.152 | D49: =$D$7*$F$49 -> 0.768 | E49: è | F49: 0.16
A50: 4th | B50: =$B$7*$F$50 -> 1.2 | C50: =$C$7*$F$50 -> 0.72 | D50: =$D$7*$F$50 -> 0.48 | E50: è | F50: 0.1
A51: 5th | B51: =$B$7*$F$51 -> 0.84 | C51: =$C$7*$F$51 -> 0.504 | D51: =$D$7*$F$51 -> 0.336 | E51: è | F51: 0.07
A52: 6th | B52: =$B$7*$F$52 -> 0.6 | C52: =$C$7*$F$52 -> 0.36 | D52: =$D$7*$F$52 -> 0.24 | E52: è | F52: 0.05
A53: Totals | B53: =SUM(B47:B52) -> 12 | C53: =SUM(C47:C52) -> 7.2 | D53: =SUM(D47:D52) -> 4.8 | E53: =SUM(B53:D53) -> 24 | F53: =SUM(F47:F52) -> 1
A55: For 121-200 riders 7 places
A56: Placings | B56: 1D | C56: 2D | D56: 3D
A57: 1st | B57: =$B$7*$F$57 -> 3.12 | C57: =$C$7*$F$57 -> 1.872 | D57: =$D$7*$F$57 -> 1.248 | E57: è | F57: 0.26
A58: 2nd | B58: =$B$7*$F$58 -> 2.4 | C58: =$C$7*$F$58 -> 1.44 | D58: =$D$7*$F$58 -> 0.96 | E58: è | F58: 0.2
A59: 3rd | B59: =$B$7*$F$59 -> 1.8 | C59: =$C$7*$F$59 -> 1.08 | D59: =$D$7*$F$59 -> 0.72 | E59: è | F59: 0.15
A60: 4th | B60: =$B$7*$F$60 -> 1.44 | C60: =$C$7*$F$60 -> 0.864 | D60: =$D$7*$F$60 -> 0.576 | E60: è | F60: 0.12
A61: 5th | B61: =$B$7*$F$61 -> 1.2 | C61: =$C$7*$F$61 -> 0.72 | D61: =$D$7*$F$61 -> 0.48 | E61: è | F61: 0.1
A62: 6th | B62: =$B$7*$F$62 -> 1.08 | C62: =$C$7*$F$62 -> 0.648 | D62: =$D$7*$F$62 -> 0.432 | E62: è | F62: 0.09
A63: 7th | B63: =$B$7*$F$63 -> 0.96 | C63: =$C$7*$F$63 -> 0.576 | D63: =$D$7*$F$63 -> 0.384 | E63: è | F63: 0.08
A64: Totals | B64: =SUM(B57:B63) -> 12 | C64: =SUM(C57:C63) -> 7.2 | D64: =SUM(D57:D63) -> 4.8 | E64: =SUM(B64:D64) -> 24 | F64: =SUM(F57:F63) -> 1
A66: For 201 or more riders 8 places
A67: Placings | B67: 1D | C67: 2D | D67: 3D
A68: 1st | B68: =$B$7*0.24 -> 2.88 | C68: =$C$7*0.24 -> 1.728 | D68: =$D$7*0.24 -> 1.152 | E68: è | F68: 0.24
A69: 2nd | B69: =$B$7*0.18 -> 2.16 | C69: =$C$7*0.18 -> 1.296 | D69: =$D$7*0.18 -> 0.864 | E69: è | F69: 0.18
A70: 3rd | B70: =$B$7*0.15 -> 1.8 | C70: =$C$7*0.15 -> 1.08 | D70: =$D$7*0.15 -> 0.72 | E70: è | F70: 0.15
A71: 4th | B71: =$B$7*0.12 -> 1.44 | C71: =$C$7*0.12 -> 0.864 | D71: =$D$7*0.12 -> 0.576 | E71: è | F71: 0.12
A72: 5th | B72: =$B$7*0.1 -> 1.2 | C72: =$C$7*0.1 -> 0.72 | D72: =$D$7*0.1 -> 0.48 | E72: è | F72: 0.1
A73: 6th | B73: =$B$7*0.08 -> 0.96 | C73: =$C$7*0.08 -> 0.576 | D73: =$D$7*0.08 -> 0.384 | E73: è | F73: 0.08
A74: 7th | B74: =$B$7*0.07 -> 0.84 | C74: =$C$7*0.07 -> 0.504 | D74: =$D$7*0.07 -> 0.336 | E74: è | F74: 0.07
A75: 8th | B75: =$B$7*0.06 -> 0.72 | C75: =$C$7*0.06 -> 0.432 | D75: =$D$7*0.06 -> 0.288 | E75: è | F75: 0.06
A76: Totals | B76: =SUM(B68:B75) -> 12 | C76: =SUM(C68:C75) -> 7.2 | D76: =SUM(D68:D75) -> 4.8 | E76: =SUM(B76:D76) -> 24 | F76: =SUM(F68:F75) -> 1

Sheet 4D Payout BBR (hidden)
A1: 4D Payout BBR
A2: Entry Fee | B2: # Entries | C2: % Payback | D2: $ From Entry | E2: Added $ | F2: Total Payout
A3: 40 | B3: 200 | C3: 0.8 | D3: =$A$3*$C$3*$B$3 -> 6400 | E3: 1100 | F3: =($A$3*$C$3)*$B$3+$E$3 -> 7500
A5: % in each D | B5: 0.35 | C5: 0.3 | D5: 0.2 | E5: 0.15 | F5: Total % Payout | G5: =SUM(B5:E5) -> 1
B6: 1D | C6: 2D | D6: 3D | E6: 4D
B7: =(($A$3*$B$3*$C$3*0.35)+($E$3/4)) -> 2515 | C7: =(($A$3*$B$3*$C$3*0.3)+($E$3/4)) -> 2195 | D7: =(($A$3*$B$3*$C$3*0.2)+($E$3/4)) -> 1555 | E7: =(($A$3*$B$3*$C$3*0.15)+($E$3/4)) -> 1235
A8: Totals | B8: =SUM(B7) -> 2515 | C8: =SUM(C7) -> 2195 | D8: 1555 | E8: 1235 | F8: =SUM(B8:E8) -> 7500
A10: For 1-16 riders 1 place
A11: Placings | B11: 1D | C11: 2D | D11: 3D | E11: 4D
A12: 1st | B12: =$B$7*$G$12 -> 2515 | C12: =$C$7*$G$12 -> 2195 | D12: =$D$7*$G$12 -> 1555 | E12: =$E$7*$G$12 -> 1235 | F12: è | G12: 1
A13: Totals | B13: =SUM(B12:B12) -> 2515 | C13: =SUM(C12:C12) -> 2195 | D13: =SUM(D12:D12) -> 1555 | E13: =SUM(E12:E12) -> 1235 | F13: =SUM(B13:E13) -> 7500 | G13: =SUM(G12) -> 1
A15: For 17-33 riders 2 places
A16: Placings | B16: 1D | C16: 2D | D16: 3D | E16: 4D
A17: 1st | B17: =$B$7*$G$17 -> 1509 | C17: =$C$7*$G$17 -> 1317 | D17: =$D$7*$G$17 -> 933 | E17: =$E$7*$G$17 -> 741 | F17: è | G17: 0.6
A18: 2nd | B18: =$B$7*$G$18 -> 1006 | C18: =$C$7*$G$18 -> 878 | D18: =$D$7*$G$18 -> 622 | E18: =$E$7*$G$18 -> 494 | F18: è | G18: 0.4
A19: Totals | B19: =SUM(B17:B18) -> 2515 | C19: =SUM(C17:C18) -> 2195 | D19: =SUM(D17:D18) -> 1555 | E19: =SUM(E17:E18) -> 1235 | F19: =SUM(B19:E19) -> 7500 | G19: =SUM(G17:G18) -> 1
A21: For 34-66 riders 3 places
A22: Placings | B22: 1D | C22: 2D | D22: 3D | E22: 4D
A23: 1st | B23: =$B$7*$G$23 -> 1257.5 | C23: =$C$7*$G$23 -> 1097.5 | D23: =$D$7*$G$23 -> 777.5 | E23: =$E$7*$G$23 -> 617.5 | F23: è | G23: 0.5
A24: 2nd | B24: =$B$7*$G$24 -> 754.5 | C24: =$C$7*$G$24 -> 658.5 | D24: =$D$7*$G$24 -> 466.5 | E24: =$E$7*$G$24 -> 370.5 | F24: è | G24: 0.3
A25: 3rd | B25: =$B$7*$G$25 -> 503 | C25: =$C$7*$G$25 -> 439 | D25: =$D$7*$G$25 -> 311 | E25: =$E$7*$G$25 -> 247 | F25: è | G25: 0.2
A26: Totals | B26: =SUM(B23:B25) -> 2515 | C26: =SUM(C23:C25) -> 2195 | D26: =SUM(D23:D25) -> 1555 | E26: =SUM(E23:E25) -> 1235 | F26: =SUM(B26:E26) -> 7500 | G26: =SUM(G23:G25) -> 1
A28: For 97-95 riders 4 places
A29: Placings | B29: 1D | C29: 2D | D29: 3D | E29: 4D
A30: 1st | B30: =$B$7*$G$30 -> 1006 | C30: =$C$7*$G$30 -> 878 | D30: =$D$7*$G$30 -> 622 | E30: =$E$7*$G$30 -> 494 | F30: è | G30: 0.4
A31: 2nd | B31: =$B$7*$G$31 -> 754.5 | C31: =$C$7*$G$31 -> 658.5 | D31: =$D$7*$G$31 -> 466.5 | E31: =$E$7*$G$31 -> 370.5 | F31: è | G31: 0.3
A32: 3rd | B32: =$B$7*$G$32 -> 503 | C32: =$C$7*$G$32 -> 439 | D32: =$D$7*$G$32 -> 311 | E32: =$E$7*$G$32 -> 247 | F32: è | G32: 0.2
A33: 4th | B33: =$B$7*$G$33 -> 251.5 | C33: =$C$7*$G$33 -> 219.5 | D33: =$D$7*$G$33 -> 155.5 | E33: =$E$7*$G$33 -> 123.5 | F33: è | G33: 0.1
A34: Totals | B34: =SUM(B30:B33) -> 2515 | C34: =SUM(C30:C33) -> 2195 | D34: =SUM(D30:D33) -> 1555 | E34: =SUM(E30:E33) -> 1235 | F34: =SUM(B34:E34) -> 7500 | G34: =SUM(G30:G33) -> 1
A36: For 96-133 riders 5 places
A37: Placings | B37: 1D | C37: 2D | D37: 3D | E37: 4D
A38: 1st | B38: =$B$7*$G$38 -> 829.95 | C38: =$C$7*$G$38 -> 724.35 | D38: =$D$7*G38 -> 513.15 | E38: =$E$7*$G$38 -> 407.55 | F38: è | G38: 0.33
A39: 2nd | B39: =$B$7*$G$39 -> 679.05 | C39: =$C$7*$G$39 -> 592.65 | D39: =$D$7*$G$39 -> 419.85 | E39: =$E$7*$G$39 -> 333.45 | F39: è | G39: 0.27
A40: 3rd | B40: =$B$7*$G$40 -> 503 | C40: =$C$7*$G$40 -> 439 | D40: =$D$7*$G$40 -> 311 | E40: =$E$7*$G$40 -> 247 | F40: è | G40: 0.2
A41: 4th | B41: =$B$7*$G$41 -> 326.95 | C41: =$C$7*$G$41 -> 285.35 | D41: =$D$7*$G$41 -> 202.15 | E41: =$E$7*$G$41 -> 160.55 | F41: è | G41: 0.13
A42: 5th | B42: =$B$7*$G$42 -> 176.05 | C42: =$C$7*$G$42 -> 153.65 | D42: =$D$7*$G$42 -> 108.85 | E42: =$E$7*$G$42 -> 86.45 | F42: è | G42: 0.07
A43: Totals | B43: =SUM(B38:B42) -> 2515 | C43: =SUM(C38:C42) -> 2195 | D43: =SUM(D38:D42) -> 1555 | E43: =SUM(E38:E42) -> 1235 | F43: =SUM(B43:E43) -> 7500 | G43: =SUM(G38:G42) -> 1
A45: For 134-166 riders 6 places
A46: Placings | B46: 1D | C46: 2D | D46: 3D | E46: 4D
A47: 1st | B47: =$B$7*$G$47 -> 729.35 | C47: =$C$7*$G$47 -> 636.55 | D47: =$D$7*$G$47 -> 450.95 | E47: =$E$7*$G$47 -> 358.15 | F47: è | G47: 0.29
A48: 2nd | B48: =$B$7*$G$48 -> 603.6 | C48: =$C$7*$G$48 -> 526.8 | D48: =$D$7*$G$48 -> 373.2 | E48: =$E$7*$G$48 -> 296.4 | F48: è | G48: 0.24
A49: 3rd | B49: =$B$7*$G$49 -> 477.85 | C49: =$C$7*$G$49 -> 417.05 | D49: =$D$7*$G$49 -> 295.45 | E49: =$E$7*$G$49 -> 234.65 | F49: è | G49: 0.19
A50: 4th | B50: =$B$7*$G$50 -> 352.1 | C50: =$C$7*$G$50 -> 307.3 | D50: =$D$7*$G$50 -> 217.7 | E50: =$E$7*$G$50 -> 172.9 | F50: è | G50: 0.14
A51: 5th | B51: =$B$7*$G$51 -> 226.35 | C51: =$C$7*$G$51 -> 197.55 | D51: =$D$7*$G$51 -> 139.95 | E51: =$E$7*$G$51 -> 111.15 | F51: è | G51: 0.09
A52: 6th | B52: =$B$7*$G$52 -> 125.75 | C52: =$C$7*$G$52 -> 109.75 | D52: =$D$7*$G$52 -> 77.75 | E52: =$E$7*$G$52 -> 61.75 | F52: è | G52: 0.05
A53: Totals | B53: =SUM(B47:B52) -> 2515 | C53: =SUM(C47:C52) -> 2195 | D53: =SUM(D47:D52) -> 1555 | E53: =SUM(E47:E52) -> 1235 | F53: =SUM(B53:E53) -> 7500 | G53: =SUM(G47:G52) -> 1
A55: For 167-222 riders 8 places
A56: Placings | B56: 1D | C56: 2D | D56: 3D | E56: 4D
A57: 1st | B57: =$B$7*$G$57 -> 603.6 | C57: =$C$7*$G$57 -> 526.8 | D57: =$D$7*$G$57 -> 373.2 | E57: =$E$7*$G$57 -> 296.4 | F57: è | G57: 0.24
A58: 2nd | B58: =$B$7*$G$58 -> 503 | C58: =$C$7*$G$58 -> 439 | D58: =$D$7*$G$58 -> 311 | E58: =$E$7*$G$58 -> 247 | F58: è | G58: 0.2
A59: 3rd | B59: =$B$7*$G$59 -> 427.55 | C59: =$C$7*$G$59 -> 373.15 | D59: =$D$7*$G$59 -> 264.35 | E59: =$E$7*$G$59 -> 209.95 | F59: è | G59: 0.17
A60: 4th | B60: =$B$7*$G$60 -> 326.95 | C60: =$C$7*$G$60 -> 285.35 | D60: =$D$7*$G$60 -> 202.15 | E60: =$E$7*$G$60 -> 160.55 | F60: è | G60: 0.13
A61: 5th | B61: =$B$7*$G$61 -> 251.5 | C61: =$C$7*$G$61 -> 219.5 | D61: =$D$7*$G$61 -> 155.5 | E61: =$E$7*$G$61 -> 123.5 | F61: è | G61: 0.1
A62: 6th | B62: =$B$7*$G$62 -> 176.05 | C62: =$C$7*$G$62 -> 153.65 | D62: =$D$7*$G$62 -> 108.85 | E62: =$E$7*$G$62 -> 86.45 | F62: è | G62: 0.07
A63: 7th | B63: =$B$7*$G$63 -> 125.75 | C63: =$C$7*$G$63 -> 109.75 | D63: =$D$7*$G$63 -> 77.75 | E63: =$E$7*$G$63 -> 61.75 | F63: è | G63: 0.05
A64: 8th | B64: =$B$7*$G$64 -> 100.6 | C64: =$C$7*$G$64 -> 87.8 | D64: =$D$7*$G$64 -> 62.2 | E64: =$E$7*$G$64 -> 49.4 | F64: è | G64: 0.04
A65: Totals | B65: =SUM(B57:B64) -> 2515 | C65: =SUM(C57:C64) -> 2195 | D65: =SUM(D57:D64) -> 1555 | E65: =SUM(E57:E64) -> 1235 | F65: =SUM(B65:E65) -> 7500 | G65: =SUM(G57:G64) -> 1
A67: For 223-333 riders 10 places
A68: Placings | B68: 1D | C68: 2D | D68: 3D | E68: 4D
A69: 1st | B69: =$B$7*$G$69 -> 528.15 | C69: =$C$7*$G$69 -> 460.95 | D69: =$D$7*$G$69 -> 326.55 | E69: =$E$7*$G$69 -> 259.35 | F69: è | G69: 0.21
A70: 2nd | B70: =$B$7*$G$70 -> 452.7 | C70: =$C$7*$G$70 -> 395.1 | D70: =$D$7*$G$70 -> 279.9 | E70: =$E$7*$G$70 -> 222.3 | F70: è | G70: 0.18
A71: 3rd | B71: =$B$7*$G$71 -> 377.25 | C71: =$C$7*$G$71 -> 329.25 | D71: =$D$7*$G$71 -> 233.25 | E71: =$E$7*$G$71 -> 185.25 | F71: è | G71: 0.15
A72: 4th | B72: =$B$7*$G$72 -> 301.8 | C72: =$C$7*$G$72 -> 263.4 | D72: =$D$7*$G$72 -> 186.6 | E72: =$E$7*$G$72 -> 148.2 | F72: è | G72: 0.12
A73: 5th | B73: =$B$7*$G$73 -> 226.35 | C73: =$C$7*$G$73 -> 197.55 | D73: =$D$7*$G$73 -> 139.95 | E73: =$E$7*$G$73 -> 111.15 | F73: è | G73: 0.09
A74: 6th | B74: =$B$7*$G$74 -> 176.05 | C74: =$C$7*$G$74 -> 153.65 | D74: =$D$7*$G$74 -> 108.85 | E74: =$E$7*$G$74 -> 86.45 | F74: è | G74: 0.07
A75: 7th | B75: =$B$7*$G$75 -> 150.9 | C75: =$C$7*$G$75 -> 131.7 | D75: =$D$7*$G$75 -> 93.3 | E75: =$E$7*$G$75 -> 74.1 | F75: è | G75: 0.06
A76: 8th | B76: =$B$7*$G$76 -> 125.75 | C76: =$C$7*$G$76 -> 109.75 | D76: =$D$7*$G$76 -> 77.75 | E76: =$E$7*$G$76 -> 61.75 | F76: è | G76: 0.05
A77: 9th | B77: =$B$7*$G$77 -> 100.6 | C77: =$C$7*$G$77 -> 87.8 | D77: =$D$7*$G$77 -> 62.2 | E77: =$E$7*$G$77 -> 49.4 | F77: è | G77: 0.04
A78: 10th | B78: =$B$7*$G$78 -> 75.45 | C78: =$C$7*$G$78 -> 65.85 | D78: =$D$7*$G$78 -> 46.65 | E78: =$E$7*$G$78 -> 37.05 | F78: è | G78: 0.03
A79: Totals | B79: =SUM(B69:B78) -> 2515 | C79: =SUM(C69:C78) -> 2195 | D79: =SUM(D69:D78) -> 1555 | E79: =SUM(E69:E78) -> 1235 | F79: =B79+C79+D79+E79 -> 7500 | G79: =SUM(G69:G78) -> 1
A81: For 334-500 riders 12 places
A82: Placings | B82: 1D | C82: 2D | D82: 3D | E82: 4D
A83: 1st | B83: =$B$7*$G$83 -> 477.85 | C83: =$C$7*$G$83 -> 417.05 | D83: =$D$7*$G$83 -> 295.45 | E83: =$E$7*$G$83 -> 234.65 | F83: è | G83: 0.19
A84: 2nd | B84: =$B$7*$G$84 -> 377.25 | C84: =$C$7*$G$84 -> 329.25 | D84: =$D$7*$G$84 -> 233.25 | E84: =$E$7*$G$84 -> 185.25 | F84: è | G84: 0.15
A85: 3rd | B85: =$B$7*$G$85 -> 301.8 | C85: =$C$7*$G$85 -> 263.4 | D85: =$D$7*$G$85 -> 186.6 | E85: =$E$7*$G$85 -> 148.2 | F85: è | G85: 0.12
A86: 4th | B86: =$B$7*$G$86 -> 251.5 | C86: =$C$7*$G$86 -> 219.5 | D86: =$D$7*$G$86 -> 155.5 | E86: =$E$7*$G$86 -> 123.5 | F86: è | G86: 0.1
A87: 5th | B87: =$B$7*$G$87 -> 226.35 | C87: =$C$7*$G$87 -> 197.55 | D87: =$D$7*$G$87 -> 139.95 | E87: =$E$7*$G$87 -> 111.15 | F87: è | G87: 0.09
A88: 6th | B88: =$B$7*$G$88 -> 201.2 | C88: =$C$7*$G$88 -> 175.6 | D88: =$D$7*$G$88 -> 124.4 | E88: =$E$7*$G$88 -> 98.8 | F88: è | G88: 0.08
A89: 7th | B89: =$B$7*$G$89 -> 176.05 | C89: =$C$7*$G$89 -> 153.65 | D89: =$D$7*$G$89 -> 108.85 | E89: =$E$7*$G$89 -> 86.45 | F89: è | G89: 0.07
A90: 8th | B90: =$B$7*$G$90 -> 150.9 | C90: =$C$7*$G$90 -> 131.7 | D90: =$D$7*$G$90 -> 93.3 | E90: =$E$7*$G$90 -> 74.1 | F90: è | G90: 0.06
A91: 9th | B91: =$B$7*$G$91 -> 125.75 | C91: =$C$7*$G$91 -> 109.75 | D91: =$D$7*$G$91 -> 77.75 | E91: =$E$7*$G$91 -> 61.75 | F91: è | G91: 0.05
A92: 10th | B92: =$B$7*$G$92 -> 100.6 | C92: =$C$7*$G$92 -> 87.8 | D92: =$D$7*$G$92 -> 62.2 | E92: =$E$7*$G$92 -> 49.4 | F92: è | G92: 0.04
A93: 11th | B93: =$B$7*$G$93 -> 75.45 | C93: =$C$7*$G$93 -> 65.85 | D93: =$D$7*$G$93 -> 46.65 | E93: =$E$7*$G$93 -> 37.05 | F93: è | G93: 0.03
A94: 12th | B94: =$B$7*$G$94 -> 50.3 | C94: =$C$7*$G$94 -> 43.9 | D94: =$D$7*$G$94 -> 31.1 | E94: =$E$7*$G$94 -> 24.7 | F94: è | G94: 0.02
A95: Totals | B95: =SUM(B83:B94) -> 2515 | C95: =SUM(C83:C94) -> 2195 | D95: 1555 | E95: 1235 | F95: =B95+C95+D95+E95 -> 7500 | G95: =SUM(G83:G94) -> 1
A97: For 501-750 riders 15 places
A98: Placings | B98: 1D | C98: 2D | D98: 3D | E98: 4D
A99: 1st | B99: =$B$7*$G$99 -> 452.7 | C99: =$C$7*$G$99 -> 395.1 | D99: =$D$7*$G$99 -> 279.9 | E99: =$E$7*$G$99 -> 222.3 | F99: è | G99: 0.18
A100: 2nd | B100: =$B$7*$G$100 -> 377.25 | C100: =$C$7*$G$100 -> 329.25 | D100: =$D$7*$G$100 -> 233.25 | E100: =$E$7*$G$100 -> 185.25 | F100: è | G100: 0.15
A101: 3rd | B101: =$B$7*$G$101 -> 301.8 | C101: =$C$7*$G$101 -> 263.4 | D101: =$D$7*$G$101 -> 186.6 | E101: =$E$7*$G$101 -> 148.2 | F101: è | G101: 0.12
A102: 4th | B102: =$B$7*$G$102 -> 251.5 | C102: =$C$7*$G$102 -> 219.5 | D102: =$D$7*$G$102 -> 155.5 | E102: =$E$7*$G$102 -> 123.5 | F102: è | G102: 0.1
A103: 5th | B103: =$B$7*$G$103 -> 213.775 | C103: =$C$7*$G$103 -> 186.575 | D103: =$D$7*$G$103 -> 132.175 | E103: =$E$7*$G$103 -> 104.975 | F103: è | G103: 0.085
A104: 6th | B104: =$B$7*$G$104 -> 176.05 | C104: =$C$7*$G$104 -> 153.65 | D104: =$D$7*$G$104 -> 108.85 | E104: =$E$7*$G$104 -> 86.45 | F104: è | G104: 0.07
A105: 7th | B105: =$B$7*$G$105 -> 150.9 | C105: =$C$7*$G$105 -> 131.7 | D105: =$D$7*$G$105 -> 93.3 | E105: =$E$7*$G$105 -> 74.1 | F105: è | G105: 0.06
A106: 8th | B106: =$B$7*$G$106 -> 125.75 | C106: =$C$7*$G$106 -> 109.75 | D106: =$D$7*$G$106 -> 77.75 | E106: =$E$7*$G$106 -> 61.75 | F106: è | G106: 0.05
A107: 9th | B107: =$B$7*$G$107 -> 106.8875 | C107: =$C$7*$G$107 -> 93.2875 | D107: =$D$7*$G$107 -> 66.0875 | E107: =$E$7*$G$107 -> 52.4875 | F107: è | G107: 0.0425
A108: 10th | B108: =$B$7*$G$108 -> 88.025 | C108: =$C$7*$G$108 -> 76.825 | D108: =$D$7*$G$108 -> 54.425 | E108: =$E$7*$G$108 -> 43.225 | F108: è | G108: 0.035
A109: 11th | B109: =$B$7*$G$109 -> 75.45 | C109: =$C$7*$G$109 -> 65.85 | D109: =$D$7*$G$109 -> 46.65 | E109: =$E$7*$G$109 -> 37.05 | F109: è | G109: 0.03
A110: 12th | B110: =$B$7*$G$110 -> 62.875 | C110: =$C$7*$G$110 -> 54.875 | D110: =$D$7*$G$110 -> 38.875 | E110: =$E$7*$G$110 -> 30.875 | F110: è | G110: 0.025
A111: 13th | B111: =$B$7*$G$111 -> 50.3 | C111: =$C$7*$G$111 -> 43.9 | D111: =$D$7*$G$111 -> 31.1 | E111: =$E$7*$G$111 -> 24.7 | F111: è | G111: 0.02
A112: 14th | B112: =$B$7*$G$112 -> 44.0125 | C112: =$C$7*$G$112 -> 38.4125 | D112: =$D$7*$G$112 -> 27.2125 | E112: =$E$7*$G$112 -> 21.6125 | F112: è | G112: 0.0175
A113: 15th | B113: =$B$7*$G$113 -> 37.725 | C113: =$C$7*$G$113 -> 32.925 | D113: =$D$7*$G$113 -> 23.325 | E113: =$E$7*$G$113 -> 18.525 | F113: è | G113: 0.015
A114: Totals | B114: =SUM(B99:B113) -> 2515 | C114: =SUM(C99:C113) -> 2195 | D114: 1555 | E114: 1235 | F114: =B114+C114+D114+E114 -> 7500 | G114: =SUM(G99:G113) -> 1
A116: For 751-1200 riders 20 places
A117: Placings | B117: 1D | C117: 2D | D117: 3D | E117: 4D
A118: 1st | B118: =$B$7*$G$118 -> 352.1 | C118: =$C$7*$G$118 -> 307.3 | D118: =$D$7*$G$118 -> 217.7 | E118: =$E$7*$G$118 -> 172.9 | F118: è | G118: 0.14
A119: 2nd | B119: =$B$7*$G$119 -> 276.65 | C119: =$C$7*$G$119 -> 241.45 | D119: =$D$7*$G$119 -> 171.05 | E119: =$E$7*$G$119 -> 135.85 | F119: è | G119: 0.11
A120: 3rd | B120: =$B$7*$G$120 -> 226.35 | C120: =$C$7*$G$120 -> 197.55 | D120: =$D$7*$G$120 -> 139.95 | E120: =$E$7*$G$120 -> 111.15 | F120: è | G120: 0.09
A121: 4th | B121: =$B$7*$G$121 -> 193.655 | C121: =$C$7*$G$121 -> 169.015 | D121: =$D$7*$G$121 -> 119.735 | E121: =$E$7*$G$121 -> 95.095 | F121: è | G121: 0.077
A122: 5th | B122: =$B$7*$G$122 -> 176.05 | C122: =$C$7*$G$122 -> 153.65 | D122: =$D$7*$G$122 -> 108.85 | E122: =$E$7*$G$122 -> 86.45 | F122: è | G122: 0.07
A123: 6th | B123: =$B$7*$G$123 -> 163.475 | C123: =$C$7*$G$123 -> 142.675 | D123: =$D$7*$G$123 -> 101.075 | E123: =$E$7*$G$123 -> 80.275 | F123: è | G123: 0.065
A124: 7th | B124: =$B$7*$G$124 -> 150.9 | C124: =$C$7*$G$124 -> 131.7 | D124: =$D$7*$G$124 -> 93.3 | E124: =$E$7*$G$124 -> 74.1 | F124: è | G124: 0.06
A125: 8th | B125: =$B$7*$G$125 -> 138.325 | C125: =$C$7*$G$125 -> 120.725 | D125: =$D$7*$G$125 -> 85.525 | E125: =$E$7*$G$125 -> 67.925 | F125: è | G125: 0.055
A126: 9th | B126: =$B$7*$G$126 -> 125.75 | C126: =$C$7*$G$126 -> 109.75 | D126: =$D$7*$G$126 -> 77.75 | E126: =$E$7*$G$126 -> 61.75 | F126: è | G126: 0.05
A127: 10th | B127: =$B$7*$G$127 -> 113.175 | C127: =$C$7*$G$127 -> 98.775 | D127: =$D$7*$G$127 -> 69.975 | E127: =$E$7*$G$127 -> 55.575 | F127: è | G127: 0.045
A128: 11th | B128: =$B$7*$G$128 -> 100.6 | C128: =$C$7*$G$128 -> 87.8 | D128: =$D$7*$G$128 -> 62.2 | E128: =$E$7*$G$128 -> 49.4 | F128: è | G128: 0.04
A129: 12th | B129: =$B$7*$G$129 -> 93.055 | C129: =$C$7*$G$129 -> 81.215 | D129: =$D$7*$G$129 -> 57.535 | E129: =$E$7*$G$129 -> 45.695 | F129: è | G129: 0.037
A130: 13th | B130: =$B$7*$G$130 -> 82.995 | C130: =$C$7*$G$130 -> 72.435 | D130: =$D$7*$G$130 -> 51.315 | E130: =$E$7*$G$130 -> 40.755 | F130: è | G130: 0.033
A131: 14th | B131: =$B$7*$G$131 -> 72.935 | C131: =$C$7*$G$131 -> 63.655 | D131: =$D$7*$G$131 -> 45.095 | E131: =$E$7*$G$131 -> 35.815 | F131: è | G131: 0.029
A132: 15th | B132: =$B$7*$G$132 -> 62.875 | C132: =$C$7*$G$132 -> 54.875 | D132: =$D$7*$G$132 -> 38.875 | E132: =$E$7*$G$132 -> 30.875 | F132: è | G132: 0.025
A133: 16th | B133: =$B$7*$G$133 -> 52.815 | C133: =$C$7*$G$133 -> 46.095 | D133: =$D$7*$G$133 -> 32.655 | E133: =$E$7*$G$133 -> 25.935 | F133: è | G133: 0.021
A134: 17th | B134: =$B$7*$G$134 -> 42.755 | C134: =$C$7*$G$134 -> 37.315 | D134: =$D$7*$G$134 -> 26.435 | E134: =$E$7*$G$134 -> 20.995 | F134: è | G134: 0.017
A135: 18th | B135: =$B$7*$G$135 -> 35.21 | C135: =$C$7*$G$135 -> 30.73 | D135: =$D$7*$G$135 -> 21.77 | E135: =$E$7*$G$135 -> 17.29 | F135: è | G135: 0.014
A136: 19th | B136: =$B$7*$G$136 -> 30.18 | C136: =$C$7*$G$136 -> 26.34 | D136: =$D$7*$G$136 -> 18.66 | E136: =$E$7*$G$136 -> 14.82 | F136: è | G136: 0.012
A137: 20th | B137: =$B$7*$G$137 -> 25.15 | C137: =$C$7*$G$137 -> 21.95 | D137: =$D$7*$G$137 -> 15.55 | E137: =$E$7*$G$137 -> 12.35 | F137: è | G137: 0.01
A138: Totals | B138: =SUM(B118:B137) -> 2515 | C138: =SUM(C118:C137) -> 2195 | D138: 1555 | E138: 1235 | F138: =B138+C138+D138+E138 -> 7500 | G138: =SUM(G118:G137) -> 1
A140: For 1201 or More riders 30 places
A141: Placings | B141: 1D | C141: 2D | D141: 3D | E141: 4D
A142: 1st | B142: =$B$7*$G$142 -> 301.8 | C142: =$C$7*$G$142 -> 263.4 | D142: =$D$7*$G$142 -> 186.6 | E142: =$E$7*$G$142 -> 148.2 | F142: è | G142: 0.12
A143: 2nd | B143: =$B$7*$G$143 -> 238.925 | C143: =$C$7*$G$143 -> 208.525 | D143: =$D$7*$G$143 -> 147.725 | E143: =$E$7*$G$143 -> 117.325 | F143: è | G143: 0.095
A144: 3rd | B144: =$B$7*$G$144 -> 183.595 | C144: =$C$7*$G$144 -> 160.235 | D144: =$D$7*$G$144 -> 113.515 | E144: =$E$7*$G$144 -> 90.155 | F144: è | G144: 0.073
A145: 4th | B145: =$B$7*$G$145 -> 155.93 | C145: =$C$7*$G$145 -> 136.09 | D145: =$D$7*$G$145 -> 96.41 | E145: =$E$7*$G$145 -> 76.57 | F145: è | G145: 0.062
A146: 5th | B146: =$B$7*$G$146 -> 125.75 | C146: =$C$7*$G$146 -> 109.75 | D146: =$D$7*$G$146 -> 77.75 | E146: =$E$7*$G$146 -> 61.75 | F146: è | G146: 0.05
A147: 6th | B147: =$B$7*$G$147 -> 113.175 | C147: =$C$7*$G$147 -> 98.775 | D147: =$D$7*$G$147 -> 69.975 | E147: =$E$7*$G$147 -> 55.575 | F147: è | G147: 0.045
A148: 7th | B148: =$B$7*$G$148 -> 108.145 | C148: =$C$7*$G$148 -> 94.385 | D148: =$D$7*$G$148 -> 66.865 | E148: =$E$7*$G$148 -> 53.105 | F148: è | G148: 0.043
A149: 8th | B149: =$B$7*$G$149 -> 100.6 | C149: =$C$7*$G$149 -> 87.8 | D149: =$D$7*$G$149 -> 62.2 | E149: =$E$7*$G$149 -> 49.4 | F149: è | G149: 0.04
A150: 9th | B150: =$B$7*$G$150 -> 93.055 | C150: =$C$7*$G$150 -> 81.215 | D150: =$D$7*$G$150 -> 57.535 | E150: =$E$7*$G$150 -> 45.695 | F150: è | G150: 0.037
A151: 10th | B151: =$B$7*$G$151 -> 88.025 | C151: =$C$7*$G$151 -> 76.825 | D151: =$D$7*$G$151 -> 54.425 | E151: =$E$7*$G$151 -> 43.225 | F151: è | G151: 0.035
A152: 11th | B152: =$B$7*$G$152 -> 82.995 | C152: =$C$7*$G$152 -> 72.435 | D152: =$D$7*$G$152 -> 51.315 | E152: =$E$7*$G$152 -> 40.755 | F152: è | G152: 0.033
A153: 12th | B153: =$B$7*$G$153 -> 77.965 | C153: =$C$7*$G$153 -> 68.045 | D153: =$D$7*$G$153 -> 48.205 | E153: =$E$7*$G$153 -> 38.285 | F153: è | G153: 0.031
A154: 13th | B154: =$B$7*$G$154 -> 72.935 | C154: =$C$7*$G$154 -> 63.655 | D154: =$D$7*$G$154 -> 45.095 | E154: =$E$7*$G$154 -> 35.815 | F154: è | G154: 0.029
A155: 14th | B155: =$B$7*$G$155 -> 67.905 | C155: =$C$7*$G$155 -> 59.265 | D155: =$D$7*$G$155 -> 41.985 | E155: =$E$7*$G$155 -> 33.345 | F155: è | G155: 0.027
A156: 15th | B156: =$B$7*$G$156 -> 62.875 | C156: =$C$7*$G$156 -> 54.875 | D156: =$D$7*$G$156 -> 38.875 | E156: =$E$7*$G$156 -> 30.875 | F156: è | G156: 0.025
A157: 16th | B157: =$B$7*$G$157 -> 60.36 | C157: =$C$7*$G$157 -> 52.68 | D157: =$D$7*$G$157 -> 37.32 | E157: =$E$7*$G$157 -> 29.64 | F157: è | G157: 0.024
A158: 17th | B158: =$B$7*$G$158 -> 57.845 | C158: =$C$7*$G$158 -> 50.485 | D158: =$D$7*$G$158 -> 35.765 | E158: =$E$7*$G$158 -> 28.405 | F158: è | G158: 0.023
A159: 18th | B159: =$B$7*$G$159 -> 55.33 | C159: =$C$7*$G$159 -> 48.29 | D159: =$D$7*$G$159 -> 34.21 | E159: =$E$7*$G$159 -> 27.17 | F159: è | G159: 0.022
A160: 19th | B160: =$B$7*$G$160 -> 52.815 | C160: =$C$7*$G$160 -> 46.095 | D160: =$D$7*$G$160 -> 32.655 | E160: =$E$7*$G$160 -> 25.935 | F160: è | G160: 0.021
A161: 20th | B161: =$B$7*$G$161 -> 50.3 | C161: =$C$7*$G$161 -> 43.9 | D161: =$D$7*$G$161 -> 31.1 | E161: =$E$7*$G$161 -> 24.7 | F161: è | G161: 0.02
A162: 21st | B162: =$B$7*$G$162 -> 47.785 | C162: =$C$7*$G$162 -> 41.705 | D162: =$D$7*$G$162 -> 29.545 | E162: =$E$7*$G$162 -> 23.465 | F162: è | G162: 0.019
A163: 22nd | B163: =$B$7*$G$163 -> 45.27 | C163: =$C$7*$G$163 -> 39.51 | D163: =$D$7*$G$163 -> 27.99 | E163: =$E$7*$G$163 -> 22.23 | F163: è | G163: 0.018
A164: 23rd | B164: =$B$7*$G$164 -> 42.755 | C164: =$C$7*$G$164 -> 37.315 | D164: =$D$7*$G$164 -> 26.435 | E164: =$E$7*$G$164 -> 20.995 | F164: è | G164: 0.017
A165: 24th | B165: =$B$7*$G$165 -> 40.24 | C165: =$C$7*$G$165 -> 35.12 | D165: =$D$7*$G$165 -> 24.88 | E165: =$E$7*$G$165 -> 19.76 | F165: è | G165: 0.016
A166: 25th | B166: =$B$7*$G$166 -> 37.725 | C166: =$C$7*$G$166 -> 32.925 | D166: =$D$7*$G$166 -> 23.325 | E166: =$E$7*$G$166 -> 18.525 | F166: è | G166: 0.015
A167: 26th | B167: =$B$7*$G$167 -> 35.21 | C167: =$C$7*$G$167 -> 30.73 | D167: =$D$7*$G$167 -> 21.77 | E167: =$E$7*$G$167 -> 17.29 | F167: è | G167: 0.014
A168: 27th | B168: =$B$7*$G$168 -> 32.695 | C168: =$C$7*$G$168 -> 28.535 | D168: =$D$7*$G$168 -> 20.215 | E168: =$E$7*$G$168 -> 16.055 | F168: è | G168: 0.013
A169: 28th | B169: =$B$7*$G$169 -> 30.18 | C169: =$C$7*$G$169 -> 26.34 | D169: =$D$7*$G$169 -> 18.66 | E169: =$E$7*$G$169 -> 14.82 | F169: è | G169: 0.012
A170: 29th | B170: =$B$7*$G$170 -> 27.665 | C170: =$C$7*$G$170 -> 24.145 | D170: =$D$7*$G$170 -> 17.105 | E170: =$E$7*$G$170 -> 13.585 | F170: è | G170: 0.011
A171: 30th | B171: =$B$7*$G$171 -> 25.15 | C171: =$C$7*$G$171 -> 21.95 | D171: =$D$7*$G$171 -> 15.55 | E171: =$E$7*$G$171 -> 12.35 | F171: è | G171: 0.01
A172: Totals | B172: =SUM(B142:B171) -> 2515 | C172: =SUM(C142:C171) -> 2195 | D172: =SUM(D142:D171) -> 1555 | E172: =SUM(E142:E171) -> 1235 | F172: =B172+C172+D172+E172 -> 7500 | G172: =SUM(G142:G171) -> 1

Sheet 5D Payout BBR
A1: 5D Payout BBR
A2: Entry Fee | B2: # Entries | C2: % Payback | D2: $ From Entry | E2: Added $ | F2: Total Payout | G2: Total $ Held
A3: 50 | B3: 368 | C3: 0.8 | D3: =$A$3*$C$3*$B$3 -> 14720 | E3: 2000 | F3: =($A$3*$C$3)*$B$3+$E$3 -> 16720 | G3: =$A$3*(100%-$C$3)*$B$3 -> 3680
A5: % in each D | B5: 0.3 | C5: 0.25 | D5: 0.2 | E5: 0.15 | F5: 0.1 | G5: Total % Payout | H5: =SUM(B5:F5) -> 1
B6: 1D | C6: 2D | D6: 3D | E6: 4D | F6: 5D
B7: =(($A$3*$B$3*$C$3*$B$5)+($E$3*$B$5)) -> 5016 | C7: =(($A$3*$B$3*$C$3*$C$5)+($E$3*$C$5)) -> 4180 | D7: =(($A$3*$B$3*$C$3*$D$5)+($E$3*$D$5)) -> 3344 | E7: =(($A$3*$B$3*$C$3*$E$5)+($E$3*$E$5)) -> 2508 | F7: =(($A$3*$B$3*$C$3*$F$5)+($E$3*$F$5)) -> 1672
A8: Totals | B8: =SUM(B7) -> 5016 | C8: =SUM(C7) -> 4180 | D8: 3344 | E8: 2508 | F8: 1672 | G8: =SUM(B8:F8) -> 16720
A10: For 1-25 riders 1 place
A11: Placings | B11: 1D | C11: 2D | D11: 3D | E11: 4D | F11: 5D
A12: 1st | B12: =$B$7*$H$12 -> 5016 | C12: =$C$7*$H$12 -> 4180 | D12: =$D$7*$H$12 -> 3344 | E12: =$E$7*$H$12 -> 2508 | F12: =$F$7*$H$12 -> 1672 | G12: è | H12: 1
A13: Totals | B13: =SUM(B12:B12) -> 5016 | C13: =SUM(C12:C12) -> 4180 | D13: =SUM(D12:D12) -> 3344 | E13: =SUM(E12:E12) -> 2508 | F13: =SUM(F12) -> 1672 | G13: =SUM(B13:F13) -> 16720 | H13: =SUM(H12) -> 1
A15: For 26-50 riders 2 places
A16: Placings | B16: 1D | C16: 2D | D16: 3D | E16: 4D | F16: 5D
A17: 1st | B17: =$B$7*$H$17 -> 3009.6 | C17: =$C$7*$H$17 -> 2508 | D17: =$D$7*$H$17 -> 2006.4 | E17: =$E$7*$H$17 -> 1504.8 | F17: =$F$7*$H$17 -> 1003.2 | G17: è | H17: 0.6
A18: 2nd | B18: =$B$7*$H$18 -> 2006.4 | C18: =$C$7*$H$18 -> 1672 | D18: =$D$7*$H$18 -> 1337.6 | E18: =$E$7*$H$18 -> 1003.2 | F18: =$F$7*$H$18 -> 668.8 | G18: è | H18: 0.4
A19: Totals | B19: =SUM(B17:B18) -> 5016 | C19: =SUM(C17:C18) -> 4180 | D19: =SUM(D17:D18) -> 3344 | E19: =SUM(E17:E18) -> 2508 | F19: =SUM(F17:F18) -> 1672 | G19: =SUM(B19:F19) -> 16720 | H19: =SUM(H17:H18) -> 1
A21: For 51-100 riders 3 places
A22: Placings | B22: 1D | C22: 2D | D22: 3D | E22: 4D | F22: 5D
A23: 1st | B23: =$B$7*$H$23 -> 2508 | C23: =$C$7*$H$23 -> 2090 | D23: =$D$7*$H$23 -> 1672 | E23: =$E$7*$H$23 -> 1254 | F23: =$F$7*$H$23 -> 836 | G23: è | H23: 0.5
A24: 2nd | B24: =$B$7*$H$24 -> 1504.8 | C24: =$C$7*$H$24 -> 1254 | D24: =$D$7*$H$24 -> 1003.2 | E24: =$E$7*$H$24 -> 752.4 | F24: =$F$7*$H$24 -> 501.6 | G24: è | H24: 0.3
A25: 3rd | B25: =$B$7*$H$25 -> 1003.2 | C25: =$C$7*$H$25 -> 836 | D25: =$D$7*$H$25 -> 668.8 | E25: =$E$7*$H$25 -> 501.6 | F25: =$F$7*$H$25 -> 334.4 | G25: è | H25: 0.2
A26: Totals | B26: =SUM(B23:B25) -> 5016 | C26: =SUM(C23:C25) -> 4180 | D26: =SUM(D23:D25) -> 3344 | E26: =SUM(E23:E25) -> 2508 | F26: =SUM(F23:F25) -> 1672 | G26: =SUM(B26:F26) -> 16720 | H26: =SUM(H23:H25) -> 1
A28: For 101-143 riders 4 places
A29: Placings | B29: 1D | C29: 2D | D29: 3D | E29: 4D | F29: 5D
A30: 1st | B30: =$B$7*$H$30 -> 2006.4 | C30: =$C$7*$H$30 -> 1672 | D30: =$D$7*$H$30 -> 1337.6 | E30: =$E$7*$H$30 -> 1003.2 | F30: =$F$7*$H$30 -> 668.8 | G30: è | H30: 0.4
A31: 2nd | B31: =$B$7*$H$31 -> 1504.8 | C31: =$C$7*$H$31 -> 1254 | D31: =$D$7*$H$31 -> 1003.2 | E31: =$E$7*$H$31 -> 752.4 | F31: =$F$7*$H$31 -> 501.6 | G31: è | H31: 0.3
A32: 3rd | B32: =$B$7*$H$32 -> 1003.2 | C32: =$C$7*$H$32 -> 836 | D32: =$D$7*$H$32 -> 668.8 | E32: =$E$7*$H$32 -> 501.6 | F32: =$F$7*$H$32 -> 334.4 | G32: è | H32: 0.2
A33: 4th | B33: =$B$7*$H$33 -> 501.6 | C33: =$C$7*$H$33 -> 418 | D33: =$D$7*$H$33 -> 334.4 | E33: =$E$7*$H$33 -> 250.8 | F33: =$F$7*$H$33 -> 167.2 | G33: è | H33: 0.1
A34: Totals | B34: =SUM(B30:B33) -> 5016 | C34: =SUM(C30:C33) -> 4180 | D34: =SUM(D30:D33) -> 3344 | E34: =SUM(E30:E33) -> 2508 | F34: =SUM(F30:F33) -> 1672 | G34: =SUM(B34:F34) -> 16720 | H34: =SUM(H30:H33) -> 1
A36: For 144-200 riders 5 places
A37: Placings | B37: 1D | C37: 2D | D37: 3D | E37: 4D | F37: 5D
A38: 1st | B38: =$B$7*$H$38 -> 1655.28 | C38: =$C$7*$H$38 -> 1379.4 | D38: =$D$7*$H$38 -> 1103.52 | E38: =$E$7*$H$38 -> 827.64 | F38: =$F$7*$H$38 -> 551.76 | G38: è | H38: 0.33
A39: 2nd | B39: =$B$7*$H$39 -> 1354.32 | C39: =$C$7*$H$39 -> 1128.6 | D39: =$D$7*$H$39 -> 902.88 | E39: =$E$7*$H$39 -> 677.16 | F39: =$F$7*$H$39 -> 451.44 | G39: è | H39: 0.27
A40: 3rd | B40: =$B$7*$H$40 -> 1003.2 | C40: =$C$7*$H$40 -> 836 | D40: =$D$7*$H$40 -> 668.8 | E40: =$E$7*$H$40 -> 501.6 | F40: =$F$7*$H$40 -> 334.4 | G40: è | H40: 0.2
A41: 4th | B41: =$B$7*$H$41 -> 652.08 | C41: =$C$7*$H$41 -> 543.4 | D41: =$D$7*$H$41 -> 434.72 | E41: =$E$7*$H$41 -> 326.04 | F41: =$F$7*$H$41 -> 217.36 | G41: è | H41: 0.13
A42: 5th | B42: =$B$7*$H$42 -> 351.12 | C42: =$C$7*$H$42 -> 292.6 | D42: =$D$7*$H$42 -> 234.08 | E42: =$E$7*$H$42 -> 175.56 | F42: =$F$7*$H$42 -> 117.04 | G42: è | H42: 0.07
A43: Totals | B43: =SUM(B38:B42) -> 5016 | C43: =SUM(C38:C42) -> 4180 | D43: =SUM(D38:D42) -> 3344 | E43: =SUM(E38:E42) -> 2508 | F43: =SUM(F38:F42) -> 1672 | G43: =SUM(B43:F43) -> 16720 | H43: =SUM(H38:H42) -> 1
A45: For 201-250 riders 6 places
A46: Placings | B46: 1D | C46: 2D | D46: 3D | E46: 4D | F46: 5D
A47: 1st | B47: =$B$7*$H$47 -> 1454.64 | C47: =$C$7*$H$47 -> 1212.2 | D47: =$D$7*$H$47 -> 969.76 | E47: =$E$7*$H$47 -> 727.32 | F47: =$F$7*$H$47 -> 484.88 | G47: è | H47: 0.29
A48: 2nd | B48: =$B$7*$H$48 -> 1203.84 | C48: =$C$7*$H$48 -> 1003.2 | D48: =$D$7*$H$48 -> 802.56 | E48: =$E$7*$H$48 -> 601.92 | F48: =$F$7*$H$48 -> 401.28 | G48: è | H48: 0.24
A49: 3rd | B49: =$B$7*$H$49 -> 953.04 | C49: =$C$7*$H$49 -> 794.2 | D49: =$D$7*$H$49 -> 635.36 | E49: =$E$7*$H$49 -> 476.52 | F49: =$F$7*$H$49 -> 317.68 | G49: è | H49: 0.19
A50: 4th | B50: =$B$7*$H$50 -> 702.24 | C50: =$C$7*$H$50 -> 585.2 | D50: =$D$7*$H$50 -> 468.16 | E50: =$E$7*$H$50 -> 351.12 | F50: =$F$7*$H$50 -> 234.08 | G50: è | H50: 0.14
A51: 5th | B51: =$B$7*$H$51 -> 451.44 | C51: =$C$7*$H$51 -> 376.2 | D51: =$D$7*$H$51 -> 300.96 | E51: =$E$7*$H$51 -> 225.72 | F51: =$F$7*$H$51 -> 150.48 | G51: è | H51: 0.09
A52: 6th | B52: =$B$7*$H$52 -> 250.8 | C52: =$C$7*$H$52 -> 209 | D52: =$D$7*$H$52 -> 167.2 | E52: =$E$7*$H$52 -> 125.4 | F52: =$F$7*$H$52 -> 83.6 | G52: è | H52: 0.05
A53: Totals | B53: =SUM(B47:B52) -> 5016 | C53: =SUM(C47:C52) -> 4180 | D53: =SUM(D47:D52) -> 3344 | E53: =SUM(E47:E52) -> 2508 | F53: =SUM(F47:F52) -> 1672 | G53: =SUM(B53:F53) -> 16720 | H53: =SUM(H47:H52) -> 1
A55: For 251-333 riders 8 places
A56: Placings | B56: 1D | C56: 2D | D56: 3D | E56: 4D | F56: 5D
A57: 1st | B57: =$B$7*$H$57 -> 1203.84 | C57: =$C$7*$H$57 -> 1003.2 | D57: =$D$7*$H$57 -> 802.56 | E57: =$E$7*$H$57 -> 601.92 | F57: =$F$7*$H$57 -> 401.28 | G57: è | H57: 0.24
A58: 2nd | B58: =$B$7*$H$58 -> 1003.2 | C58: =$C$7*$H$58 -> 836 | D58: =$D$7*$H$58 -> 668.8 | E58: =$E$7*$H$58 -> 501.6 | F58: =$F$7*$H$58 -> 334.4 | G58: è | H58: 0.2
A59: 3rd | B59: =$B$7*$H$59 -> 852.72 | C59: =$C$7*$H$59 -> 710.6 | D59: =$D$7*$H$59 -> 568.48 | E59: =$E$7*$H$59 -> 426.36 | F59: =$F$7*$H$59 -> 284.24 | G59: è | H59: 0.17
A60: 4th | B60: =$B$7*$H$60 -> 652.08 | C60: =$C$7*$H$60 -> 543.4 | D60: =$D$7*$H$60 -> 434.72 | E60: =$E$7*$H$60 -> 326.04 | F60: =$F$7*$H$60 -> 217.36 | G60: è | H60: 0.13
A61: 5th | B61: =$B$7*$H$61 -> 501.6 | C61: =$C$7*$H$61 -> 418 | D61: =$D$7*$H$61 -> 334.4 | E61: =$E$7*$H$61 -> 250.8 | F61: =$F$7*$H$61 -> 167.2 | G61: è | H61: 0.1
A62: 6th | B62: =$B$7*$H$62 -> 351.12 | C62: =$C$7*$H$62 -> 292.6 | D62: =$D$7*$H$62 -> 234.08 | E62: =$E$7*$H$62 -> 175.56 | F62: =$F$7*$H$62 -> 117.04 | G62: è | H62: 0.07
A63: 7th | B63: =$B$7*$H$63 -> 250.8 | C63: =$C$7*$H$63 -> 209 | D63: =$D$7*$H$63 -> 167.2 | E63: =$E$7*$H$63 -> 125.4 | F63: =$F$7*$H$63 -> 83.6 | G63: è | H63: 0.05
A64: 8th | B64: =$B$7*$H$64 -> 200.64 | C64: =$C$7*$H$64 -> 167.2 | D64: =$D$7*$H$64 -> 133.76 | E64: =$E$7*$H$64 -> 100.32 | F64: =$F$7*$H$64 -> 66.88 | G64: è | H64: 0.04
A65: Totals | B65: =SUM(B57:B64) -> 5016 | C65: =SUM(C57:C64) -> 4180 | D65: =SUM(D57:D64) -> 3344 | E65: =SUM(E57:E64) -> 2508 | F65: =SUM(F57:F64) -> 1672 | G65: =SUM(B65:F65) -> 16720 | H65: =SUM(H57:H64) -> 1
A67: For 334-500 riders 10 places
A68: Placings | B68: 1D | C68: 2D | D68: 3D | E68: 4D | F68: 5D
A69: 1st | B69: =$B$7*$H$69 -> 1053.36 | C69: =$C$7*$H$69 -> 877.8 | D69: =$D$7*$H$69 -> 702.24 | E69: =$E$7*$H$69 -> 526.68 | F69: =$F$7*$H$69 -> 351.12 | G69: è | H69: 0.21
A70: 2nd | B70: =$B$7*$H$70 -> 902.88 | C70: =$C$7*$H$70 -> 752.4 | D70: =$D$7*$H$70 -> 601.92 | E70: =$E$7*$H$70 -> 451.44 | F70: =$F$7*$H$70 -> 300.96 | G70: è | H70: 0.18
A71: 3rd | B71: =$B$7*$H$71 -> 752.4 | C71: =$C$7*$H$71 -> 627 | D71: =$D$7*$H$71 -> 501.6 | E71: =$E$7*$H$71 -> 376.2 | F71: =$F$7*$H$71 -> 250.8 | G71: è | H71: 0.15
A72: 4th | B72: =$B$7*$H$72 -> 601.92 | C72: =$C$7*$H$72 -> 501.6 | D72: =$D$7*$H$72 -> 401.28 | E72: =$E$7*$H$72 -> 300.96 | F72: =$F$7*$H$72 -> 200.64 | G72: è | H72: 0.12
A73: 5th | B73: =$B$7*$H$73 -> 451.44 | C73: =$C$7*$H$73 -> 376.2 | D73: =$D$7*$H$73 -> 300.96 | E73: =$E$7*$H$73 -> 225.72 | F73: =$F$7*$H$73 -> 150.48 | G73: è | H73: 0.09
A74: 6th | B74: =$B$7*$H$74 -> 351.12 | C74: =$C$7*$H$74 -> 292.6 | D74: =$D$7*$H$74 -> 234.08 | E74: =$E$7*$H$74 -> 175.56 | F74: =$F$7*$H$74 -> 117.04 | G74: è | H74: 0.07
A75: 7th | B75: =$B$7*$H$75 -> 300.96 | C75: =$C$7*$H$75 -> 250.8 | D75: =$D$7*$H$75 -> 200.64 | E75: =$E$7*$H$75 -> 150.48 | F75: =$F$7*$H$75 -> 100.32 | G75: è | H75: 0.06
A76: 8th | B76: =$B$7*$H$76 -> 250.8 | C76: =$C$7*$H$76 -> 209 | D76: =$D$7*$H$76 -> 167.2 | E76: =$E$7*$H$76 -> 125.4 | F76: =$F$7*$H$76 -> 83.6 | G76: è | H76: 0.05
A77: 9th | B77: =$B$7*$H$77 -> 200.64 | C77: =$C$7*$H$77 -> 167.2 | D77: =$D$7*$H$77 -> 133.76 | E77: =$E$7*$H$77 -> 100.32 | F77: =$F$7*$H$77 -> 66.88 | G77: è | H77: 0.04
A78: 10th | B78: =$B$7*$H$78 -> 150.48 | C78: =$C$7*$H$78 -> 125.4 | D78: =$D$7*$H$78 -> 100.32 | E78: =$E$7*$H$78 -> 75.24 | F78: =$F$7*$H$78 -> 50.16 | G78: è | H78: 0.03
A79: Totals | B79: =SUM(B69:B78) -> 5016 | C79: =SUM(C69:C78) -> 4180 | D79: 3344 | E79: 2508 | F79: 1672 | G79: =SUM(B79:F79) -> 16720 | H79: =SUM(H69:H78) -> 1
A81: For 501-666 riders 12 places
A82: Placings | B82: 1D | C82: 2D | D82: 3D | E82: 4D | F82: 5D
A83: 1st | B83: =$B$7*$H$83 -> 953.04 | C83: =$C$7*$H$83 -> 794.2 | D83: =$D$7*$H$83 -> 635.36 | E83: =$E$7*$H$83 -> 476.52 | F83: =$F$7*$H$83 -> 317.68 | G83: è | H83: 0.19
A84: 2nd | B84: =$B$7*$H$84 -> 752.4 | C84: =$C$7*$H$84 -> 627 | D84: =$D$7*$H$84 -> 501.6 | E84: =$E$7*$H$84 -> 376.2 | F84: =$F$7*$H$84 -> 250.8 | G84: è | H84: 0.15
A85: 3rd | B85: =$B$7*$H$85 -> 601.92 | C85: =$C$7*$H$85 -> 501.6 | D85: =$D$7*$H$85 -> 401.28 | E85: =$E$7*$H$85 -> 300.96 | F85: =$F$7*$H$85 -> 200.64 | G85: è | H85: 0.12
A86: 4th | B86: =$B$7*$H$86 -> 501.6 | C86: =$C$7*$H$86 -> 418 | D86: =$D$7*$H$86 -> 334.4 | E86: =$E$7*$H$86 -> 250.8 | F86: =$F$7*$H$86 -> 167.2 | G86: è | H86: 0.1
A87: 5th | B87: =$B$7*$H$87 -> 451.44 | C87: =$C$7*$H$87 -> 376.2 | D87: =$D$7*$H$87 -> 300.96 | E87: =$E$7*$H$87 -> 225.72 | F87: =$F$7*$H$87 -> 150.48 | G87: è | H87: 0.09
A88: 6th | B88: =$B$7*$H$88 -> 401.28 | C88: =$C$7*$H$88 -> 334.4 | D88: =$D$7*$H$88 -> 267.52 | E88: =$E$7*$H$88 -> 200.64 | F88: =$F$7*$H$88 -> 133.76 | G88: è | H88: 0.08
A89: 7th | B89: =$B$7*$H$89 -> 351.12 | C89: =$C$7*$H$89 -> 292.6 | D89: =$D$7*$H$89 -> 234.08 | E89: =$E$7*$H$89 -> 175.56 | F89: =$F$7*$H$89 -> 117.04 | G89: è | H89: 0.07
A90: 8th | B90: =$B$7*$H$90 -> 300.96 | C90: =$C$7*$H$90 -> 250.8 | D90: =$D$7*$H$90 -> 200.64 | E90: =$E$7*$H$90 -> 150.48 | F90: =$F$7*$H$90 -> 100.32 | G90: è | H90: 0.06
A91: 9th | B91: =$B$7*$H$91 -> 250.8 | C91: =$C$7*$H$91 -> 209 | D91: =$D$7*$H$91 -> 167.2 | E91: =$E$7*$H$91 -> 125.4 | F91: =$F$7*$H$91 -> 83.6 | G91: è | H91: 0.05
A92: 10th | B92: =$B$7*$H$92 -> 200.64 | C92: =$C$7*$H$92 -> 167.2 | D92: =$D$7*$H$92 -> 133.76 | E92: =$E$7*$H$92 -> 100.32 | F92: =$F$7*$H$92 -> 66.88 | G92: è | H92: 0.04
A93: 11th | B93: =$B$7*$H$93 -> 150.48 | C93: =$C$7*$H$93 -> 125.4 | D93: =$D$7*$H$93 -> 100.32 | E93: =$E$7*$H$93 -> 75.24 | F93: =$F$7*$H$93 -> 50.16 | G93: è | H93: 0.03
A94: 12th | B94: =$B$7*$H$94 -> 100.32 | C94: =$C$7*$H$94 -> 83.6 | D94: =$D$7*$H$94 -> 66.88 | E94: =$E$7*$H$94 -> 50.16 | F94: =$F$7*$H$94 -> 33.44 | G94: è | H94: 0.02
A95: Totals | B95: =SUM(B83:B94) -> 5016 | C95: =SUM(C83:C94) -> 4180 | D95: =SUM(D83:D94) -> 3344 | E95: =SUM(E83:E94) -> 2508 | F95: =SUM(F83:F94) -> 1672 | G95: =SUM(B95:F95) -> 16720 | H95: =SUM(H83:H94) -> 1
A97: For 667-1000 riders 15 places
A98: Placings | B98: 1D | C98: 2D | D98: 3D | E98: 4D | F98: 5D
A99: 1st | B99: =$B$7*$H$99 -> 902.88 | C99: =$C$7*$H$99 -> 752.4 | D99: =$D$7*$H$99 -> 601.92 | E99: =$E$7*$H$99 -> 451.44 | F99: =$F$7*$H$99 -> 300.96 | G99: è | H99: 0.18
A100: 2nd | B100: =$B$7*$H$100 -> 752.4 | C100: =$C$7*$H$100 -> 627 | D100: =$D$7*$H$100 -> 501.6 | E100: =$E$7*$H$100 -> 376.2 | F100: =$F$7*$H$100 -> 250.8 | G100: è | H100: 0.15
A101: 3rd | B101: =$B$7*$H$101 -> 601.92 | C101: =$C$7*$H$101 -> 501.6 | D101: =$D$7*$H$101 -> 401.28 | E101: =$E$7*$H$101 -> 300.96 | F101: =$F$7*$H$101 -> 200.64 | G101: è | H101: 0.12
A102: 4th | B102: =$B$7*$H$102 -> 501.6 | C102: =$C$7*$H$102 -> 418 | D102: =$D$7*$H$102 -> 334.4 | E102: =$E$7*$H$102 -> 250.8 | F102: =$F$7*$H$102 -> 167.2 | G102: è | H102: 0.1
A103: 5th | B103: =$B$7*$H$103 -> 426.36 | C103: =$C$7*$H$103 -> 355.3 | D103: =$D$7*$H$103 -> 284.24 | E103: =$E$7*$H$103 -> 213.18 | F103: =$F$7*$H$103 -> 142.12 | G103: è | H103: 0.085
A104: 6th | B104: =$B$7*$H$104 -> 351.12 | C104: =$C$7*$H$104 -> 292.6 | D104: =$D$7*$H$104 -> 234.08 | E104: =$E$7*$H$104 -> 175.56 | F104: =$F$7*$H$104 -> 117.04 | G104: è | H104: 0.07
A105: 7th | B105: =$B$7*$H$105 -> 300.96 | C105: =$C$7*$H$105 -> 250.8 | D105: =$D$7*$H$105 -> 200.64 | E105: =$E$7*$H$105 -> 150.48 | F105: =$F$7*$H$105 -> 100.32 | G105: è | H105: 0.06
A106: 8th | B106: =$B$7*$H$106 -> 250.8 | C106: =$C$7*$H$106 -> 209 | D106: =$D$7*$H$106 -> 167.2 | E106: =$E$7*$H$106 -> 125.4 | F106: =$F$7*$H$106 -> 83.6 | G106: è | H106: 0.05
A107: 9th | B107: =$B$7*$H$107 -> 213.18 | C107: =$C$7*$H$107 -> 177.65 | D107: =$D$7*$H$107 -> 142.12 | E107: =$E$7*$H$107 -> 106.59 | F107: =$F$7*$H$107 -> 71.06 | G107: è | H107: 0.0425
A108: 10th | B108: =$B$7*$H$108 -> 175.56 | C108: =$C$7*$H$108 -> 146.3 | D108: =$D$7*$H$108 -> 117.04 | E108: =$E$7*$H$108 -> 87.78 | F108: =$F$7*$H$108 -> 58.52 | G108: è | H108: 0.035
A109: 11th | B109: =$B$7*$H$109 -> 150.48 | C109: =$C$7*$H$109 -> 125.4 | D109: =$D$7*$H$109 -> 100.32 | E109: =$E$7*$H$109 -> 75.24 | F109: =$F$7*$H$109 -> 50.16 | G109: è | H109: 0.03
A110: 12th | B110: =$B$7*$H$110 -> 125.4 | C110: =$C$7*$H$110 -> 104.5 | D110: =$D$7*$H$110 -> 83.6 | E110: =$E$7*$H$110 -> 62.7 | F110: =$F$7*$H$110 -> 41.8 | G110: è | H110: 0.025
A111: 13th | B111: =$B$7*$H$111 -> 100.32 | C111: =$C$7*$H$111 -> 83.6 | D111: =$D$7*$H$111 -> 66.88 | E111: =$E$7*$H$111 -> 50.16 | F111: =$F$7*$H$111 -> 33.44 | G111: è | H111: 0.02
A112: 14th | B112: =$B$7*$H$112 -> 87.78 | C112: =$C$7*$H$112 -> 73.15 | D112: =$D$7*$H$112 -> 58.52 | E112: =$E$7*$H$112 -> 43.89 | F112: =$F$7*$H$112 -> 29.26 | G112: è | H112: 0.0175
A113: 15th | B113: =$B$7*$H$113 -> 75.24 | C113: =$C$7*$H$113 -> 62.7 | D113: =$D$7*$H$113 -> 50.16 | E113: =$E$7*$H$113 -> 37.62 | F113: =$F$7*$H$113 -> 25.08 | G113: è | H113: 0.015
A114: Totals | B114: =SUM(B99:B113) -> 5016 | C114: =SUM(C99:C113) -> 4180 | D114: =SUM(D99:D113) -> 3344 | E114: =SUM(E99:E113) -> 2508 | F114: =SUM(F99:F113) -> 1672 | G114: =SUM(B114:F114) -> 16720 | H114: =SUM(H99:H113) -> 1
A116: For 1001-1500 riders 20 places
A117: Placings | B117: 1D | C117: 2D | D117: 3D | E117: 4D | F117: 5D
A118: 1st | B118: =$B$7*$H$118 -> 702.24 | C118: =$C$7*$H$118 -> 585.2 | D118: =$D$7*$H$118 -> 468.16 | E118: =$E$7*$H$118 -> 351.12 | F118: =$F$7*$H$118 -> 234.08 | G118: è | H118: 0.14
A119: 2nd | B119: =$B$7*$H$119 -> 551.76 | C119: =$C$7*$H$119 -> 459.8 | D119: =$D$7*$H$119 -> 367.84 | E119: =$E$7*$H$119 -> 275.88 | F119: =$F$7*$H$119 -> 183.92 | G119: è | H119: 0.11
A120: 3rd | B120: =$B$7*$H$120 -> 451.44 | C120: =$C$7*$H$120 -> 376.2 | D120: =$D$7*$H$120 -> 300.96 | E120: =$E$7*$H$120 -> 225.72 | F120: =$F$7*$H$120 -> 150.48 | G120: è | H120: 0.09
A121: 4th | B121: =$B$7*$H$121 -> 386.232 | C121: =$C$7*$H$121 -> 321.86 | D121: =$D$7*$H$121 -> 257.488 | E121: =$E$7*$H$121 -> 193.116 | F121: =$F$7*$H$121 -> 128.744 | G121: è | H121: 0.077
A122: 5th | B122: =$B$7*$H$122 -> 351.12 | C122: =$C$7*$H$122 -> 292.6 | D122: =$D$7*$H$122 -> 234.08 | E122: =$E$7*$H$122 -> 175.56 | F122: =$F$7*$H$122 -> 117.04 | G122: è | H122: 0.07
A123: 6th | B123: =$B$7*$H$123 -> 326.04 | C123: =$C$7*$H$123 -> 271.7 | D123: =$D$7*$H$123 -> 217.36 | E123: =$E$7*$H$123 -> 163.02 | F123: =$F$7*$H$123 -> 108.68 | G123: è | H123: 0.065
A124: 7th | B124: =$B$7*$H$124 -> 300.96 | C124: =$C$7*$H$124 -> 250.8 | D124: =$D$7*$H$124 -> 200.64 | E124: =$E$7*$H$124 -> 150.48 | F124: =$F$7*$H$124 -> 100.32 | G124: è | H124: 0.06
A125: 8th | B125: =$B$7*$H$125 -> 275.88 | C125: =$C$7*$H$125 -> 229.9 | D125: =$D$7*$H$125 -> 183.92 | E125: =$E$7*$H$125 -> 137.94 | F125: =$F$7*$H$125 -> 91.96 | G125: è | H125: 0.055
A126: 9th | B126: =$B$7*$H$126 -> 250.8 | C126: =$C$7*$H$126 -> 209 | D126: =$D$7*$H$126 -> 167.2 | E126: =$E$7*$H$126 -> 125.4 | F126: =$F$7*$H$126 -> 83.6 | G126: è | H126: 0.05
A127: 10th | B127: =$B$7*$H$127 -> 225.72 | C127: =$C$7*$H$127 -> 188.1 | D127: =$D$7*$H$127 -> 150.48 | E127: =$E$7*$H$127 -> 112.86 | F127: =$F$7*$H$127 -> 75.24 | G127: è | H127: 0.045
A128: 11th | B128: =$B$7*$H$128 -> 200.64 | C128: =$C$7*$H$128 -> 167.2 | D128: =$D$7*$H$128 -> 133.76 | E128: =$E$7*$H$128 -> 100.32 | F128: =$F$7*$H$128 -> 66.88 | G128: è | H128: 0.04
A129: 12th | B129: =$B$7*$H$129 -> 185.592 | C129: =$C$7*$H$129 -> 154.66 | D129: =$D$7*$H$129 -> 123.728 | E129: =$E$7*$H$129 -> 92.796 | F129: =$F$7*$H$129 -> 61.864 | G129: è | H129: 0.037
A130: 13th | B130: =$B$7*$H$130 -> 165.528 | C130: =$C$7*$H$130 -> 137.94 | D130: =$D$7*$H$130 -> 110.352 | E130: =$E$7*$H$130 -> 82.764 | F130: =$F$7*$H$130 -> 55.176 | G130: è | H130: 0.033
A131: 14th | B131: =$B$7*$H$131 -> 145.464 | C131: =$C$7*$H$131 -> 121.22 | D131: =$D$7*$H$131 -> 96.976 | E131: =$E$7*$H$131 -> 72.732 | F131: =$F$7*$H$131 -> 48.488 | G131: è | H131: 0.029
A132: 15th | B132: =$B$7*$H$132 -> 125.4 | C132: =$C$7*$H$132 -> 104.5 | D132: =$D$7*$H$132 -> 83.6 | E132: =$E$7*$H$132 -> 62.7 | F132: =$F$7*$H$132 -> 41.8 | G132: è | H132: 0.025
A133: 16th | B133: =$B$7*$H$133 -> 105.336 | C133: =$C$7*$H$133 -> 87.78 | D133: =$D$7*$H$133 -> 70.224 | E133: =$E$7*$H$133 -> 52.668 | F133: =$F$7*$H$133 -> 35.112 | G133: è | H133: 0.021
A134: 17th | B134: =$B$7*$H$134 -> 85.272 | C134: =$C$7*$H$134 -> 71.06 | D134: =$D$7*$H$134 -> 56.848 | E134: =$E$7*$H$134 -> 42.636 | F134: =$F$7*$H$134 -> 28.424 | G134: è | H134: 0.017
A135: 18th | B135: =$B$7*$H$135 -> 70.224 | C135: =$C$7*$H$135 -> 58.52 | D135: =$D$7*$H$135 -> 46.816 | E135: =$E$7*$H$135 -> 35.112 | F135: =$F$7*$H$135 -> 23.408 | G135: è | H135: 0.014
A136: 19th | B136: =$B$7*$H$136 -> 60.192 | C136: =$C$7*$H$136 -> 50.16 | D136: =$D$7*$H$136 -> 40.128 | E136: =$E$7*$H$136 -> 30.096 | F136: =$F$7*$H$136 -> 20.064 | G136: è | H136: 0.012
A137: 20th | B137: =$B$7*$H$137 -> 50.16 | C137: =$C$7*$H$137 -> 41.8 | D137: =$D$7*$H$137 -> 33.44 | E137: =$E$7*$H$137 -> 25.08 | F137: =$F$7*$H$137 -> 16.72 | G137: è | H137: 0.01
A138: Totals | B138: =SUM(B118:B137) -> 5016 | C138: =SUM(C118:C137) -> 4180 | D138: 3344 | E138: 2508 | F138: 1672 | G138: =SUM(B138:F138) -> 16720 | H138: =SUM(H118:H137) -> 1
A140: For 1501 or More riders 30 places
A141: Placings | B141: 1D | C141: 2D | D141: 3D | E141: 4D | F141: 5D
A142: 1st | B142: =$B$7*$H142 -> 601.92 | C142: =$C$7*$H142 -> 501.6 | D142: =$D$7*$H142 -> 401.28 | E142: =$E$7*$H142 -> 300.96 | F142: =$F$7*$H142 -> 200.64 | G142: è | H142: 0.12
A143: 2nd | B143: =$B$7*$H143 -> 476.52 | C143: 397.1 | D143: 317.68 | E143: 238.26 | F143: 158.84 | G143: è | H143: 0.095
A144: 3rd | B144: =$B$7*$H144 -> 366.168 | C144: 305.14 | D144: 244.112 | E144: 183.084 | F144: 122.056 | G144: è | H144: 0.073
A145: 4th | B145: =$B$7*$H145 -> 310.992 | C145: 259.16 | D145: 207.328 | E145: 155.496 | F145: 103.664 | G145: è | H145: 0.062
A146: 5th | B146: 250.8 | C146: 209 | D146: 167.2 | E146: 125.4 | F146: 83.6 | G146: è | H146: 0.05
A147: 6th | B147: 225.72 | C147: 188.1 | D147: 150.48 | E147: 112.86 | F147: 75.24 | G147: è | H147: 0.045
A148: 7th | B148: 215.688 | C148: 179.74 | D148: 143.792 | E148: 107.844 | F148: 71.896 | G148: è | H148: 0.043
A149: 8th | B149: 200.64 | C149: 167.2 | D149: 133.76 | E149: 100.32 | F149: 66.88 | G149: è | H149: 0.04
A150: 9th | B150: 185.592 | C150: 154.66 | D150: 123.728 | E150: 92.796 | F150: 61.864 | G150: è | H150: 0.037
A151: 10th | B151: 175.56 | C151: 146.3 | D151: 117.04 | E151: 87.78 | F151: 58.52 | G151: è | H151: 0.035
A152: 11th | B152: 165.528 | C152: 137.94 | D152: 110.352 | E152: 82.764 | F152: 55.176 | G152: è | H152: 0.033
A153: 12th | B153: 155.496 | C153: 129.58 | D153: 103.664 | E153: 77.748 | F153: 51.832 | G153: è | H153: 0.031
A154: 13th | B154: 145.464 | C154: 121.22 | D154: 96.976 | E154: 72.732 | F154: 48.488 | G154: è | H154: 0.029
A155: 14th | B155: 135.432 | C155: 112.86 | D155: 90.288 | E155: 67.716 | F155: 45.144 | G155: è | H155: 0.027
A156: 15th | B156: 125.4 | C156: 104.5 | D156: 83.6 | E156: 62.7 | F156: 41.8 | G156: è | H156: 0.025
A157: 16th | B157: 120.384 | C157: 100.32 | D157: 80.256 | E157: 60.192 | F157: 40.128 | G157: è | H157: 0.024
A158: 17th | B158: 115.368 | C158: 96.14 | D158: 76.912 | E158: 57.684 | F158: 38.456 | G158: è | H158: 0.023
A159: 18th | B159: 110.352 | C159: 91.96 | D159: 73.568 | E159: 55.176 | F159: 36.784 | G159: è | H159: 0.022
A160: 19th | B160: 105.336 | C160: 87.78 | D160: 70.224 | E160: 52.668 | F160: 35.112 | G160: è | H160: 0.021
A161: 20th | B161: 100.32 | C161: 83.6 | D161: 66.88 | E161: 50.16 | F161: 33.44 | G161: è | H161: 0.02
A162: 21st | B162: 95.304 | C162: 79.42 | D162: 63.536 | E162: 47.652 | F162: 31.768 | G162: è | H162: 0.019
A163: 22nd | B163: 90.288 | C163: 75.24 | D163: 60.192 | E163: 45.144 | F163: 30.096 | G163: è | H163: 0.018
A164: 23rd | B164: 85.272 | C164: 71.06 | D164: 56.848 | E164: 42.636 | F164: 28.424 | G164: è | H164: 0.017
A165: 24th | B165: 80.256 | C165: 66.88 | D165: 53.504 | E165: 40.128 | F165: 26.752 | G165: è | H165: 0.016
A166: 25th | B166: 75.24 | C166: 62.7 | D166: 50.16 | E166: 37.62 | F166: 25.08 | G166: è | H166: 0.015
A167: 26th | B167: 70.224 | C167: 58.52 | D167: 46.816 | E167: 35.112 | F167: 23.408 | G167: è | H167: 0.014
A168: 27th | B168: 65.208 | C168: 54.34 | D168: 43.472 | E168: 32.604 | F168: 21.736 | G168: è | H168: 0.013
A169: 28th | B169: 60.192 | C169: 50.16 | D169: 40.128 | E169: 30.096 | F169: 20.064 | G169: è | H169: 0.012
A170: 29th | B170: 55.176 | C170: 45.98 | D170: 36.784 | E170: 27.588 | F170: 18.392 | G170: è | H170: 0.011
A171: 30th | B171: 50.16 | C171: 41.8 | D171: 33.44 | E171: 25.08 | F171: 16.72 | G171: è | H171: 0.01
A172: Totals | B172: =SUM(B142:B171) -> 5016 | C172: =SUM(C142:C171) -> 4180 | D172: 3344 | E172: 2508 | F172: 1672 | G172: =SUM(B172:F172) -> 16720 | H172: =SUM(H142:H171) -> 1

Sheet DON'T TOUCH (hidden)
A2: Yes | C2: S | D2: 5 | E2: X
C3: A | D3: 10
C4: Y | D4: 15
C5: P | D5: BP
D6: SCR
